Authority,Department,Spending Area,Expense Type,Posting Date,Reference,Amount,Supplier
OXFORDSHIRE CC,SOCIAL AND COMMUNITY SERVICES,"	MUSEUMS COLLECTIONS",CATERING PROVISIONS,27/12/2019,6902574556,1.56,MILK&MORE
OXFORDSHIRE CC,"CHILDRENS, YOUNG PEOPLE AND FAMILIES",NTH EARLY HELP-BCSTR,CATERING PROVISIONS,27/12/2019,6902574558,18.72,MILK&MORE
OXFORDSHIRE CC,"CHILDRENS, YOUNG PEOPLE AND FAMILIES","	40 THE MOORS",CATERING,27/12/2019,6902574562,35.18,DOMINOS PIZZA UK & IRE
OXFORDSHIRE CC,"CHILDRENS, YOUNG PEOPLE AND FAMILIES","	40 THE MOORS",CATERING,27/12/2019,6902574568,14.66,KFC
OXFORDSHIRE CC,"CHILDRENS, YOUNG PEOPLE AND FAMILIES",THAME E&A HOME,CATERING PROVISIONS,27/12/2019,6902574552,17.79,CO-OPERATIVE FOOD
OXFORDSHIRE CC,"CHILDRENS, YOUNG PEOPLE AND FAMILIES","	RESIDENTIAL STRATEGY",CATERING,27/12/2019,6902574550,7.82,MCDONALDS
OXFORDSHIRE CC,"CHILDRENS, YOUNG PEOPLE AND FAMILIES","	40 THE MOORS",CATERING PROVISIONS,27/12/2019,6902574564,6.25,LLOYDS AT SAINSBURYS
OXFORDSHIRE CC,"CHILDRENS, YOUNG PEOPLE AND FAMILIES","	40 THE MOORS",MATERIALS,27/12/2019,6902574566,19.99,ARGOS LTD
OXFORDSHIRE CC,CORPORATE CORE,"	COMMUNICATIONS",IT SOFTWARE,26/12/2019,6900116876,78.97,ADOBE CREATIVE CLOUD
OXFORDSHIRE CC,"CHILDRENS, YOUNG PEOPLE AND FAMILIES",THAME E&A HOME,MATERIALS,26/12/2019,6900116834,57.93,AMZNMKTPLACE
OXFORDSHIRE CC,"CHILDRENS, YOUNG PEOPLE AND FAMILIES",THAME E&A HOME,OTHER TRANSPORT ARRANGEMENTS,26/12/2019,6900116856,2.5,PARKJOCKEY LONDON
OXFORDSHIRE CC,"CHILDRENS, YOUNG PEOPLE AND FAMILIES","	40 THE MOORS",CATERING,26/12/2019,6900116938,34.1,NEW DANCING DRAGON
OXFORDSHIRE CC,"CHILDRENS, YOUNG PEOPLE AND FAMILIES",THAME E&A HOME,ENTERTAINMENT EXPENSES,26/12/2019,6900116858,49.55,CINEWORLD HWY CP
OXFORDSHIRE CC,"CHILDRENS, YOUNG PEOPLE AND FAMILIES",EYNSHAM,DRUGS AND MEDICAL SUPPLIES,26/12/2019,6900116822,2.6,LLOYDS PHARMACY
OXFORDSHIRE CC,"CHILDRENS, YOUNG PEOPLE AND FAMILIES",EYNSHAM,CATERING,26/12/2019,6900116824,21.84,CO-OPERATIVE FOOD
OXFORDSHIRE CC,SOCIAL AND COMMUNITY SERVICES,DIDCOT MOVE-ON HOME,CATERING PROVISIONS,26/12/2019,6900116866,11.15,SAINSBURYS 2067
OXFORDSHIRE CC,"CHILDRENS, YOUNG PEOPLE AND FAMILIES","	LOOKED AFTER NORTH",MATERIALS,26/12/2019,6900116950,499,CURRYS
OXFORDSHIRE CC,"CHILDRENS, YOUNG PEOPLE AND FAMILIES",NTH FAM SUPRT-BCSTR,PAYMENTS TO TRANSPORT OPERATORS,26/12/2019,6900116870,95,WWW.GWR.COM
OXFORDSHIRE CC,"CHILDRENS, YOUNG PEOPLE AND FAMILIES","	LEAVING CARE NORTH",OTHER EXPENSES,26/12/2019,6900116962,42.98,O/NEILLS
OXFORDSHIRE CC,"CHILDRENS, YOUNG PEOPLE AND FAMILIES","	LOOKED AFTER SOUTH",CATERING PROVISIONS,26/12/2019,6900116976,10,CO-OPERATIVE FOOD
OXFORDSHIRE CC,"CHILDRENS, YOUNG PEOPLE AND FAMILIES","	LOOKED AFTER SOUTH",CATERING PROVISIONS,26/12/2019,6900116972,14.4,CO-OPERATIVE FOOD
OXFORDSHIRE CC,"CHILDRENS, YOUNG PEOPLE AND FAMILIES","	LEAVING CARE NORTH",BIRTHDAY ALLOWANCE,26/12/2019,6900116954,40,SAINSBURYS 0730
OXFORDSHIRE CC,"CHILDRENS, YOUNG PEOPLE AND FAMILIES","	LEAVING CARE NORTH",PAYMENTS TO TRANSPORT OPERATORS,26/12/2019,6900116958,13.6,BANBURY SSTP
OXFORDSHIRE CC,"CHILDRENS, YOUNG PEOPLE AND FAMILIES",THAME E&A HOME,CATERING PROVISIONS,26/12/2019,6900116846,126.47,ASDA SUPERSTORE
OXFORDSHIRE CC,"CHILDRENS, YOUNG PEOPLE AND FAMILIES","	LOOKED AFTER SOUTH",OTHER TRANSPORT ARRANGEMENTS,26/12/2019,6900116968,2.5,UNION STREET CAR PARK
OXFORDSHIRE CC,"CHILDRENS, YOUNG PEOPLE AND FAMILIES",THAME E&A HOME,ENTERTAINMENT EXPENSES,26/12/2019,6900116898,9.25,RUSH - HIGH WYCOMBE
OXFORDSHIRE CC,"CHILDRENS, YOUNG PEOPLE AND FAMILIES","	LOOKED AFTER NORTH",POSTAGE AND DELIVERY,26/12/2019,6900116942,82.4,POST OFFICE COUNTER
OXFORDSHIRE CC,"CHILDRENS, YOUNG PEOPLE AND FAMILIES","	40 THE MOORS",CATERING PROVISIONS,26/12/2019,6900116936,106,WM MORRISONS STORE
OXFORDSHIRE CC,"CHILDRENS, YOUNG PEOPLE AND FAMILIES",THAME E&A HOME,CATERING,26/12/2019,6900116900,6.99,SUBWAY
OXFORDSHIRE CC,"CHILDRENS, YOUNG PEOPLE AND FAMILIES","	LOOKED AFTER SOUTH",HIRE OF ACCOMMODATION AND FACILITIES,26/12/2019,6900116820,220,MEREDITH LETTING
OXFORDSHIRE CC,SOCIAL AND COMMUNITY SERVICES,RESIDENTIAL STRATEGY,MATERIALS,26/12/2019,6900116842,25.98,ARGOS BANBURY INSI
OXFORDSHIRE CC,"CHILDRENS, YOUNG PEOPLE AND FAMILIES",CNTL EARLY HELP-BRTN,CATERING,26/12/2019,6900116924,35.94,DOMINOS PIZZA UK & IRE
OXFORDSHIRE CC,SOCIAL AND COMMUNITY SERVICES,RESIDENTIAL STRATEGY,CLOTHING AND UNIFORMS,26/12/2019,6900116844,24.8,PRIMARK 693
OXFORDSHIRE CC,"CHILDRENS, YOUNG PEOPLE AND FAMILIES",THAME E&A HOME,DRUGS AND MEDICAL SUPPLIES,26/12/2019,6900116836,7.04,SUPERDRUG STORES PLC
OXFORDSHIRE CC,ENVIRONMENT AND ECONOMY,HARD FM,HARDWARE AND CROCKERY,26/12/2019,6900116832,4.34,CITY PLUMBING
OXFORDSHIRE CC,"CHILDRENS, YOUNG PEOPLE AND FAMILIES","	LEAVING CARE NORTH",HIRE OF ACCOMMODATION AND FACILITIES,26/12/2019,6900116886,286.5,PREMIER INN
OXFORDSHIRE CC,ENVIRONMENT AND ECONOMY,HARD FM,HARDWARE AND CROCKERY,26/12/2019,6900116828,108,CITY PLUMBING
OXFORDSHIRE CC,"CHILDRENS, YOUNG PEOPLE AND FAMILIES","	40 THE MOORS",CATERING,26/12/2019,6900116916,13.1,TESCO STORE 2788
OXFORDSHIRE CC,"CHILDRENS, YOUNG PEOPLE AND FAMILIES","	40 THE MOORS",OTHER EXPENSES,26/12/2019,6900116914,3.48,HOUSE OF CARDS - KIDLI
OXFORDSHIRE CC,"CHILDRENS, YOUNG PEOPLE AND FAMILIES","	DIRECTOR'S OFFICE",SUBSCRIPTIONS,26/12/2019,6900116980,396.78,GOVERNMENT EVENTS
OXFORDSHIRE CC,"CHILDRENS, YOUNG PEOPLE AND FAMILIES","	MUSIC UNALLOCABLE","BOOKS, DVDS AND CDS",26/12/2019,6900116904,106.5,WWW.OUP.COM
OXFORDSHIRE CC,CORPORATE CORE,,"SUPPLIES, STATIONERY AND MATERIALS",26/12/2019,6900116946,57.72,LYRECO UK LTD
OXFORDSHIRE CC,ENVIRONMENT AND ECONOMY,COUNTY LIBRARY,HARDWARE AND CROCKERY,26/12/2019,6900116840,62.45,SCREWFIX BICESTER
OXFORDSHIRE CC,SOCIAL AND COMMUNITY SERVICES,CSS - OXFORD,CATERING PROVISIONS,26/12/2019,6900116908,30,TESCO STORE 2994
OXFORDSHIRE CC,"CHILDRENS, YOUNG PEOPLE AND FAMILIES","	LEAVING CARE NORTH",MATERIALS,26/12/2019,6900116920,-85,JD SPORTS INTERNET
OXFORDSHIRE CC,ENVIRONMENT AND ECONOMY,HARD FM,HARDWARE AND CROCKERY,26/12/2019,6900116830,-56.4,CITY PLUMBING
OXFORDSHIRE CC,"CHILDRENS, YOUNG PEOPLE AND FAMILIES","	LOOKED AFTER SOUTH",VEHICLE FUEL,26/12/2019,6900116882,15,W M MORRISON PETROL
OXFORDSHIRE CC,ENVIRONMENT AND ECONOMY,ELEC NPR ST LTG,PAYMENTS TO TRANSPORT OPERATORS,26/12/2019,6900116818,0.32,NETWORK RAIL INFRASTRU
OXFORDSHIRE CC,SOCIAL AND COMMUNITY SERVICES,LOOKED AFTER NORTH,HIRE OF ACCOMMODATION AND FACILITIES,26/12/2019,6900116890,76.5,PREMIER INN
OXFORDSHIRE CC,ENVIRONMENT AND ECONOMY,COUNTY LIBRARY,EQUIPMENT,26/12/2019,6900116838,11.91,NEWEY & EYRE
OXFORDSHIRE CC,"CHILDRENS, YOUNG PEOPLE AND FAMILIES","	RIVERSIDE CENTRE",FURNITURE,26/12/2019,6900116850,25,IKEA LTD 461 READING M
OXFORDSHIRE CC,SOCIAL AND COMMUNITY SERVICES,DIDCOT MOVE-ON HOME,MATERIALS,26/12/2019,6900116848,13.58,AMZNMKTPLACE AMAZON.CO
OXFORDSHIRE CC,"CHILDRENS, YOUNG PEOPLE AND FAMILIES",EYNSHAM,CATERING,24/12/2019,6897241504,6.99,TESCO SUBSCRIPTION
OXFORDSHIRE CC,"CHILDRENS, YOUNG PEOPLE AND FAMILIES","	40 THE MOORS",MATERIALS,24/12/2019,6897241430,24.99,ARGOS KIDLINGTON INSID
OXFORDSHIRE CC,"CHILDRENS, YOUNG PEOPLE AND FAMILIES","	40 THE MOORS",CATERING PROVISIONS,24/12/2019,6897241424,75.1,TESCO STORES 4480
OXFORDSHIRE CC,"CHILDRENS, YOUNG PEOPLE AND FAMILIES","	LOOKED AFTER CITY 2",MATERIALS,24/12/2019,6897241350,2.98,WH SMITH
OXFORDSHIRE CC,"CHILDRENS, YOUNG PEOPLE AND FAMILIES",EYNSHAM,CATERING,24/12/2019,6897241176,38.4,SMART FISH AND CHIPS
OXFORDSHIRE CC,"CHILDRENS, YOUNG PEOPLE AND FAMILIES","	LOOKED AFTER SOUTH",VEHICLE FUEL,24/12/2019,6897241474,27.68,SAINSBURYS PFS0180
OXFORDSHIRE CC,"CHILDRENS, YOUNG PEOPLE AND FAMILIES","	LOOKED AFTER CITY 2",CATERING,24/12/2019,6897241356,5.59,MCDONALDS
OXFORDSHIRE CC,"CHILDRENS, YOUNG PEOPLE AND FAMILIES","	LOOKED AFTER CITY 2",CATERING,24/12/2019,6897241354,17.47,MCDONALDS
OXFORDSHIRE CC,CORPORATE CORE,HOLTON SITE,EQUIPMENT,24/12/2019,6897241336,51.24,AMZNMKTPLACE
OXFORDSHIRE CC,"CHILDRENS, YOUNG PEOPLE AND FAMILIES","	LOOKED AFTER SOUTH",OTHER TRANSPORT ARRANGEMENTS,24/12/2019,6897241302,4.5,MIDDLESBROUGH SHOPPING
OXFORDSHIRE CC,"CHILDRENS, YOUNG PEOPLE AND FAMILIES","	LOOKED AFTER NORTH",MATERIALS,24/12/2019,6897241244,85,J D SPORTS FASHION PLC
OXFORDSHIRE CC,"CHILDRENS, YOUNG PEOPLE AND FAMILIES","	LOOKED AFTER SOUTH",CATERING,24/12/2019,6897241306,7.4,MCDONALDS
OXFORDSHIRE CC,"CHILDRENS, YOUNG PEOPLE AND FAMILIES",DIDCOT MOVE-ON HOME,MATERIALS,24/12/2019,6897241278,51.6,AMZNMKTPLACE
OXFORDSHIRE CC,CORPORATE CORE,"	COMMUNICATIONS",MATERIALS,24/12/2019,6897241300,465.84,GOOGLE  ADS4896546035
OXFORDSHIRE CC,ENVIRONMENT AND ECONOMY,HARD FM,GENERAL MAINTENANCE,24/12/2019,6897241230,39.96,WOLSELEY UK
OXFORDSHIRE CC,"CHILDRENS, YOUNG PEOPLE AND FAMILIES",STH EARLY HELP-ABNDN,DAY ACTIVITIES,24/12/2019,6897241170,26.89,WWW.TENPIN.CO.UK
OXFORDSHIRE CC,"CHILDRENS, YOUNG PEOPLE AND FAMILIES","	FAMILY SUPPORT CITY3",OTHER TRANSPORT ARRANGEMENTS,24/12/2019,6897241402,39.7,WWW.GWR.COM
OXFORDSHIRE CC,"CHILDRENS, YOUNG PEOPLE AND FAMILIES","	LEAVING CARE NORTH",OTHER TRANSPORT ARRANGEMENTS,24/12/2019,6897241470,14.95,PAYPAL  TRAINLINE
OXFORDSHIRE CC,"CHILDRENS, YOUNG PEOPLE AND FAMILIES",STH EARLY HELP-ABNDN,MATERIALS,24/12/2019,6897241166,28.99,ARGOS LTD
OXFORDSHIRE CC,"CHILDRENS, YOUNG PEOPLE AND FAMILIES",ICT INFORMATION,IT SOFTWARE,24/12/2019,6897241218,177.47,GOOGLE  CLOUD_01D722-8
OXFORDSHIRE CC,"CHILDRENS, YOUNG PEOPLE AND FAMILIES","	FAMILY SUPPORT CITY3",VEHICLE FUEL,24/12/2019,6897241412,30.01,SHELL HEADINGTON
OXFORDSHIRE CC,SOCIAL AND COMMUNITY SERVICES,DIDCOT MOVE-ON HOME,CATERING PROVISIONS,24/12/2019,6897241288,31.35,SAINSBURYS 2067
OXFORDSHIRE CC,"CHILDRENS, YOUNG PEOPLE AND FAMILIES",THAME E&A HOME,CATERING,24/12/2019,6897241224,16.96,SUBWAY
OXFORDSHIRE CC,"CHILDRENS, YOUNG PEOPLE AND FAMILIES","	LEAVING CARE NORTH",HIRE OF ACCOMMODATION AND FACILITIES,24/12/2019,6897241310,46.24,TRAVELODGE
OXFORDSHIRE CC,"CHILDRENS, YOUNG PEOPLE AND FAMILIES",THAME E&A HOME,CATERING PROVISIONS,24/12/2019,6897241248,26.28,SAINSBURYS (2305)
OXFORDSHIRE CC,"CHILDRENS, YOUNG PEOPLE AND FAMILIES",FAMILY SUPPORT 2,EDUCATIONAL AND VOCATIONAL TRAINING ,24/12/2019,6897241494,12,FREEDOM PROGRAMME LIMI
OXFORDSHIRE CC,"CHILDRENS, YOUNG PEOPLE AND FAMILIES",EYNSHAM,CATERING PROVISIONS,24/12/2019,6897241358,65.67,SAINSBURYS 2067
OXFORDSHIRE CC,"CHILDRENS, YOUNG PEOPLE AND FAMILIES",THAME E&A HOME,MATERIALS,24/12/2019,6897241252,5,THEWORKS.CO.UK
OXFORDSHIRE CC,"CHILDRENS, YOUNG PEOPLE AND FAMILIES",THAME E&A HOME,MATERIALS,24/12/2019,6897241254,35,J D SPORTS
OXFORDSHIRE CC,"CHILDRENS, YOUNG PEOPLE AND FAMILIES","	LEAVING CARE NORTH",PAYMENTS TO TRANSPORT OPERATORS,24/12/2019,6897241378,7.58,TRAINLINE
OXFORDSHIRE CC,"CHILDRENS, YOUNG PEOPLE AND FAMILIES",EYNSHAM,MATERIALS,24/12/2019,6897241462,25,MOUNTAIN MANIA CYCLES
OXFORDSHIRE CC,"CHILDRENS, YOUNG PEOPLE AND FAMILIES","	LOOKED AFTER NORTH",HARDWARE AND CROCKERY,24/12/2019,6897241466,3.6,YARNTON NURSERIES
OXFORDSHIRE CC,"CHILDRENS, YOUNG PEOPLE AND FAMILIES",NTH FAM SUPRT-BCSTR,PAYMENTS TO TRANSPORT OPERATORS,24/12/2019,6897241320,59.1,WWW.GWR.COM
OXFORDSHIRE CC,"CHILDRENS, YOUNG PEOPLE AND FAMILIES",UASC 16&17,RESIDENTIAL ACTIVITIES,24/12/2019,6897241202,29.99,PUREGYM LIMITED
OXFORDSHIRE CC,"CHILDRENS, YOUNG PEOPLE AND FAMILIES",WITNEY,CATERING PROVISIONS,24/12/2019,6897241458,3,SAINSBURYS SACAT 0632
OXFORDSHIRE CC,"CHILDRENS, YOUNG PEOPLE AND FAMILIES","	LOOKED AFTER SOUTH",CATERING PROVISIONS,24/12/2019,6897241476,8.2,WELCOME BREAK WHS
OXFORDSHIRE CC,"CHILDRENS, YOUNG PEOPLE AND FAMILIES",UASC 16&17,RESIDENTIAL ACTIVITIES,24/12/2019,6897241210,29.99,PUREGYM LIMITED
OXFORDSHIRE CC,CORPORATE CORE,"	LEGAL SERVICES",LEGAL COSTS,24/12/2019,6897241364,11,OXFORDSHIRE CC MOTO1
OXFORDSHIRE CC,"CHILDRENS, YOUNG PEOPLE AND FAMILIES",CNTL ERLY HELP-BBLEY,CATERING PROVISIONS,24/12/2019,6897241488,1.39,NISA DELTEYS
OXFORDSHIRE CC,"CHILDRENS, YOUNG PEOPLE AND FAMILIES",UASC 16&17,RESIDENTIAL ACTIVITIES,24/12/2019,6897241206,29.99,PUREGYM LIMITED
OXFORDSHIRE CC,"CHILDRENS, YOUNG PEOPLE AND FAMILIES",NORTH FSS- BANBURY,CATERING PROVISIONS,24/12/2019,6897241362,25.09,TK MAXX
OXFORDSHIRE CC,"CHILDRENS, YOUNG PEOPLE AND FAMILIES",CSS WALLINGFORD,MATERIALS,24/12/2019,6897241192,22.97,AMAZON.CO.UK GX5XB3V95
OXFORDSHIRE CC,"CHILDRENS, YOUNG PEOPLE AND FAMILIES","	RIVERSIDE CENTRE",DAY ACTIVITIES,24/12/2019,6897241372,33.8,BIG ROCK CLIMBING
OXFORDSHIRE CC,"CHILDRENS, YOUNG PEOPLE AND FAMILIES","	LOOKED AFTER CITY 2",OTHER TRANSPORT ARRANGEMENTS,24/12/2019,6897241352,6.7,APCOA CONNECT - FGW
OXFORDSHIRE CC,"CHILDRENS, YOUNG PEOPLE AND FAMILIES","	LOOKED AFTER CITY 2",CATERING,24/12/2019,6897241344,13.28,WCPC OXFORD
OXFORDSHIRE CC,"CHILDRENS, YOUNG PEOPLE AND FAMILIES","	LOOKED AFTER CITY 2",PAYMENTS TO TRANSPORT OPERATORS,24/12/2019,6897241348,159,GWR OXFORD SST
OXFORDSHIRE CC,"CHILDRENS, YOUNG PEOPLE AND FAMILIES","	FPT NORTH",PAYMENTS TO TRANSPORT OPERATORS,24/12/2019,6897241340,3.3,BICESTER VIL SSTP
OXFORDSHIRE CC,"CHILDRENS, YOUNG PEOPLE AND FAMILIES",CSS WALLINGFORD,CATERING PROVISIONS,24/12/2019,6897241198,27.69,TESCO STORE 2413
OXFORDSHIRE CC,"CHILDRENS, YOUNG PEOPLE AND FAMILIES","	FAMILY SUPPORT CITY3",POSTAGE AND DELIVERY,24/12/2019,6897241398,61.8,THE POST OFFICE
OXFORDSHIRE CC,"CHILDRENS, YOUNG PEOPLE AND FAMILIES","	LOOKED AFTER SOUTH",ENTERTAINMENT EXPENSES,24/12/2019,6897241180,48.5,WWW.MILLETSFARMCENTRE.
OXFORDSHIRE CC,SOCIAL AND COMMUNITY SERVICES,CSS BICESTER,CATERING PROVISIONS,24/12/2019,6897241162,15.13,ICELAND
OXFORDSHIRE CC,SOCIAL AND COMMUNITY SERVICES,CSS BICESTER,CATERING PROVISIONS,24/12/2019,6897241160,25.55,SAINSBURYS (2243)
OXFORDSHIRE CC,ENVIRONMENT AND ECONOMY,COUNTY LIBRARY,GENERAL MAINTENANCE,24/12/2019,6897241240,453.72,WOLSELEY UK
OXFORDSHIRE CC,"CHILDRENS, YOUNG PEOPLE AND FAMILIES",THAME E&A HOME,CATERING PROVISIONS,24/12/2019,6897241268,10.07,WILKO RETAIL LIMITED
OXFORDSHIRE CC,"CHILDRENS, YOUNG PEOPLE AND FAMILIES",THAME E&A HOME,HIRED AND CONTRACTED SERVICES,24/12/2019,6897241272,2.5,GREENREY LTD
OXFORDSHIRE CC,SOCIAL AND COMMUNITY SERVICES,CSS - OXFORD,MATERIALS,24/12/2019,6897241298,7.99,AMAZON PRIME GH9BZ0AO5
OXFORDSHIRE CC,"CHILDRENS, YOUNG PEOPLE AND FAMILIES",DIDCOT MOVE-ON HOME,CATERING PROVISIONS,24/12/2019,6897241286,48.64,SAINSBURYS SACAT 2067
OXFORDSHIRE CC,"CHILDRENS, YOUNG PEOPLE AND FAMILIES","	FAMILY SUPPORT CITY3",OTHER TRANSPORT ARRANGEMENTS,24/12/2019,6897241406,158.8,WWW.GWR.COM
OXFORDSHIRE CC,CORPORATE CORE,REGISTRAR,CATERING PROVISIONS,24/12/2019,6897241292,1.15,WAITROSE 211
OXFORDSHIRE CC,SOCIAL AND COMMUNITY SERVICES,CSS - BANBURY,CATERING PROVISIONS,24/12/2019,6897241446,6,CO-OPERATIVE FOOD
OXFORDSHIRE CC,"CHILDRENS, YOUNG PEOPLE AND FAMILIES",FAMILY SUPPORT 2,CATERING PROVISIONS,24/12/2019,6897241500,27.19,TESCO STORE 2990
OXFORDSHIRE CC,ENVIRONMENT AND ECONOMY,WASTE REDUCTION GEN,"PUBLICITY, PROMOTIONS AND ADVERTISEMENT",24/12/2019,6897241314,3.57,FACEBK QQ3P2PW4B2
OXFORDSHIRE CC,"CHILDRENS, YOUNG PEOPLE AND FAMILIES","	LOOKED AFTER CITY 1",VEHICLE FUEL,24/12/2019,6897241318,37.4,TESCO PAY AT PUMP 3968
OXFORDSHIRE CC,CORPORATE CORE,REGISTRAR,MATERIALS,24/12/2019,6897241258,-203.98,AMZNMKTPLACE AMAZON.CO
OXFORDSHIRE CC,"CHILDRENS, YOUNG PEOPLE AND FAMILIES","	40 THE MOORS",MATERIALS,24/12/2019,6897241452,382.95,ARGOS LTD
OXFORDSHIRE CC,"CHILDRENS, YOUNG PEOPLE AND FAMILIES","	40 THE MOORS",MATERIALS,24/12/2019,6897241434,299,ARGOS LTD
OXFORDSHIRE CC,"CHILDRENS, YOUNG PEOPLE AND FAMILIES","	40 THE MOORS",MATERIALS,24/12/2019,6897241438,-299,ARGOS LTD
OXFORDSHIRE CC,"CHILDRENS, YOUNG PEOPLE AND FAMILIES",THAME E&A HOME,PAYMENT TO GOVERNMENT DEPARTMENTS,24/12/2019,6897241184,13,DISCLOSURE & BARRING
OXFORDSHIRE CC,"CHILDRENS, YOUNG PEOPLE AND FAMILIES",DIDCOT MOVE-ON HOME,MATERIALS,24/12/2019,6897241282,35.05,DIDCOT SPORTS DIRECT
OXFORDSHIRE CC,"CHILDRENS, YOUNG PEOPLE AND FAMILIES",CNTL EARLY HELP-RHIL,LICENCES,24/12/2019,6897241422,154.5,TVLICENSING.CO.UK
OXFORDSHIRE CC,ENVIRONMENT AND ECONOMY,HARD FM,EQUIPMENT,24/12/2019,6897241214,24.39,WILTS ELECTRICAL
OXFORDSHIRE CC,ENVIRONMENT AND ECONOMY,S38 INSPECT & OTHER,PAYMENTS TO TRANSPORT OPERATORS,23/12/2019,6892030438,7.22,THETRAINLINE.COM
OXFORDSHIRE CC,"CHILDRENS, YOUNG PEOPLE AND FAMILIES",EYNSHAM,CATERING PROVISIONS,23/12/2019,6892030508,15.02,CO-OPERATIVE FOOD
OXFORDSHIRE CC,"CHILDRENS, YOUNG PEOPLE AND FAMILIES","	40 THE MOORS",CATERING,23/12/2019,6892030544,25.62,MCDONALDS
OXFORDSHIRE CC,"CHILDRENS, YOUNG PEOPLE AND FAMILIES",WITNEY,VEHICLE FUEL,23/12/2019,6892030330,3.55,TESCO PFS 3418
OXFORDSHIRE CC,"CHILDRENS, YOUNG PEOPLE AND FAMILIES","	40 THE MOORS",TELEPHONE - EQUIPMENT,23/12/2019,6892030542,20,GIFFGAFF
OXFORDSHIRE CC,"CHILDRENS, YOUNG PEOPLE AND FAMILIES","	MALTFIELD HOUSE",CATERING PROVISIONS,23/12/2019,6892030506,7.99,CO-OPERATIVE FOOD
OXFORDSHIRE CC,ENVIRONMENT AND ECONOMY,HOLDING CODE FOR REA,VEHICLE FUEL,23/12/2019,6892030334,5.99,ESSO THAME SERVICE ARE
OXFORDSHIRE CC,"CHILDRENS, YOUNG PEOPLE AND FAMILIES",WITNEY,CATERING PROVISIONS,23/12/2019,6892030328,6.55,SAINSBURYS 0632
OXFORDSHIRE CC,"CHILDRENS, YOUNG PEOPLE AND FAMILIES",THAME E&A HOME,CATERING PROVISIONS,23/12/2019,6892030488,135.05,ASDA SUPERSTORE
OXFORDSHIRE CC,SOCIAL AND COMMUNITY SERVICES,LEAVING CARE NORTH,PAYMENTS TO TRANSPORT OPERATORS,23/12/2019,6892030436,10,GWR DIDCOT PKWY TO
OXFORDSHIRE CC,"CHILDRENS, YOUNG PEOPLE AND FAMILIES","	40 THE MOORS",CATERING PROVISIONS,23/12/2019,6892030566,2.3,TESCO STORE 2788
OXFORDSHIRE CC,"CHILDRENS, YOUNG PEOPLE AND FAMILIES","	40 THE MOORS",CATERING PROVISIONS,23/12/2019,6892030564,15,TESCO STORE 2788
OXFORDSHIRE CC,"CHILDRENS, YOUNG PEOPLE AND FAMILIES","	40 THE MOORS",CATERING PROVISIONS,23/12/2019,6892030562,20,TESCO STORE 2788
OXFORDSHIRE CC,"CHILDRENS, YOUNG PEOPLE AND FAMILIES",THAME E&A HOME,CATERING,23/12/2019,6892030518,30.48,HARVESTER
OXFORDSHIRE CC,SOCIAL AND COMMUNITY SERVICES,CSS WALLINGFORD,MATERIALS,23/12/2019,6892030460,18,HALFORDS 0567
OXFORDSHIRE CC,"CHILDRENS, YOUNG PEOPLE AND FAMILIES",THAME E&A HOME,VEHICLES REPAIRS AND MAINTENANCE,23/12/2019,6892030414,10.98,AUTOPARTS
OXFORDSHIRE CC,SOCIAL AND COMMUNITY SERVICES,DIDCOT MOVE-ON HOME,CATERING PROVISIONS,23/12/2019,6892030434,104.25,SAINSBURYS 2067
OXFORDSHIRE CC,"CHILDRENS, YOUNG PEOPLE AND FAMILIES","	MALTFIELD HOUSE",CATERING PROVISIONS,23/12/2019,6892030538,5.35,WAITROSE 211
OXFORDSHIRE CC,ENVIRONMENT AND ECONOMY,WASTE REDUCTION GEN,"PUBLICITY, PROMOTIONS AND ADVERTISEMENT",23/12/2019,6892030472,20,FACEBK J4SNUPN4B2
OXFORDSHIRE CC,"CHILDRENS, YOUNG PEOPLE AND FAMILIES","	MALTFIELD HOUSE",CATERING,23/12/2019,6892030540,1.69,SHELL WITNEY
OXFORDSHIRE CC,"CHILDRENS, YOUNG PEOPLE AND FAMILIES","	LOOKED AFTER SOUTH",VEHICLE FUEL,23/12/2019,6892030450,58.57,TESCO PAY AT PUMP 3978
OXFORDSHIRE CC,"CHILDRENS, YOUNG PEOPLE AND FAMILIES",THAME E&A HOME,CATERING PROVISIONS,23/12/2019,6892030410,18.79,ASDA SUPERSTORE
OXFORDSHIRE CC,"CHILDRENS, YOUNG PEOPLE AND FAMILIES","	MALTFIELD HOUSE",CATERING PROVISIONS,23/12/2019,6892030480,41.15,SAINSBURYS 2067
OXFORDSHIRE CC,"CHILDRENS, YOUNG PEOPLE AND FAMILIES",THAME E&A HOME,ENTERTAINMENT EXPENSES,23/12/2019,6892030408,10,HOLLYWOOD BOWL
OXFORDSHIRE CC,"CHILDRENS, YOUNG PEOPLE AND FAMILIES","	LOOKED AFTER NORTH",HIRE OF ACCOMMODATION AND FACILITIES,23/12/2019,6892030622,306.26,THISTLE EXPRESS SW
OXFORDSHIRE CC,"CHILDRENS, YOUNG PEOPLE AND FAMILIES","	40 THE MOORS",MATERIALS,23/12/2019,6892030560,100,ARGOS LTD
OXFORDSHIRE CC,"CHILDRENS, YOUNG PEOPLE AND FAMILIES",THAME E&A HOME,ENTERTAINMENT EXPENSES,23/12/2019,6892030416,11.8,HOLLYWOOD BOWL
OXFORDSHIRE CC,"CHILDRENS, YOUNG PEOPLE AND FAMILIES",WITNEY,CATERING PROVISIONS,23/12/2019,6892030326,6,WM MORRISONS STORE
OXFORDSHIRE CC,"CHILDRENS, YOUNG PEOPLE AND FAMILIES",THAME E&A HOME,ENTERTAINMENT EXPENSES,23/12/2019,6892030406,28.06,HOLLYWOOD BOWL
OXFORDSHIRE CC,CORPORATE CORE,HUNTERCOMBE PRISON,MATERIALS,23/12/2019,6892030456,99.99,READING 2483 CURRYS
OXFORDSHIRE CC,CORPORATE CORE,HUNTERCOMBE PRISON,MATERIALS,23/12/2019,6892030454,435.98,READING 2483 CURRYS
OXFORDSHIRE CC,"CHILDRENS, YOUNG PEOPLE AND FAMILIES",THAME E&A HOME,CATERING PROVISIONS,23/12/2019,6892030412,10.89,ASDA SUPERSTORE
OXFORDSHIRE CC,"CHILDRENS, YOUNG PEOPLE AND FAMILIES",WITNEY,CATERING PROVISIONS,23/12/2019,6892030322,73,SAINSBURYS 0632
OXFORDSHIRE CC,"CHILDRENS, YOUNG PEOPLE AND FAMILIES",WITNEY,CATERING PROVISIONS,23/12/2019,6892030324,31.55,SAINSBURYS 0632
OXFORDSHIRE CC,"CHILDRENS, YOUNG PEOPLE AND FAMILIES",DIDCOT MOVE-ON HOME,MATERIALS,23/12/2019,6892030424,4,THE WORKS
OXFORDSHIRE CC,"CHILDRENS, YOUNG PEOPLE AND FAMILIES",DIDCOT MOVE-ON HOME,CATERING PROVISIONS,23/12/2019,6892030422,24.7,SAINSBURYS SACAT 2067
OXFORDSHIRE CC,"CHILDRENS, YOUNG PEOPLE AND FAMILIES",DIDCOT MOVE-ON HOME,CATERING PROVISIONS,23/12/2019,6892030420,45.1,SAINSBURYS SACAT 2067
OXFORDSHIRE CC,"CHILDRENS, YOUNG PEOPLE AND FAMILIES",DIDCOT MOVE-ON HOME,DRUGS AND MEDICAL SUPPLIES,23/12/2019,6892030428,6.5,SUPERDRUG STORES PLC
OXFORDSHIRE CC,"CHILDRENS, YOUNG PEOPLE AND FAMILIES",DIDCOT MOVE-ON HOME,MATERIALS,23/12/2019,6892030426,14.99,CURRYS SUPERSTORE2460
OXFORDSHIRE CC,"CHILDRENS, YOUNG PEOPLE AND FAMILIES",THAME E&A HOME,MATERIALS,23/12/2019,6892030404,8,SPORTSDIRECT 218
OXFORDSHIRE CC,"CHILDRENS, YOUNG PEOPLE AND FAMILIES",THAME E&A HOME,MATERIALS,23/12/2019,6892030402,7.98,SPORTSDIRECT 218
OXFORDSHIRE CC,"CHILDRENS, YOUNG PEOPLE AND FAMILIES",THAME E&A HOME,MATERIALS,23/12/2019,6892030400,20,J D SPORTS
OXFORDSHIRE CC,"CHILDRENS, YOUNG PEOPLE AND FAMILIES",THAME E&A HOME,MATERIALS,23/12/2019,6892030398,70,J D SPORTS
OXFORDSHIRE CC,"CHILDRENS, YOUNG PEOPLE AND FAMILIES","	40 THE MOORS",MATERIALS,23/12/2019,6892030556,43.99,JD SPORTS INTERNET
OXFORDSHIRE CC,"CHILDRENS, YOUNG PEOPLE AND FAMILIES","	40 THE MOORS",CATERING,23/12/2019,6892030552,19.48,DOMINOS
OXFORDSHIRE CC,"CHILDRENS, YOUNG PEOPLE AND FAMILIES","	40 THE MOORS",CATERING PROVISIONS,23/12/2019,6892030548,4.55,SAINSBURYS SAC2305SAC
OXFORDSHIRE CC,"CHILDRENS, YOUNG PEOPLE AND FAMILIES","	40 THE MOORS",MATERIALS,23/12/2019,6892030554,12,J D SPORTS
OXFORDSHIRE CC,SOCIAL AND COMMUNITY SERVICES,RESIDENTIAL STRATEGY,CATERING PROVISIONS,23/12/2019,6892030360,3.5,SAINSBURYS SACAT 0632
OXFORDSHIRE CC,"CHILDRENS, YOUNG PEOPLE AND FAMILIES",WITNEY,CATERING PROVISIONS,23/12/2019,6892030378,13.55,SAINSBURYS SACAT 0632
OXFORDSHIRE CC,SOCIAL AND COMMUNITY SERVICES,DIDCOT MOVE-ON HOME,CATERING PROVISIONS,23/12/2019,6892030372,11.55,TESCO STORE 2413
OXFORDSHIRE CC,SOCIAL AND COMMUNITY SERVICES,DIDCOT MOVE-ON HOME,MATERIALS,23/12/2019,6892030376,72.33,B & M RETAIL
OXFORDSHIRE CC,"CHILDRENS, YOUNG PEOPLE AND FAMILIES","	40 THE MOORS",CATERING,23/12/2019,6892030550,3.05,COSTA TEMPLAR SQUARE O
OXFORDSHIRE CC,"CHILDRENS, YOUNG PEOPLE AND FAMILIES","	LOOKED AFTER NORTH",VEHICLE FUEL,23/12/2019,6892030600,21.57,SHELL DUCKLINGTON
OXFORDSHIRE CC,"CHILDRENS, YOUNG PEOPLE AND FAMILIES",WITNEY,DRUGS AND MEDICAL SUPPLIES,23/12/2019,6892030318,32.4,"BOOTS,WITNEY"
OXFORDSHIRE CC,ENVIRONMENT AND ECONOMY,LIBRARY SERV MANAGER,MATERIALS,23/12/2019,6892030482,23.1,AMZNMKTPLACE
OXFORDSHIRE CC,SOCIAL AND COMMUNITY SERVICES,DIDCOT MOVE-ON HOME,MATERIALS,23/12/2019,6892030374,20,IZ  FEATHER AND NEST L
OXFORDSHIRE CC,"CHILDRENS, YOUNG PEOPLE AND FAMILIES",UASC POST 18,HIRED AND CONTRACTED SERVICES,23/12/2019,6892030500,69.5,BIG YELLOW S S OXFORD
OXFORDSHIRE CC,"CHILDRENS, YOUNG PEOPLE AND FAMILIES",WITNEY,CLOTHING AND UNIFORMS,23/12/2019,6892030380,100,NEXT RETAIL LTD
OXFORDSHIRE CC,"CHILDRENS, YOUNG PEOPLE AND FAMILIES","	LOOKED AFTER NORTH",HIRE OF ACCOMMODATION AND FACILITIES,23/12/2019,6892030620,45,THISTLE EXPRESS SW
OXFORDSHIRE CC,"CHILDRENS, YOUNG PEOPLE AND FAMILIES",WITNEY,MATERIALS,23/12/2019,6892030382,11,POUNDLAND LTD
OXFORDSHIRE CC,"CHILDRENS, YOUNG PEOPLE AND FAMILIES","	LOOKED AFTER NORTH",PAYMENTS TO TRANSPORT OPERATORS,23/12/2019,6892030362,10.43,THETRAINLINE.COM
OXFORDSHIRE CC,"CHILDRENS, YOUNG PEOPLE AND FAMILIES",WITNEY,CLOTHING AND UNIFORMS,23/12/2019,6892030320,14.97,NEW LOOK
OXFORDSHIRE CC,"CHILDRENS, YOUNG PEOPLE AND FAMILIES",WITNEY,CATERING PROVISIONS,23/12/2019,6892030340,8,SAINSBURYS SACAT 0632
OXFORDSHIRE CC,"CHILDRENS, YOUNG PEOPLE AND FAMILIES",THAME E&A HOME,CATERING PROVISIONS,23/12/2019,6892030354,15.3,SAINSBURYS 2096
OXFORDSHIRE CC,CORPORATE CORE,"	LEGAL SERVICES",LEGAL COSTS,23/12/2019,6892030512,11,OXFORDSHIRE CC MOTO1
OXFORDSHIRE CC,"CHILDRENS, YOUNG PEOPLE AND FAMILIES",THAME E&A HOME,ENTERTAINMENT EXPENSES,23/12/2019,6892030486,2.5,HOLLYWOOD BOWL
OXFORDSHIRE CC,"CHILDRENS, YOUNG PEOPLE AND FAMILIES",FAMILY SUPPORT 2,PAYMENTS TO TRANSPORT OPERATORS,23/12/2019,6892030648,25.2,WWW.GWR.COM
OXFORDSHIRE CC,"CHILDRENS, YOUNG PEOPLE AND FAMILIES","	RIVERSIDE CENTRE",POSTAGE AND DELIVERY,23/12/2019,6892030514,6.3,THE POST OFFICE
OXFORDSHIRE CC,"CHILDRENS, YOUNG PEOPLE AND FAMILIES",NORTH FSS- BANBURY,PAYMENT TO GOVERNMENT DEPARTMENTS,23/12/2019,6892030418,14,GEN REGISTER OFFICE
OXFORDSHIRE CC,"CHILDRENS, YOUNG PEOPLE AND FAMILIES",THAME E&A HOME,ENTERTAINMENT EXPENSES,23/12/2019,6892030484,18.03,HOLLYWOOD BOWL
OXFORDSHIRE CC,SOCIAL AND COMMUNITY SERVICES,LOOKED AFTER NORTH,ENTERTAINMENT EXPENSES,23/12/2019,6892030314,9.6,LASERFORCE
OXFORDSHIRE CC,"CHILDRENS, YOUNG PEOPLE AND FAMILIES","	LEAVING CARE NORTH",CATERING,23/12/2019,6892030452,5.18,JAVA & CO
OXFORDSHIRE CC,"CHILDRENS, YOUNG PEOPLE AND FAMILIES",FPT SOUTH/VALE,PAYMENTS TO TRANSPORT OPERATORS,23/12/2019,6892030592,15.75,WAITROSE 211
OXFORDSHIRE CC,SOCIAL AND COMMUNITY SERVICES,LOOKED AFTER NORTH,OTHER TRANSPORT ARRANGEMENTS,23/12/2019,6892030316,4.5,NCP PARKPASS
OXFORDSHIRE CC,"CHILDRENS, YOUNG PEOPLE AND FAMILIES",HOUSE PROJECT,OTHER TRANSPORT ARRANGEMENTS,23/12/2019,6892030602,7.6,STGCOACH/CTYLINK
OXFORDSHIRE CC,"CHILDRENS, YOUNG PEOPLE AND FAMILIES",HOUSE PROJECT,OTHER TRANSPORT ARRANGEMENTS,23/12/2019,6892030604,4,3C_ OCC PR WATER EATON
OXFORDSHIRE CC,SOCIAL AND COMMUNITY SERVICES,LOOKED AFTER NORTH,ENTERTAINMENT EXPENSES,23/12/2019,6892030312,22,LASERFORCE
OXFORDSHIRE CC,"CHILDRENS, YOUNG PEOPLE AND FAMILIES","	MANAGEMENT & ADMIN",MATERIALS,23/12/2019,6892030336,39.9,AMAZON.CO.UK 4214K4D75
OXFORDSHIRE CC,"CHILDRENS, YOUNG PEOPLE AND FAMILIES",CNTL EARLY HELP-BRTN,OTHER TRANSPORT ARRANGEMENTS,23/12/2019,6892030574,4.3,STGCOACH/CTYLINK
OXFORDSHIRE CC,"CHILDRENS, YOUNG PEOPLE AND FAMILIES","	LOOKED AFTER NORTH",CATERING,23/12/2019,6892030366,11.17,MCDONALDS
OXFORDSHIRE CC,"CHILDRENS, YOUNG PEOPLE AND FAMILIES",CNTL EARLY HELP-BRTN,CLOTHING AND UNIFORMS,23/12/2019,6892030578,10,VICTORIAS SECRET UK LT
OXFORDSHIRE CC,"CHILDRENS, YOUNG PEOPLE AND FAMILIES",CNTL EARLY HELP-BRTN,CLOTHING AND UNIFORMS,23/12/2019,6892030580,3.04,H & M
OXFORDSHIRE CC,"CHILDRENS, YOUNG PEOPLE AND FAMILIES",CNTL EARLY HELP-RHIL,SUBSCRIPTIONS,23/12/2019,6892030468,27.51,AMFBOWLING.CO.UK
OXFORDSHIRE CC,"CHILDRENS, YOUNG PEOPLE AND FAMILIES",CNTL EARLY HELP-BRTN,CLOTHING AND UNIFORMS,23/12/2019,6892030576,9,VICTORIAS SECRET UK LT
OXFORDSHIRE CC,SOCIAL AND COMMUNITY SERVICES,LEAVING CARE NORTH,CATERING PROVISIONS,23/12/2019,6892030522,40,WM MORRISONS STORE
OXFORDSHIRE CC,"CHILDRENS, YOUNG PEOPLE AND FAMILIES",CNTL EARLY HELP-BRTN,CLOTHING AND UNIFORMS,23/12/2019,6892030582,26,PRIMARK 440
OXFORDSHIRE CC,ENVIRONMENT AND ECONOMY,HARD FM,HARDWARE AND CROCKERY,23/12/2019,6892030352,26.88,WICKES OXFORD
OXFORDSHIRE CC,ENVIRONMENT AND ECONOMY,DRIVEN,HIRE OF ACCOMMODATION AND FACILITIES,23/12/2019,6892030596,210.95,HOTEL ON BOOKING.COM
OXFORDSHIRE CC,"CHILDRENS, YOUNG PEOPLE AND FAMILIES",EYNSHAM,CATERING,23/12/2019,6892030590,32.8,HACKETT S FOOD AND DRI
OXFORDSHIRE CC,SOCIAL AND COMMUNITY SERVICES,CSS WALLINGFORD,CATERING PROVISIONS,23/12/2019,6892030458,20.85,LIDL GB WALLINGFORD
OXFORDSHIRE CC,"CHILDRENS, YOUNG PEOPLE AND FAMILIES",NTH FAM SUPRT-BCSTR,MATERIALS,23/12/2019,6892030442,176.99,CURRYS ONLINE
OXFORDSHIRE CC,"CHILDRENS, YOUNG PEOPLE AND FAMILIES",KEEP ON CARING,OTHER EXPENSES,23/12/2019,6892030368,7,RICKS CAFE
OXFORDSHIRE CC,"CHILDRENS, YOUNG PEOPLE AND FAMILIES",CSS - DIDCOT,CATERING,23/12/2019,6892030470,31.4,CHURCHILLS
OXFORDSHIRE CC,SOCIAL AND COMMUNITY SERVICES,DIDCOT MOVE-ON HOME,MATERIALS,23/12/2019,6892030432,38.99,MENKIND
OXFORDSHIRE CC,"CHILDRENS, YOUNG PEOPLE AND FAMILIES",DIDCOT MOVE-ON HOME,CATERING PROVISIONS,23/12/2019,6892030568,11.15,SAINSBURYS SACAT 2067
OXFORDSHIRE CC,SOCIAL AND COMMUNITY SERVICES,CSS BICESTER,MATERIALS,23/12/2019,6892030338,15,POUNDLAND LTD 1505
OXFORDSHIRE CC,SOCIAL AND COMMUNITY SERVICES,DIDCOT MOVE-ON HOME,CATERING PROVISIONS,23/12/2019,6892030430,5.5,WILKO RETAIL LIMITED
OXFORDSHIRE CC,SOCIAL AND COMMUNITY SERVICES,LEAVING CARE NORTH,PAYMENT TO GOVERNMENT DEPARTMENTS,23/12/2019,6892030520,300,OXFORD UNIV HOSPITAL
OXFORDSHIRE CC,"CHILDRENS, YOUNG PEOPLE AND FAMILIES","	LEAVING CARE CITY 1",BIRTHDAY ALLOWANCE,23/12/2019,6892030370,40,J D SPORTS
OXFORDSHIRE CC,"CHILDRENS, YOUNG PEOPLE AND FAMILIES","	LOOKED AFTER CITY 1",CATERING,23/12/2019,6892030446,2.85,CAFFE NERO OXFORD HEAD
OXFORDSHIRE CC,ENVIRONMENT AND ECONOMY,COUNTY LIBRARY,GENERAL MAINTENANCE,23/12/2019,6892030356,809.86,WOLSELEY UK
OXFORDSHIRE CC,"CHILDRENS, YOUNG PEOPLE AND FAMILIES","	LOOKED AFTER CITY 1",CATERING,23/12/2019,6892030478,6.75,CAFFE NERO OXFORD HEAD
OXFORDSHIRE CC,"CHILDRENS, YOUNG PEOPLE AND FAMILIES",CNTL EARLY HELP-RHIL,CATERING PROVISIONS,23/12/2019,6892030464,20.1,TESCO STORE 2994
OXFORDSHIRE CC,"CHILDRENS, YOUNG PEOPLE AND FAMILIES","	FAMILY SUPPORT S'TH2",ENTERTAINMENT EXPENSES,23/12/2019,6892030310,34,WWW.NAMCOFUNSCAPE.
OXFORDSHIRE CC,"CHILDRENS, YOUNG PEOPLE AND FAMILIES",CNTL EARLY HELP-RHIL,DRUGS AND MEDICAL SUPPLIES,23/12/2019,6892030466,40,BOOTS THE CHEMIST
OXFORDSHIRE CC,SOCIAL AND COMMUNITY SERVICES,CSS - OXFORD,CATERING PROVISIONS,23/12/2019,6892030476,11.52,ALDI STORES 775-142
OXFORDSHIRE CC,"CHILDRENS, YOUNG PEOPLE AND FAMILIES","	LOOKED AFTER CITY 2",OTHER TRANSPORT ARRANGEMENTS,23/12/2019,6892030502,23.8,MAIDSTONE TAXI CO
OXFORDSHIRE CC,"CHILDRENS, YOUNG PEOPLE AND FAMILIES","	LOOKED AFTER NORTH",PAYMENTS TO TRANSPORT OPERATORS,23/12/2019,6892030364,6.8,BANBURY SSTP
OXFORDSHIRE CC,SOCIAL AND COMMUNITY SERVICES,"	SHARED LIVES",CATERING PROVISIONS,23/12/2019,6892030594,16.3,WAITROSE 211
OXFORDSHIRE CC,"CHILDRENS, YOUNG PEOPLE AND FAMILIES",KINGFISHER,OTHER TRANSPORT ARRANGEMENTS,23/12/2019,6892030526,3,WESTGATE OXFORD CAR PA
OXFORDSHIRE CC,"CHILDRENS, YOUNG PEOPLE AND FAMILIES","	LOOKED AFTER SOUTH",CATERING PROVISIONS,23/12/2019,6892030448,5.87,WAITROSE 211
OXFORDSHIRE CC,"CHILDRENS, YOUNG PEOPLE AND FAMILIES",KINGFISHER,CATERING,23/12/2019,6892030524,1.95,COSTA COFFEE
OXFORDSHIRE CC,"CHILDRENS, YOUNG PEOPLE AND FAMILIES","	LOOKED AFTER CITY 2",PAYMENTS TO TRANSPORT OPERATORS,23/12/2019,6892030504,9.7,SE TONBRIDGE SST
OXFORDSHIRE CC,CORPORATE CORE,,"SUPPLIES, STATIONERY AND MATERIALS",23/12/2019,6892030608,1.82,LYRECO UK LTD
OXFORDSHIRE CC,CORPORATE CORE,,"SUPPLIES, STATIONERY AND MATERIALS",23/12/2019,6892030614,43.85,LYRECO UK LTD
OXFORDSHIRE CC,CORPORATE CORE,,"SUPPLIES, STATIONERY AND MATERIALS",23/12/2019,6892030612,24.12,LYRECO UK LTD
OXFORDSHIRE CC,CORPORATE CORE,,"SUPPLIES, STATIONERY AND MATERIALS",23/12/2019,6892030610,28.8,LYRECO UK LTD
OXFORDSHIRE CC,CORPORATE CORE,,"SUPPLIES, STATIONERY AND MATERIALS",23/12/2019,6892030616,51.97,LYRECO UK LTD
OXFORDSHIRE CC,CORPORATE CORE,,"SUPPLIES, STATIONERY AND MATERIALS",23/12/2019,6892030606,48.84,LYRECO UK LTD
OXFORDSHIRE CC,CORPORATE CORE,,"SUPPLIES, STATIONERY AND MATERIALS",23/12/2019,6892030618,106.34,LYRECO UK LTD
OXFORDSHIRE CC,"CHILDRENS, YOUNG PEOPLE AND FAMILIES","	LOOKED AFTER NORTH",OTHER TRANSPORT ARRANGEMENTS,23/12/2019,6892030598,5.5,3C_ CP PLUS - ROYAL SU
OXFORDSHIRE CC,SOCIAL AND COMMUNITY SERVICES,CSS WALLINGFORD,CATERING PROVISIONS,23/12/2019,6892030394,4.9,WAITROSE 675
OXFORDSHIRE CC,"CHILDRENS, YOUNG PEOPLE AND FAMILIES",EYNSHAM,CATERING PROVISIONS,23/12/2019,6892030588,253.91,TESCO STORES 2008
OXFORDSHIRE CC,CORPORATE CORE,"	MANAGEMENT & ADMIN",PAYMENTS TO TRANSPORT OPERATORS,23/12/2019,6892030494,40,OYSTER AUTO-TOP UP
OXFORDSHIRE CC,"CHILDRENS, YOUNG PEOPLE AND FAMILIES","	40 THE MOORS",MATERIALS,23/12/2019,6892030558,39.99,ARGOS LTD
OXFORDSHIRE CC,"CHILDRENS, YOUNG PEOPLE AND FAMILIES",THAME E&A HOME,MATERIALS,23/12/2019,6892030516,16.59,AMZNMKTPLACE AMAZON.CO
OXFORDSHIRE CC,ENVIRONMENT AND ECONOMY,"	ROW MAINT",VEHICLE FUEL,23/12/2019,6892030474,20,HOPCROFTS HOLT SER
OXFORDSHIRE CC,SOCIAL AND COMMUNITY SERVICES,RESIDENTIAL STRATEGY,CLOTHING AND UNIFORMS,23/12/2019,6892030358,27.7,PRIMARK 693
OXFORDSHIRE CC,"CHILDRENS, YOUNG PEOPLE AND FAMILIES","	FAM SUPP CITY 1",FURNITURE,23/12/2019,6892030390,15.95,DUNELM
OXFORDSHIRE CC,ENVIRONMENT AND ECONOMY,HARD FM,OTHER TRANSPORT ARRANGEMENTS,23/12/2019,6892030350,3.7,NCP BANBURY MARLBOROUG
OXFORDSHIRE CC,ENVIRONMENT AND ECONOMY,HARD FM,EQUIPMENT,23/12/2019,6892030348,10.43,W F SENATE
OXFORDSHIRE CC,ENVIRONMENT AND ECONOMY,THE OXFORDSHIRE MUSEUM - SITE,MATERIALS,20/12/2019,6884420450,5.99,AMZNMKTPLACE
OXFORDSHIRE CC,SHARED SERVICES,CSC SUPP & SERVICES,MATERIALS,20/12/2019,6884420618,29.99,AMZNMKTPLACE
OXFORDSHIRE CC,"CHILDRENS, YOUNG PEOPLE AND FAMILIES",NTH EARLY HELP-BCSTR,CATERING PROVISIONS,20/12/2019,6884420288,9.36,MILK&MORE
OXFORDSHIRE CC,SOCIAL AND COMMUNITY SERVICES,"	OPERATIONAL COSTS",CATERING,20/12/2019,6884420540,331.11,PIZZA EXPRESS
OXFORDSHIRE CC,CORPORATE CORE,CENTRAL BUYING TEAM,VEHICLE FUEL,20/12/2019,6884420622,18,TESCO PFS 3700
OXFORDSHIRE CC,ENVIRONMENT AND ECONOMY,HARD FM,CATERING PROVISIONS,20/12/2019,6884420162,10.18,CO-OPERATIVE FOOD
OXFORDSHIRE CC,"CHILDRENS, YOUNG PEOPLE AND FAMILIES",THAME E&A HOME,CATERING,20/12/2019,6884420438,100.2,NANDOS AYLESBURY
OXFORDSHIRE CC,ENVIRONMENT AND ECONOMY,HARD FM,MATERIALS,20/12/2019,6884420166,34.99,AMZNMKTPLACE
OXFORDSHIRE CC,"CHILDRENS, YOUNG PEOPLE AND FAMILIES","	LOOKED AFTER CITY 1",OTHER EXPENSES,20/12/2019,6884420158,10,WM MORRISONS STORE
OXFORDSHIRE CC,"CHILDRENS, YOUNG PEOPLE AND FAMILIES","	LOOKED AFTER SOUTH",VEHICLE FUEL,20/12/2019,6884420630,21.08,TESCO PFS 3700
OXFORDSHIRE CC,"CHILDRENS, YOUNG PEOPLE AND FAMILIES",THAME E&A HOME,ENTERTAINMENT EXPENSES,20/12/2019,6884420590,16.5,ROGUE BOWLING
OXFORDSHIRE CC,"CHILDRENS, YOUNG PEOPLE AND FAMILIES",THAME E&A HOME,ENTERTAINMENT EXPENSES,20/12/2019,6884420254,43.35,ROGUE BOWLING
OXFORDSHIRE CC,"CHILDRENS, YOUNG PEOPLE AND FAMILIES",DEPUTY DIRECTOR &MAN,MATERIALS,20/12/2019,6884420280,37.57,AMAZON.CO.UK CC6C26T75
OXFORDSHIRE CC,CORPORATE CORE,OPERATIONS,"SUPPLIES, STATIONERY AND MATERIALS",20/12/2019,6884420380,7.44,AMAZON.CO.UK U39F71365
OXFORDSHIRE CC,"CHILDRENS, YOUNG PEOPLE AND FAMILIES",EYNSHAM,CATERING PROVISIONS,20/12/2019,6884420578,7.34,CO-OPERATIVE FOOD
OXFORDSHIRE CC,"CHILDRENS, YOUNG PEOPLE AND FAMILIES","	40 THE MOORS",CATERING PROVISIONS,20/12/2019,6884420456,117.98,SAINSBURYS 0631
OXFORDSHIRE CC,"CHILDRENS, YOUNG PEOPLE AND FAMILIES","	LOOKED AFTER CITY 2",PAYMENTS TO TRANSPORT OPERATORS,20/12/2019,6884420404,6.6,SE TONBRIDGE SST
OXFORDSHIRE CC,"CHILDRENS, YOUNG PEOPLE AND FAMILIES",UASC 16&17,"SUPPLIES, STATIONERY AND MATERIALS",20/12/2019,6884420156,12.66,AMAZON.CO.UK N72E92EQ5
OXFORDSHIRE CC,"CHILDRENS, YOUNG PEOPLE AND FAMILIES","	40 THE MOORS",OTHER EXPENSES,20/12/2019,6884420458,20,ARGOS KIDLINGTON INSID
OXFORDSHIRE CC,CORPORATE CORE,"	COMMUNICATIONS","SUPPLIES, STATIONERY AND MATERIALS",20/12/2019,6884420296,349,EB  WORKSHOPS ARE BEAU
OXFORDSHIRE CC,"CHILDRENS, YOUNG PEOPLE AND FAMILIES",THAME E&A HOME,CATERING PROVISIONS,20/12/2019,6884420258,1.39,MARTIN MCCOLL
OXFORDSHIRE CC,"CHILDRENS, YOUNG PEOPLE AND FAMILIES",THAME E&A HOME,DRUGS AND MEDICAL SUPPLIES,20/12/2019,6884420260,2.5,"BOOTS,THAME"
OXFORDSHIRE CC,CORPORATE CORE,LIBRARY COLLECTIONS,"BOOKS, DVDS AND CDS",20/12/2019,6884420268,"15,599.21",OVERDRIVE DIST
OXFORDSHIRE CC,"CHILDRENS, YOUNG PEOPLE AND FAMILIES","	LOOKED AFTER CITY 2",CATERING PROVISIONS,20/12/2019,6884420192,147.48,ASDA SUPERSTORE
OXFORDSHIRE CC,SOCIAL AND COMMUNITY SERVICES,DIDCOT MOVE-ON HOME,CATERING,20/12/2019,6884420188,9.3,SGP PROPERTY AND FACIL
OXFORDSHIRE CC,CORPORATE CORE,REGISTRAR,OTHER TRANSPORT ARRANGEMENTS,20/12/2019,6884420246,7.43,PARCEL2GO.COM LTD
OXFORDSHIRE CC,"CHILDRENS, YOUNG PEOPLE AND FAMILIES",WITNEY,CATERING,20/12/2019,6884420144,3.45,COSTA COFFEE ABINGDON
OXFORDSHIRE CC,ENVIRONMENT AND ECONOMY,HARD FM,HARDWARE AND CROCKERY,20/12/2019,6884420174,54.1,B & Q 1062
OXFORDSHIRE CC,"CHILDRENS, YOUNG PEOPLE AND FAMILIES","	LOOKED AFTER CITY 1",CATERING,20/12/2019,6884420332,8.16,MCDONALDS
OXFORDSHIRE CC,ENTERPRISEVC,VOXY,CATERING PROVISIONS,20/12/2019,6884420244,10.5,SAINSBURYS SACAT 0730
OXFORDSHIRE CC,"CHILDRENS, YOUNG PEOPLE AND FAMILIES",THAME E&A HOME,CATERING,20/12/2019,6884420586,13.7,COSTA COFFEE 43043295
OXFORDSHIRE CC,"CHILDRENS, YOUNG PEOPLE AND FAMILIES",FAMILY SUPPORT 2,PAYMENTS TO TRANSPORT OPERATORS,20/12/2019,6884420566,30,RAILCARD.CO.UK
OXFORDSHIRE CC,"CHILDRENS, YOUNG PEOPLE AND FAMILIES",EYNSHAM,CATERING PROVISIONS,20/12/2019,6884420534,9.3,TESCO STORE 2064
OXFORDSHIRE CC,"CHILDRENS, YOUNG PEOPLE AND FAMILIES",CNTL EARLY HELP-BRTN,CATERING,20/12/2019,6884420550,7.68,MCDONALDS
OXFORDSHIRE CC,"CHILDRENS, YOUNG PEOPLE AND FAMILIES","	LOOKED AFTER CITY 2",PAYMENTS TO TRANSPORT OPERATORS,20/12/2019,6884420402,53.5,GWR DIDCOT PKWY TO
OXFORDSHIRE CC,"CHILDRENS, YOUNG PEOPLE AND FAMILIES",BULLINGDON PRISON,"SUPPLIES, STATIONERY AND MATERIALS",20/12/2019,6884420558,21.99,AMZNMKTPLACE AMAZON.CO
OXFORDSHIRE CC,"CHILDRENS, YOUNG PEOPLE AND FAMILIES",BULLINGDON PRISON,"SUPPLIES, STATIONERY AND MATERIALS",20/12/2019,6884420562,4.79,AMZNMKTPLACE AMAZON.CO
OXFORDSHIRE CC,"CHILDRENS, YOUNG PEOPLE AND FAMILIES","	RIVERSIDE CENTRE",MATERIALS,20/12/2019,6884420210,2.99,DECATHLON UK LTD
OXFORDSHIRE CC,CORPORATE CORE,"	COMMUNICATIONS",MATERIALS,20/12/2019,6884420292,20.82,LINKEDIN-504 6578253
OXFORDSHIRE CC,"CHILDRENS, YOUNG PEOPLE AND FAMILIES","	MUSIC UNALLOCABLE",PROFESSIONAL SUBSCRIPTIONS,20/12/2019,6884420388,51.47,PPL PRS LTD
OXFORDSHIRE CC,"CHILDRENS, YOUNG PEOPLE AND FAMILIES","	LOOKED AFTER CITY 2",OTHER TRANSPORT ARRANGEMENTS,20/12/2019,6884420408,12.6,APCOA CONNECT - FGW
OXFORDSHIRE CC,"CHILDRENS, YOUNG PEOPLE AND FAMILIES",NORTH FSS- BANBURY,CATERING PROVISIONS,20/12/2019,6884420416,29.81,SAINSBURYS 0632
OXFORDSHIRE CC,"CHILDRENS, YOUNG PEOPLE AND FAMILIES",EYNSHAM,CATERING PROVISIONS,20/12/2019,6884420420,5.2,SAINSBURYS 0632
OXFORDSHIRE CC,SOCIAL AND COMMUNITY SERVICES,DIDOCT LIBRARY,"SUPPLIES, STATIONERY AND MATERIALS",20/12/2019,6884420554,4.7,SAINSBURYS SACAT 2067
OXFORDSHIRE CC,"CHILDRENS, YOUNG PEOPLE AND FAMILIES","	LOOKED AFTER CITY 1",CATERING PROVISIONS,20/12/2019,6884420328,7.99,WELCOME BREAK STARBUCK
OXFORDSHIRE CC,SOCIAL AND COMMUNITY SERVICES,LEAVING CARE NORTH,IT SOFTWARE,20/12/2019,6884420466,28,I-CAB.CO.UK
OXFORDSHIRE CC,"CHILDRENS, YOUNG PEOPLE AND FAMILIES","	LOOKED AFTER CITY 2",PAYMENTS TO TRANSPORT OPERATORS,20/12/2019,6884420266,107.75,THETRAINLINE.COM
OXFORDSHIRE CC,CORPORATE CORE,LIBRARY COLLECTIONS,"NEWSPAPERS, PERIODICALS AND PUBLICATIONS",20/12/2019,6884420378,428,SING TAO/UK/LTD
OXFORDSHIRE CC,"CHILDRENS, YOUNG PEOPLE AND FAMILIES",CNTL EARLY HELP-RHIL,MATERIALS,20/12/2019,6884420240,39.97,ASDA GEORGE COM LEEDS
OXFORDSHIRE CC,SOCIAL AND COMMUNITY SERVICES,"	MUSEUMS COLLECTIONS",OTHER SERVICES,20/12/2019,6884420480,507.96,G RYDER & CO LTD
OXFORDSHIRE CC,"CHILDRENS, YOUNG PEOPLE AND FAMILIES","	LOOKED AFTER NORTH",HIRE OF ACCOMMODATION AND FACILITIES,20/12/2019,6884420300,65,LAURELS GUESTHOUSE
OXFORDSHIRE CC,"CHILDRENS, YOUNG PEOPLE AND FAMILIES",EYNSHAM,FURNITURE,20/12/2019,6884420138,19,SAINSBURYS SACAT 0632
OXFORDSHIRE CC,"CHILDRENS, YOUNG PEOPLE AND FAMILIES",FAMILY SUPPORT 2,PAYMENTS TO TRANSPORT OPERATORS,20/12/2019,6884420654,6.8,WWW.GWR.COM
OXFORDSHIRE CC,"CHILDRENS, YOUNG PEOPLE AND FAMILIES",CNTL EARLY HELP-BRTN,CATERING,20/12/2019,6884420546,10.5,SAINSBURYS 0600
OXFORDSHIRE CC,"CHILDRENS, YOUNG PEOPLE AND FAMILIES","	LOOKED AFTER SOUTH",HIRE OF ACCOMMODATION AND FACILITIES,20/12/2019,6884420126,70,THE GEORGE HOTEL
OXFORDSHIRE CC,SOCIAL AND COMMUNITY SERVICES,"	KINGFISHER",CATERING PROVISIONS,20/12/2019,6884420338,5.45,COSTA THAME
OXFORDSHIRE CC,"CHILDRENS, YOUNG PEOPLE AND FAMILIES","	LOOKED AFTER SOUTH",OTHER TRANSPORT ARRANGEMENTS,20/12/2019,6884420626,3.5,HEADINGTON CAR PARK
OXFORDSHIRE CC,SOCIAL AND COMMUNITY SERVICES,LEAVING CARE NORTH,IT SOFTWARE,20/12/2019,6884420462,28,I-CAB.CO.UK
OXFORDSHIRE CC,SOCIAL AND COMMUNITY SERVICES,CSS BICESTER,CATERING PROVISIONS,20/12/2019,6884420184,1.3,MARTIN MCCOLL
OXFORDSHIRE CC,SOCIAL AND COMMUNITY SERVICES,CSS - OXFORD,CATERING PROVISIONS,20/12/2019,6884420324,30.98,TESCO STORE 2994
OXFORDSHIRE CC,CORPORATE CORE,HEALTH & SAFETY,TRAINING RELATED EXPENDITURE,20/12/2019,6884420432,108,EEF LTD
OXFORDSHIRE CC,"CHILDRENS, YOUNG PEOPLE AND FAMILIES","	RIVERSIDE CENTRE",MATERIALS,20/12/2019,6884420202,2.64,AMZNMKTPLACE
OXFORDSHIRE CC,"CHILDRENS, YOUNG PEOPLE AND FAMILIES","	RIVERSIDE CENTRE",MATERIALS,20/12/2019,6884420206,12.99,AMAZON.CO.UK 732XV16O5
OXFORDSHIRE CC,"CHILDRENS, YOUNG PEOPLE AND FAMILIES",SWINDON,CATERING PROVISIONS,20/12/2019,6884420284,59.97,W M MORRISON STORE
OXFORDSHIRE CC,"CHILDRENS, YOUNG PEOPLE AND FAMILIES","	40 THE MOORS",CATERING PROVISIONS,20/12/2019,6884420526,104.4,SAINSBURYS 0631
OXFORDSHIRE CC,"CHILDRENS, YOUNG PEOPLE AND FAMILIES",STH EARLY HELP-ABNDN,CLOTHING AND UNIFORMS,20/12/2019,6884420216,100,WH SMITH
OXFORDSHIRE CC,SOCIAL AND COMMUNITY SERVICES,"	MTFC",ENTERTAINMENT EXPENSES,20/12/2019,6884420472,5.39,THE PARTYMAN CO
OXFORDSHIRE CC,"CHILDRENS, YOUNG PEOPLE AND FAMILIES",WITNEY,CATERING PROVISIONS,20/12/2019,6884420226,16.8,SAINSBURYS 0632
OXFORDSHIRE CC,"CHILDRENS, YOUNG PEOPLE AND FAMILIES","	LOOKED AFTER CITY 1",CATERING,20/12/2019,6884420334,5.57,MCDONALDS
OXFORDSHIRE CC,"CHILDRENS, YOUNG PEOPLE AND FAMILIES",STH EARLY HELP-ABNDN,FURNITURE,20/12/2019,6884420212,99.99,AMZNMKTPLACE AMAZON.CO
OXFORDSHIRE CC,"CHILDRENS, YOUNG PEOPLE AND FAMILIES",WITNEY,CATERING PROVISIONS,20/12/2019,6884420222,37.6,SAINSBURYS SACAT 0632
OXFORDSHIRE CC,SOCIAL AND COMMUNITY SERVICES,"	MTFC",ENTERTAINMENT EXPENSES,20/12/2019,6884420476,6.95,THE PARTYMAN CO
OXFORDSHIRE CC,"CHILDRENS, YOUNG PEOPLE AND FAMILIES",STH EARLY HELP-ABNDN,MATERIALS,20/12/2019,6884420116,100,ARGOS LTD
OXFORDSHIRE CC,"CHILDRENS, YOUNG PEOPLE AND FAMILIES","	LOOKED AFTER CITY 2",MATERIALS,20/12/2019,6884420194,33,ARGOS LTD
OXFORDSHIRE CC,"CHILDRENS, YOUNG PEOPLE AND FAMILIES","	LOOKED AFTER CITY 2",MATERIALS,20/12/2019,6884420396,274,CURRYS ONLINE
OXFORDSHIRE CC,CORPORATE CORE,,"SUPPLIES, STATIONERY AND MATERIALS",20/12/2019,6884420612,33.04,LYRECO UK LTD
OXFORDSHIRE CC,CORPORATE CORE,,"SUPPLIES, STATIONERY AND MATERIALS",20/12/2019,6884420602,113.11,LYRECO UK LTD
OXFORDSHIRE CC,CORPORATE CORE,,"SUPPLIES, STATIONERY AND MATERIALS",20/12/2019,6884420610,63.38,LYRECO UK LTD
OXFORDSHIRE CC,CORPORATE CORE,,"SUPPLIES, STATIONERY AND MATERIALS",20/12/2019,6884420606,11.43,LYRECO UK LTD
OXFORDSHIRE CC,"CHILDRENS, YOUNG PEOPLE AND FAMILIES",THAME E&A HOME,CATERING PROVISIONS,20/12/2019,6884420314,61.45,TESCO STORES 2038
OXFORDSHIRE CC,"CHILDRENS, YOUNG PEOPLE AND FAMILIES",CUDDESDON CORNER FSS,CATERING PROVISIONS,20/12/2019,6884420570,1.09,SPAR GREATER LEYS
OXFORDSHIRE CC,ENVIRONMENT AND ECONOMY,HARD FM,HARDWARE AND CROCKERY,20/12/2019,6884420170,52.9,TRAVIS PERKINS
OXFORDSHIRE CC,SOCIAL AND COMMUNITY SERVICES,SERVICE IMPROVEMENT,CATERING PROVISIONS,20/12/2019,6884420198,4,TESCO STORES 2008
OXFORDSHIRE CC,ENVIRONMENT AND ECONOMY,HARD FM,GENERAL MAINTENANCE,20/12/2019,6884420178,180.55,WOLSELEY UK
OXFORDSHIRE CC,"CHILDRENS, YOUNG PEOPLE AND FAMILIES","	LOOKED AFTER NORTH",PAYMENTS TO TRANSPORT OPERATORS,20/12/2019,6884420648,-2.6,THETRAINLINE.COM
OXFORDSHIRE CC,"CHILDRENS, YOUNG PEOPLE AND FAMILIES",THAME E&A HOME,CATERING PROVISIONS,20/12/2019,6884420320,-61.45,TESCO STORES 2038
OXFORDSHIRE CC,SOCIAL AND COMMUNITY SERVICES,LEAVING CARE NORTH,CATERING,20/12/2019,6884420470,23.97,BEEFEATER40014640
OXFORDSHIRE CC,"CHILDRENS, YOUNG PEOPLE AND FAMILIES",NORTH FSS- BANBURY,CLOTHING AND UNIFORMS,20/12/2019,6884420422,9.74,NEW LOOK INTERNET
OXFORDSHIRE CC,"CHILDRENS, YOUNG PEOPLE AND FAMILIES",CNTL EARLY HELP-RHIL,MATERIALS,20/12/2019,6884420522,30.99,HALFORDS ON LINE
OXFORDSHIRE CC,"CHILDRENS, YOUNG PEOPLE AND FAMILIES","	LOOKED AFTER NORTH",HIRE OF ACCOMMODATION AND FACILITIES,19/12/2019,6879438242,65,LAURELS GUESTHOUSE
OXFORDSHIRE CC,"CHILDRENS, YOUNG PEOPLE AND FAMILIES",THAME E&A HOME,CATERING,19/12/2019,6879438452,11.2,FARRS CATERING GROUP L
OXFORDSHIRE CC,"CHILDRENS, YOUNG PEOPLE AND FAMILIES",THAME E&A HOME,ENTERTAINMENT EXPENSES,19/12/2019,6879438460,52,WWW.OUFC.CO.UK
OXFORDSHIRE CC,"CHILDRENS, YOUNG PEOPLE AND FAMILIES",WITNEY,CATERING PROVISIONS,19/12/2019,6879438184,40.9,SAINSBURYS SACAT 0632
OXFORDSHIRE CC,"CHILDRENS, YOUNG PEOPLE AND FAMILIES","	LOOKED AFTER CITY 2",OTHER TRANSPORT ARRANGEMENTS,19/12/2019,6879438332,3.5,WESTGATE OXFORD CAR PA
OXFORDSHIRE CC,"CHILDRENS, YOUNG PEOPLE AND FAMILIES","	LOOKED AFTER NORTH",CLOTHING AND UNIFORMS,19/12/2019,6879438244,56.91,REDBUBBLE.COM
OXFORDSHIRE CC,"CHILDRENS, YOUNG PEOPLE AND FAMILIES",THAME E&A HOME,OTHER TRANSPORT ARRANGEMENTS,19/12/2019,6879438458,1.5,PARKJOCKEY LONDON
OXFORDSHIRE CC,"CHILDRENS, YOUNG PEOPLE AND FAMILIES","	LOOKED AFTER NORTH",CLOTHING AND UNIFORMS,19/12/2019,6879438246,52.99,JD SPORTS INTERNET
OXFORDSHIRE CC,"CHILDRENS, YOUNG PEOPLE AND FAMILIES",THAME E&A HOME,CLOTHING AND UNIFORMS,19/12/2019,6879438454,36.05,NEXT RETAIL LTD
OXFORDSHIRE CC,"CHILDRENS, YOUNG PEOPLE AND FAMILIES",THAME E&A HOME,MATERIALS,19/12/2019,6879438456,293,JD SPORTS PLC
OXFORDSHIRE CC,SOCIAL AND COMMUNITY SERVICES,DIDCOT MOVE-ON HOME,CATERING PROVISIONS,19/12/2019,6879438170,28.79,TESCO STORE 2413
OXFORDSHIRE CC,"CHILDRENS, YOUNG PEOPLE AND FAMILIES","	LOOKED AFTER SOUTH",MATERIALS,19/12/2019,6879438120,11.1,POUNDLAND LTD
OXFORDSHIRE CC,"CHILDRENS, YOUNG PEOPLE AND FAMILIES","	LOOKED AFTER CITY 2",PAYMENTS TO TRANSPORT OPERATORS,19/12/2019,6879438218,84.96,RAILEASY WEB SITE
OXFORDSHIRE CC,"CHILDRENS, YOUNG PEOPLE AND FAMILIES",DIDCOT MOVE-ON HOME,MATERIALS,19/12/2019,6879438210,2,WH SMITH
OXFORDSHIRE CC,"CHILDRENS, YOUNG PEOPLE AND FAMILIES","	MUSIC UNALLOCABLE",OTHER TRANSPORT ARRANGEMENTS,19/12/2019,6879438274,21.12,PARCELFORCE
OXFORDSHIRE CC,SOCIAL AND COMMUNITY SERVICES,"	MTFC",CATERING,19/12/2019,6879438368,2.7,BLENHEIM PALACE(SEARCY
OXFORDSHIRE CC,ENVIRONMENT AND ECONOMY,SERVICE DEV OFFICER,CATERING PROVISIONS,19/12/2019,6879438286,107,THE CAKE SHOP
OXFORDSHIRE CC,"CHILDRENS, YOUNG PEOPLE AND FAMILIES",THAME E&A HOME,MATERIALS,19/12/2019,6879438168,45.95,WWW.ARGOS.CO.UK
OXFORDSHIRE CC,"CHILDRENS, YOUNG PEOPLE AND FAMILIES","	LOOKED AFTER NORTH",CATERING PROVISIONS,19/12/2019,6879438450,2.35,SAINSBURYS SACAT 0642
OXFORDSHIRE CC,"CHILDRENS, YOUNG PEOPLE AND FAMILIES","	DISABILITIES TEAM-C",PURCHASE OF IT EQUIPMENT,19/12/2019,6879438330,15.29,AMZNMKTPLACE
OXFORDSHIRE CC,"CHILDRENS, YOUNG PEOPLE AND FAMILIES","	LEAVING CARE SOUTH",OTHER EXPENSES,19/12/2019,6879438092,499,CURRYS ONLINE
OXFORDSHIRE CC,"CHILDRENS, YOUNG PEOPLE AND FAMILIES","	MUSIC UNALLOCABLE",OTHER TRANSPORT ARRANGEMENTS,19/12/2019,6879438270,62.94,PARCELFORCE
OXFORDSHIRE CC,"CHILDRENS, YOUNG PEOPLE AND FAMILIES",WITNEY,MATERIALS,19/12/2019,6879438112,34,GRIFF
OXFORDSHIRE CC,"CHILDRENS, YOUNG PEOPLE AND FAMILIES","	LEAVING CARE SOUTH",MATERIALS,19/12/2019,6879438436,65.95,WWW.ARGOS.CO.UK
OXFORDSHIRE CC,SOCIAL AND COMMUNITY SERVICES,LOOKED AFTER SOUTH,POSTAGE AND DELIVERY,19/12/2019,6879438254,6.6,POST OFFICE COUNTER
OXFORDSHIRE CC,"CHILDRENS, YOUNG PEOPLE AND FAMILIES","	LEAVING CARE NORTH",CATERING PROVISIONS,19/12/2019,6879438164,159,TESCO STORE 2064
OXFORDSHIRE CC,"CHILDRENS, YOUNG PEOPLE AND FAMILIES","	MUSIC UNALLOCABLE",OTHER TRANSPORT ARRANGEMENTS,19/12/2019,6879438272,46.08,PARCELFORCE
OXFORDSHIRE CC,ENVIRONMENT AND ECONOMY,LIB ICT SUPPRT&MAINT,EQUIPMENT,19/12/2019,6879438284,26.32,AMZNMKTPLACE
OXFORDSHIRE CC,"CHILDRENS, YOUNG PEOPLE AND FAMILIES",FAMILY TIME COSTS,CATERING,19/12/2019,6879438214,26.7,NANDOS (OXFORD WESTGAT
OXFORDSHIRE CC,SOCIAL AND COMMUNITY SERVICES,SERVICE IMPROVEMENT,CATERING PROVISIONS,19/12/2019,6879438176,21.15,SAINSBURYS SACAT 0600
OXFORDSHIRE CC,CORPORATE CORE,HOME LIBRARY SERVICE,"SUPPLIES, STATIONERY AND MATERIALS",19/12/2019,6879438320,13.95,AMZNMKTPLACE
OXFORDSHIRE CC,"CHILDRENS, YOUNG PEOPLE AND FAMILIES",KINGFISHER,PAYMENTS TO TRANSPORT OPERATORS,19/12/2019,6879438260,82.16,TRAINLINE
OXFORDSHIRE CC,ENVIRONMENT AND ECONOMY,HARD FM,HARDWARE AND CROCKERY,19/12/2019,6879438154,35.36,WWW.THESAFETYCENTRE.CO
OXFORDSHIRE CC,"CHILDRENS, YOUNG PEOPLE AND FAMILIES","	RIVERSIDE CENTRE",HARDWARE AND CROCKERY,19/12/2019,6879438180,51.68,WICKES OXFORD
OXFORDSHIRE CC,"CHILDRENS, YOUNG PEOPLE AND FAMILIES","	RIVERSIDE CENTRE",CATERING,19/12/2019,6879438178,31.47,BOOKER LIMITED OXFORD
OXFORDSHIRE CC,"CHILDRENS, YOUNG PEOPLE AND FAMILIES","	RIVERSIDE CENTRE",CATERING,19/12/2019,6879438178,16.78,BOOKER LIMITED OXFORD
OXFORDSHIRE CC,ENVIRONMENT AND ECONOMY,HARD FM,HARDWARE AND CROCKERY,19/12/2019,6879438156,11.09,SCREWFIX KIDLINGTON
OXFORDSHIRE CC,CORPORATE CORE,CENTRAL LIBRARY,LICENCES,19/12/2019,6879438322,115.07,PPL PRS LTD
OXFORDSHIRE CC,ENTERPRISEVC,BUSINESS SYST STAFF,CATERING PROVISIONS,19/12/2019,6879438204,19.1,SAINSBURYS 0730
OXFORDSHIRE CC,ENVIRONMENT AND ECONOMY,SERVICE DEV OFFICER,MATERIALS,19/12/2019,6879438280,35.99,AMZNMKTPLACE
OXFORDSHIRE CC,ENVIRONMENT AND ECONOMY,HOME LIBRARY SERVICE,"SUPPLIES, STATIONERY AND MATERIALS",19/12/2019,6879438282,132,FAROL
OXFORDSHIRE CC,"CHILDRENS, YOUNG PEOPLE AND FAMILIES",FIELDWORK UASC,FURNITURE,19/12/2019,6879438478,16,B&M RETAIL LTD
OXFORDSHIRE CC,"CHILDRENS, YOUNG PEOPLE AND FAMILIES",FIELDWORK UASC,FURNITURE,19/12/2019,6879438476,16,B&M RETAIL LTD
OXFORDSHIRE CC,ENVIRONMENT AND ECONOMY,COUNTY LIBRARY,GENERAL MAINTENANCE,19/12/2019,6879438160,15.43,WOLSELEY UK
OXFORDSHIRE CC,ENVIRONMENT AND ECONOMY,HARD FM,GENERAL MAINTENANCE,19/12/2019,6879438158,19.98,WOLSELEY UK
OXFORDSHIRE CC,"CHILDRENS, YOUNG PEOPLE AND FAMILIES",THAME E&A HOME,CATERING PROVISIONS,19/12/2019,6879438352,8.95,COSTA BICESTER
OXFORDSHIRE CC,SOCIAL AND COMMUNITY SERVICES,"	MTFC",CATERING PROVISIONS,19/12/2019,6879438366,2.65,SAINSBURYS SACAT 0632
OXFORDSHIRE CC,SOCIAL AND COMMUNITY SERVICES,"	MTFC",CATERING PROVISIONS,19/12/2019,6879438366,1.5,SAINSBURYS SACAT 0632
OXFORDSHIRE CC,"CHILDRENS, YOUNG PEOPLE AND FAMILIES",DIDCOT MOVE-ON HOME,PAYMENTS TO TRANSPORT OPERATORS,19/12/2019,6879438206,32.1,GWR DIDCOT PKWY TO
OXFORDSHIRE CC,"CHILDRENS, YOUNG PEOPLE AND FAMILIES",THAME E&A HOME,OTHER TRANSPORT ARRANGEMENTS,19/12/2019,6879438350,1.1,CHERWELL
OXFORDSHIRE CC,"CHILDRENS, YOUNG PEOPLE AND FAMILIES","	LOOKED AFTER CITY 2",REGISTRATION AND INSPECTION FEES,19/12/2019,6879438216,35,WWW.MANCHESTER.GOV.UK
OXFORDSHIRE CC,"CHILDRENS, YOUNG PEOPLE AND FAMILIES","	LEAVING CARE SOUTH",PAYMENTS TO TRANSPORT OPERATORS,19/12/2019,6879438434,28,WWW.GWR.COM
OXFORDSHIRE CC,SOCIAL AND COMMUNITY SERVICES,"	OXF. EMPLOYMENT SERV",PHOTOCOPYING,19/12/2019,6879438316,139,STK SHUTTERSTOCK
OXFORDSHIRE CC,"CHILDRENS, YOUNG PEOPLE AND FAMILIES","	DISABILITIES TEAM-C",CLIENT LODGINGS AND ACCOMMODATION,19/12/2019,6879438328,80,SQ  THE WILLOWS VINTAG
OXFORDSHIRE CC,"CHILDRENS, YOUNG PEOPLE AND FAMILIES",WITNEY,CATERING PROVISIONS,19/12/2019,6879438122,7.7,LLOYDS AT SAINSBURYS
OXFORDSHIRE CC,"CHILDRENS, YOUNG PEOPLE AND FAMILIES","	40 THE MOORS",CATERING,19/12/2019,6879438414,160.37,BOOKER LIMITED OXFORD
OXFORDSHIRE CC,SOCIAL AND COMMUNITY SERVICES,SCHOOLS FM,CATERING,19/12/2019,6879438212,15.65,BOOKER LIMITED OXFORD
OXFORDSHIRE CC,"CHILDRENS, YOUNG PEOPLE AND FAMILIES",WITNEY,CATERING PROVISIONS,19/12/2019,6879438124,18.2,SAINSBURYS SACAT 0632
OXFORDSHIRE CC,"CHILDRENS, YOUNG PEOPLE AND FAMILIES",THAME E&A HOME,CATERING PROVISIONS,19/12/2019,6879438200,40.45,SAINSBURYS 2096
OXFORDSHIRE CC,"CHILDRENS, YOUNG PEOPLE AND FAMILIES","	LOOKED AFTER CITY 1",OTHER EXPENSES,19/12/2019,6879438126,199.99,AMZNMKTPLACE AMAZON.CO
OXFORDSHIRE CC,"CHILDRENS, YOUNG PEOPLE AND FAMILIES","	RIVERSIDE CENTRE",CATERING PROVISIONS,19/12/2019,6879438348,7.45,TESCO STORES 4377
OXFORDSHIRE CC,SHARED SERVICES,CSC SUPP & SERVICES,MATERIALS,19/12/2019,6879438474,17.27,AIDS4MOBILITY
OXFORDSHIRE CC,"CHILDRENS, YOUNG PEOPLE AND FAMILIES","	LEAVING CARE NORTH",BIRTHDAY ALLOWANCE,19/12/2019,6879438482,80,TESCO STORE 2064
OXFORDSHIRE CC,"CHILDRENS, YOUNG PEOPLE AND FAMILIES","	LEAVING CARE NORTH",BIRTHDAY ALLOWANCE,19/12/2019,6879438480,120,TESCO STORE 2064
OXFORDSHIRE CC,SOCIAL AND COMMUNITY SERVICES,CSS WITNEY,CATERING PROVISIONS,19/12/2019,6879438090,14.2,SAINSBURYS 0632
OXFORDSHIRE CC,"CHILDRENS, YOUNG PEOPLE AND FAMILIES",EYNSHAM,DAY ACTIVITIES,19/12/2019,6879438110,4.5,TESCO STORE 2064
OXFORDSHIRE CC,SOCIAL AND COMMUNITY SERVICES,LEAVING CARE NORTH,CATERING PROVISIONS,19/12/2019,6879438364,80,WM MORRISONS STORE
OXFORDSHIRE CC,"CHILDRENS, YOUNG PEOPLE AND FAMILIES","	LOOKED AFTER CITY 1",CATERING,19/12/2019,6879438144,2.45,LENNYS CAFE BAR
OXFORDSHIRE CC,"CHILDRENS, YOUNG PEOPLE AND FAMILIES",THAME E&A HOME,CATERING PROVISIONS,19/12/2019,6879438182,4.3,TESCO STORES 4377
OXFORDSHIRE CC,SOCIAL AND COMMUNITY SERVICES,CSS - ABINGDON,VEHICLES REPAIRS AND MAINTENANCE,19/12/2019,6879438114,12.99,IN2 MOTOR SPARES
OXFORDSHIRE CC,"CHILDRENS, YOUNG PEOPLE AND FAMILIES",THAME E&A HOME,CATERING PROVISIONS,19/12/2019,6879438202,22.3,ASDA STORES 5123
OXFORDSHIRE CC,"CHILDRENS, YOUNG PEOPLE AND FAMILIES","	FPT CITY",MATERIALS,19/12/2019,6879438220,9.5,AMZNMKTPLACE
OXFORDSHIRE CC,"CHILDRENS, YOUNG PEOPLE AND FAMILIES","	LOOKED AFTER NORTH",OTHER EXPENSES,19/12/2019,6879438484,22.4,WWW.BOOKING.GLL.ORG
OXFORDSHIRE CC,ENVIRONMENT AND ECONOMY,HARD FM,HARDWARE AND CROCKERY,19/12/2019,6879438152,25.74,JOHNSONS OF DEDDINGTON
OXFORDSHIRE CC,"CHILDRENS, YOUNG PEOPLE AND FAMILIES","	FAM SUPP CITY 1",CATERING PROVISIONS,19/12/2019,6879438418,37.18,WWW.ICELAND.CO.UK
OXFORDSHIRE CC,SOCIAL AND COMMUNITY SERVICES,"	SHARED LIVES",OTHER TRAINING COURSES AND QUALIFICATION,19/12/2019,6879438444,"1,080.00",PAYPAL  OPUS PHARM
OXFORDSHIRE CC,"CHILDRENS, YOUNG PEOPLE AND FAMILIES","	MUSIC UNALLOCABLE",CATERING PROVISIONS,19/12/2019,6879438268,151.9,SAINSBURYS TO YOU 0600
OXFORDSHIRE CC,ENVIRONMENT AND ECONOMY,SERVICE DEV OFFICER,"SUPPLIES, STATIONERY AND MATERIALS",19/12/2019,6879438278,26.51,HELLOPRINT
OXFORDSHIRE CC,"CHILDRENS, YOUNG PEOPLE AND FAMILIES",CNTL EARLY HELP-BRTN,FURNITURE,19/12/2019,6879438388,136.94,WWW.ARGOS.CO.UK
OXFORDSHIRE CC,"CHILDRENS, YOUNG PEOPLE AND FAMILIES","	LOOKED AFTER CITY 2",CATERING,19/12/2019,6879438172,8.9,COSTA COFFEE
OXFORDSHIRE CC,"CHILDRENS, YOUNG PEOPLE AND FAMILIES","	FAMILY SUPPORT CITY3",FURNITURE,19/12/2019,6879438384,38,WWW.ARGOS.CO.UK
OXFORDSHIRE CC,SOCIAL AND COMMUNITY SERVICES,CSS WANTAGE,MATERIALS,19/12/2019,6879438376,12.44,B&M RETAIL LTD
OXFORDSHIRE CC,"CHILDRENS, YOUNG PEOPLE AND FAMILIES","	NCS",OTHER TRANSPORT ARRANGEMENTS,19/12/2019,6879438128,13.4,CITYFLEET DAC ST
OXFORDSHIRE CC,CORPORATE CORE,,"SUPPLIES, STATIONERY AND MATERIALS",19/12/2019,6879438468,18.8,LYRECO UK LTD
OXFORDSHIRE CC,CORPORATE CORE,,"SUPPLIES, STATIONERY AND MATERIALS",19/12/2019,6879438470,22.68,LYRECO UK LTD
OXFORDSHIRE CC,"CHILDRENS, YOUNG PEOPLE AND FAMILIES",MANAGEMENT,CATERING PROVISIONS,19/12/2019,6879438234,52.94,MARKS&SPENCER PLC
OXFORDSHIRE CC,"CHILDRENS, YOUNG PEOPLE AND FAMILIES",CNTL ERLY HELP-BBLEY,CATERING PROVISIONS,19/12/2019,6879438488,2.4,TESCO STORE 2990
OXFORDSHIRE CC,ENVIRONMENT AND ECONOMY,WASTE REDUCTION GEN,"PUBLICITY, PROMOTIONS AND ADVERTISEMENT",19/12/2019,6879438256,20,FACEBK EMKGNN65B2
OXFORDSHIRE CC,"CHILDRENS, YOUNG PEOPLE AND FAMILIES",CNTL ERLY HELP-BBLEY,CATERING PROVISIONS,19/12/2019,6879438486,5,TESCO STORE 2990
OXFORDSHIRE CC,SOCIAL AND COMMUNITY SERVICES,CSS - BANBURY,CATERING PROVISIONS,19/12/2019,6879438078,18.75,TESCO STORE 2064
OXFORDSHIRE CC,"CHILDRENS, YOUNG PEOPLE AND FAMILIES","	40 THE MOORS",CATERING PROVISIONS,19/12/2019,6879438412,161.45,SAINSBURYS (2243)
OXFORDSHIRE CC,"CHILDRENS, YOUNG PEOPLE AND FAMILIES",DIDCOT MOVE-ON HOME,CATERING PROVISIONS,19/12/2019,6879438208,0.65,M&S SIMPLY FOOD - SSP
OXFORDSHIRE CC,"CHILDRENS, YOUNG PEOPLE AND FAMILIES",CNTL EARLY HELP-RHIL,MATERIALS,19/12/2019,6879438192,-54.48,AMZ SUPERONLINESAVING
OXFORDSHIRE CC,"CHILDRENS, YOUNG PEOPLE AND FAMILIES","	FAMILY SUPPORT CITY3",FURNITURE,19/12/2019,6879438386,156.94,WWW.ARGOS.CO.UK
OXFORDSHIRE CC,"CHILDRENS, YOUNG PEOPLE AND FAMILIES","	MUSIC UNALLOCABLE",CATERING PROVISIONS,19/12/2019,6879438276,-0.9,SAINSBURYS TO YOU 0600
OXFORDSHIRE CC,ENVIRONMENT AND ECONOMY,S38 INSPECT & OTHER,PAYMENTS TO TRANSPORT OPERATORS,19/12/2019,6879438224,-38.7,TRAINLINE
OXFORDSHIRE CC,"CHILDRENS, YOUNG PEOPLE AND FAMILIES","	LOOKED AFTER NORTH",VEHICLE FUEL,19/12/2019,6879438166,15.98,ANDOVERSFORD S.STN FS1
OXFORDSHIRE CC,"CHILDRENS, YOUNG PEOPLE AND FAMILIES",WITNEY,MATERIALS,19/12/2019,6879438440,20.85,AMZNMKTPLACE AMAZON.CO
OXFORDSHIRE CC,ENVIRONMENT AND ECONOMY,HARD FM,EQUIPMENT,19/12/2019,6879438150,42.96,W F SENATE
OXFORDSHIRE CC,ENVIRONMENT AND ECONOMY,HARD FM,EQUIPMENT,19/12/2019,6879438148,24.7,W F SENATE
OXFORDSHIRE CC,SOCIAL AND COMMUNITY SERVICES,FLEET OPERATIONS,MANAGEMENT CONSULTANT FEES,19/12/2019,6879438494,154.5,TVLICENSING.CO.UK
OXFORDSHIRE CC,ENVIRONMENT AND ECONOMY,HARD FM,EQUIPMENT,19/12/2019,6879438146,77.74,W F SENATE
OXFORDSHIRE CC,CORPORATE CORE,,"SUPPLIES, STATIONERY AND MATERIALS",19/12/2019,6879438472,20.4,LYRECO UK LTD
OXFORDSHIRE CC,"CHILDRENS, YOUNG PEOPLE AND FAMILIES",THAME E&A HOME,CATERING PROVISIONS,18/12/2019,6874045454,36.5,SAINSBURYS 2096
OXFORDSHIRE CC,"CHILDRENS, YOUNG PEOPLE AND FAMILIES","	40 THE MOORS",MATERIALS,18/12/2019,6874045702,2.9,AMZNMKTPLACE
OXFORDSHIRE CC,"CHILDRENS, YOUNG PEOPLE AND FAMILIES","	40 THE MOORS",CATERING,18/12/2019,6874045704,27.9,TIFFINS
OXFORDSHIRE CC,"CHILDRENS, YOUNG PEOPLE AND FAMILIES","	40 THE MOORS",CATERING,18/12/2019,6874045708,10.41,MCDONALDS
OXFORDSHIRE CC,"CHILDRENS, YOUNG PEOPLE AND FAMILIES",NORTH FSS- BANBURY,MATERIALS,18/12/2019,6874045634,8.5,HOBBYCRAFT
OXFORDSHIRE CC,"CHILDRENS, YOUNG PEOPLE AND FAMILIES","	MALTFIELD HOUSE",DAY ACTIVITIES,18/12/2019,6874045638,16,DUNELM LTD
OXFORDSHIRE CC,"CHILDRENS, YOUNG PEOPLE AND FAMILIES","	NCS",OTHER TRANSPORT ARRANGEMENTS,18/12/2019,6874045400,8.2,CMT UK LTD TAXI FARE
OXFORDSHIRE CC,SOCIAL AND COMMUNITY SERVICES,"	KINGFISHER",CATERING PROVISIONS,18/12/2019,6874045576,2.55,UPPER CRUST
OXFORDSHIRE CC,"CHILDRENS, YOUNG PEOPLE AND FAMILIES",NORTH FSS- BANBURY,CLOTHING AND UNIFORMS,18/12/2019,6874045636,46,TOMMY HILFIGER
OXFORDSHIRE CC,ENVIRONMENT AND ECONOMY,S38 INSPECT & OTHER,IT SOFTWARE,18/12/2019,6874045512,23.99,ADOBE STOCK
OXFORDSHIRE CC,SOCIAL AND COMMUNITY SERVICES,"	KINGFISHER",CATERING PROVISIONS,18/12/2019,6874045574,3.58,THE SHOP
OXFORDSHIRE CC,"CHILDRENS, YOUNG PEOPLE AND FAMILIES","	40 THE MOORS",CATERING PROVISIONS,18/12/2019,6874045698,115.88,SAINSBURYS 0631
OXFORDSHIRE CC,"CHILDRENS, YOUNG PEOPLE AND FAMILIES","	LOOKED AFTER CITY 2",MATERIALS,18/12/2019,6874045626,5.99,WH SMITH
OXFORDSHIRE CC,SOCIAL AND COMMUNITY SERVICES,CSS WITNEY,CATERING PROVISIONS,18/12/2019,6874045354,18,MARKS&SPENCER PLC
OXFORDSHIRE CC,"CHILDRENS, YOUNG PEOPLE AND FAMILIES",THAME E&A HOME,CATERING PROVISIONS,18/12/2019,6874045452,12.24,SAINSBURYS SACAT 2096
OXFORDSHIRE CC,SOCIAL AND COMMUNITY SERVICES,"	KINGFISHER",OTHER TRANSPORT ARRANGEMENTS,18/12/2019,6874045570,11,LOIDS TAXIS
OXFORDSHIRE CC,"CHILDRENS, YOUNG PEOPLE AND FAMILIES","	LOOKED AFTER SOUTH",POSTAGE AND DELIVERY,18/12/2019,6874045888,7.4,POST OFFICE COUNTER
OXFORDSHIRE CC,SOCIAL AND COMMUNITY SERVICES,"	MTFC",CATERING,18/12/2019,6874045666,11.56,KFC-BANBURY
OXFORDSHIRE CC,"CHILDRENS, YOUNG PEOPLE AND FAMILIES","	LOOKED AFTER SOUTH",POSTAGE AND DELIVERY,18/12/2019,6874045886,7.4,POST OFFICE COUNTER
OXFORDSHIRE CC,"CHILDRENS, YOUNG PEOPLE AND FAMILIES","	MUSIC UNALLOCABLE",CATERING PROVISIONS,18/12/2019,6874045612,2.1,SAINSBURYS (2305)
OXFORDSHIRE CC,"CHILDRENS, YOUNG PEOPLE AND FAMILIES",FPT SOUTH/VALE,PAYMENTS TO TRANSPORT OPERATORS,18/12/2019,6874045782,76.11,TRAINLINE
OXFORDSHIRE CC,SOCIAL AND COMMUNITY SERVICES,DIDCOT MOVE-ON HOME,CATERING PROVISIONS,18/12/2019,6874045506,1.67,SAINSBURYS 2067
OXFORDSHIRE CC,"CHILDRENS, YOUNG PEOPLE AND FAMILIES","	LOOKED AFTER NORTH",VEHICLE FUEL,18/12/2019,6874045432,10.58,ESSO MARCHAM ROAD SERV
OXFORDSHIRE CC,"CHILDRENS, YOUNG PEOPLE AND FAMILIES","	LOOKED AFTER CITY 1",CLOTHING AND UNIFORMS,18/12/2019,6874045524,5,NEXT RETAIL LTD
OXFORDSHIRE CC,"CHILDRENS, YOUNG PEOPLE AND FAMILIES","	FAMILY SUPPORT CITY3",OTHER TRANSPORT ARRANGEMENTS,18/12/2019,6874045366,11,WESTGATE OXFORD CAR PA
OXFORDSHIRE CC,"CHILDRENS, YOUNG PEOPLE AND FAMILIES","	RESIDENTIAL STRATEGY",EDUCATIONAL AND VOCATIONAL TRAINING ,18/12/2019,6874045564,6.5,SPORTS CENTRE
OXFORDSHIRE CC,"CHILDRENS, YOUNG PEOPLE AND FAMILIES","	NCS",PAYMENTS TO TRANSPORT OPERATORS,18/12/2019,6874045398,37.4,GWR OXFORD TO
OXFORDSHIRE CC,ENVIRONMENT AND ECONOMY,HARD FM,HARDWARE AND CROCKERY,18/12/2019,6874045422,25.48,SCREWFIX WITNEY
OXFORDSHIRE CC,ENTERPRISEVC,VOXY,MATERIALS,18/12/2019,6874045480,2.97,CARD FACTORY
OXFORDSHIRE CC,"CHILDRENS, YOUNG PEOPLE AND FAMILIES",CNTL ERLY HELP-BBLEY,CATERING PROVISIONS,18/12/2019,6874045890,8.06,LIDL GB OXFORD
OXFORDSHIRE CC,"CHILDRENS, YOUNG PEOPLE AND FAMILIES","	HEARING IMPAIRMENT",EDUCATIONAL AND VOCATIONAL TRAINING ,18/12/2019,6874045608,180,COMMUNICATE-ED
OXFORDSHIRE CC,SOCIAL AND COMMUNITY SERVICES,CSS BICESTER,CATERING PROVISIONS,18/12/2019,6874045448,37,TESCO STORES 4480
OXFORDSHIRE CC,ENTERPRISEVC,VOXY,CATERING PROVISIONS,18/12/2019,6874045478,10.1,MARKS&SPENCER PLC
OXFORDSHIRE CC,"CHILDRENS, YOUNG PEOPLE AND FAMILIES",WITNEY,CATERING PROVISIONS,18/12/2019,6874045776,4,SAINSBURYS 0632
OXFORDSHIRE CC,"CHILDRENS, YOUNG PEOPLE AND FAMILIES",WITNEY,CATERING PROVISIONS,18/12/2019,6874045772,10,SAINSBURYS 0632
OXFORDSHIRE CC,"CHILDRENS, YOUNG PEOPLE AND FAMILIES","	LOOKED AFTER NORTH",TELEPHONE - EQUIPMENT,18/12/2019,6874045430,10,VESTA   VODAFONE TOPUP
OXFORDSHIRE CC,"CHILDRENS, YOUNG PEOPLE AND FAMILIES",UASC 16&17,PAYMENTS TO TRANSPORT OPERATORS,18/12/2019,6874045622,560,BUCKS TRAVEL LIMITED
OXFORDSHIRE CC,ENVIRONMENT AND ECONOMY,SERVICE DEV OFFICER,MATERIALS,18/12/2019,6874045580,80.34,WWW.DISCOUNTDISPLAYS.C
OXFORDSHIRE CC,"CHILDRENS, YOUNG PEOPLE AND FAMILIES",NRPF & HOMELESSNESS,HIRE OF ACCOMMODATION AND FACILITIES,18/12/2019,6874045724,"1,329.72",TRAVELODGE
OXFORDSHIRE CC,SOCIAL AND COMMUNITY SERVICES,"	PUBLIC HEALTH GENERA",POSTAGE AND DELIVERY,18/12/2019,6874045768,1.5,ROYAL MAIL CHARGES
OXFORDSHIRE CC,ENTERPRISEVC,,CAR LEASING - PRIVATE RENTALS,18/12/2019,6874045884,26.16,ENTERPRISE RENT-A-CAR
OXFORDSHIRE CC,ENTERPRISEVC,,CAR LEASING - PRIVATE RENTALS,18/12/2019,6874045882,46.12,ENTERPRISE RENT-A-CAR
OXFORDSHIRE CC,ENTERPRISEVC,,CAR LEASING - PRIVATE RENTALS,18/12/2019,6874045880,52.72,ENTERPRISE RENT-A-CAR
OXFORDSHIRE CC,ENTERPRISEVC,,CAR LEASING - PRIVATE RENTALS,18/12/2019,6874045878,67.36,ENTERPRISE RENT-A-CAR
OXFORDSHIRE CC,ENTERPRISEVC,,CAR LEASING - PRIVATE RENTALS,18/12/2019,6874045876,148.22,ENTERPRISE RENT-A-CAR
OXFORDSHIRE CC,ENTERPRISEVC,,CAR LEASING - PRIVATE RENTALS,18/12/2019,6874045874,120.07,ENTERPRISE RENT-A-CAR
OXFORDSHIRE CC,ENTERPRISEVC,,CAR LEASING - PRIVATE RENTALS,18/12/2019,6874045872,62.08,ENTERPRISE RENT-A-CAR
OXFORDSHIRE CC,ENTERPRISEVC,,CAR LEASING - PRIVATE RENTALS,18/12/2019,6874045870,74.59,ENTERPRISE RENT-A-CAR
OXFORDSHIRE CC,ENTERPRISEVC,,CAR LEASING - PRIVATE RENTALS,18/12/2019,6874045868,67.2,ENTERPRISE RENT-A-CAR
OXFORDSHIRE CC,ENTERPRISEVC,,CAR LEASING - PRIVATE RENTALS,18/12/2019,6874045866,75.43,ENTERPRISE RENT-A-CAR
OXFORDSHIRE CC,ENTERPRISEVC,,CAR LEASING - PRIVATE RENTALS,18/12/2019,6874045864,31.66,ENTERPRISE RENT-A-CAR
OXFORDSHIRE CC,ENTERPRISEVC,,CAR LEASING - PRIVATE RENTALS,18/12/2019,6874045862,46.12,ENTERPRISE RENT-A-CAR
OXFORDSHIRE CC,ENTERPRISEVC,,CAR LEASING - PRIVATE RENTALS,18/12/2019,6874045860,48.46,ENTERPRISE RENT-A-CAR
OXFORDSHIRE CC,ENTERPRISEVC,,CAR LEASING - PRIVATE RENTALS,18/12/2019,6874045858,415.97,ENTERPRISE RENT-A-CAR
OXFORDSHIRE CC,ENTERPRISEVC,,CAR LEASING - PRIVATE RENTALS,18/12/2019,6874045856,99.54,ENTERPRISE RENT-A-CAR
OXFORDSHIRE CC,ENTERPRISEVC,,CAR LEASING - PRIVATE RENTALS,18/12/2019,6874045854,83.83,ENTERPRISE RENT-A-CAR
OXFORDSHIRE CC,ENTERPRISEVC,,CAR LEASING - PRIVATE RENTALS,18/12/2019,6874045852,75.43,ENTERPRISE RENT-A-CAR
OXFORDSHIRE CC,ENTERPRISEVC,,CAR LEASING - PRIVATE RENTALS,18/12/2019,6874045850,98.69,ENTERPRISE RENT-A-CAR
OXFORDSHIRE CC,ENTERPRISEVC,,CAR LEASING - PRIVATE RENTALS,18/12/2019,6874045848,45.06,ENTERPRISE RENT-A-CAR
OXFORDSHIRE CC,ENTERPRISEVC,,CAR LEASING - PRIVATE RENTALS,18/12/2019,6874045846,53.68,ENTERPRISE RENT-A-CAR
OXFORDSHIRE CC,ENTERPRISEVC,,CAR LEASING - PRIVATE RENTALS,18/12/2019,6874045844,52.72,ENTERPRISE RENT-A-CAR
OXFORDSHIRE CC,ENTERPRISEVC,,CAR LEASING - PRIVATE RENTALS,18/12/2019,6874045842,141.18,ENTERPRISE RENT-A-CAR
OXFORDSHIRE CC,ENTERPRISEVC,,CAR LEASING - PRIVATE RENTALS,18/12/2019,6874045840,46.49,ENTERPRISE RENT-A-CAR
OXFORDSHIRE CC,ENTERPRISEVC,,CAR LEASING - PRIVATE RENTALS,18/12/2019,6874045838,62.08,ENTERPRISE RENT-A-CAR
OXFORDSHIRE CC,ENTERPRISEVC,VOXY,CATERING PROVISIONS,18/12/2019,6874045476,7.65,ART CAFE
OXFORDSHIRE CC,"CHILDRENS, YOUNG PEOPLE AND FAMILIES",EYNSHAM,HARDWARE AND CROCKERY,18/12/2019,6874045356,73.93,WWW.FROSTSGROUP.DI
OXFORDSHIRE CC,"CHILDRENS, YOUNG PEOPLE AND FAMILIES","	HOME SUPPORT",ENTERTAINMENT EXPENSES,18/12/2019,6874045748,35.1,WWW.BOOKING.GLL.ORG
OXFORDSHIRE CC,"CHILDRENS, YOUNG PEOPLE AND FAMILIES","	LOOKED AFTER NORTH",CATERING,18/12/2019,6874045788,5.4,COSTA COFFEE
OXFORDSHIRE CC,SOCIAL AND COMMUNITY SERVICES,LEAVING CARE NORTH,HIRE OF ACCOMMODATION AND FACILITIES,18/12/2019,6874045660,430,HAMILTONGRACELIMITED
OXFORDSHIRE CC,"CHILDRENS, YOUNG PEOPLE AND FAMILIES","	LEAVING CARE SOUTH",OTHER TRANSPORT ARRANGEMENTS,18/12/2019,6874045770,2,3C_ BASINGSTOKE AND DE
OXFORDSHIRE CC,"CHILDRENS, YOUNG PEOPLE AND FAMILIES",DIDCOT MOVE-ON HOME,CATERING PROVISIONS,18/12/2019,6874045730,21.99,TESCO STORE 2413
OXFORDSHIRE CC,"CHILDRENS, YOUNG PEOPLE AND FAMILIES","	LOOKED AFTER NORTH",MATERIALS,18/12/2019,6874045434,30.95,WITNEY INSIDE SAINSBUR
OXFORDSHIRE CC,CORPORATE CORE,INCOME TEAM,PAYMENT TO GOVERNMENT DEPARTMENTS,18/12/2019,6874045900,1.5,WWW.GOV.UK
OXFORDSHIRE CC,CORPORATE CORE,REGISTRAR,MATERIALS,18/12/2019,6874045482,203.98,AMZNMKTPLACE AMAZON.CO
OXFORDSHIRE CC,SOCIAL AND COMMUNITY SERVICES,"	KINGFISHER",CATERING,18/12/2019,6874045572,2.49,PUMPKIN
OXFORDSHIRE CC,CORPORATE CORE,INCOME TEAM,PAYMENT TO GOVERNMENT DEPARTMENTS,18/12/2019,6874045898,1.5,WWW.GOV.UK
OXFORDSHIRE CC,"CHILDRENS, YOUNG PEOPLE AND FAMILIES",DEPUTY DIRECTOR &MAN,PAYMENTS TO TRANSPORT OPERATORS,18/12/2019,6874045522,7.58,THETRAINLINE.COM
OXFORDSHIRE CC,SOCIAL AND COMMUNITY SERVICES,CSS - ABINGDON,CATERING PROVISIONS,18/12/2019,6874045378,3.3,TESCO STORES 6519
OXFORDSHIRE CC,"CHILDRENS, YOUNG PEOPLE AND FAMILIES","	LOOKED AFTER CITY 2",RESIDENTIAL ACTIVITIES,18/12/2019,6874045510,28.57,AMFBOWLING.CO.UK
OXFORDSHIRE CC,"CHILDRENS, YOUNG PEOPLE AND FAMILIES","	LOOKED AFTER NORTH",PAYMENTS TO TRANSPORT OPERATORS,18/12/2019,6874045790,6.8,BANBURY SSTP
OXFORDSHIRE CC,"CHILDRENS, YOUNG PEOPLE AND FAMILIES",MANAGEMENT,CATERING PROVISIONS,18/12/2019,6874045520,49.85,MARKS&SPENCER PLC
OXFORDSHIRE CC,"CHILDRENS, YOUNG PEOPLE AND FAMILIES",EYNSHAM,FURNITURE,18/12/2019,6874045912,20.24,AMZNMKTPLACE
OXFORDSHIRE CC,"CHILDRENS, YOUNG PEOPLE AND FAMILIES",EYNSHAM,FURNITURE,18/12/2019,6874045910,7.99,AMAZON.CO.UK FK0PP24R5
OXFORDSHIRE CC,"CHILDRENS, YOUNG PEOPLE AND FAMILIES",DIDCOT MOVE-ON HOME,MATERIALS,18/12/2019,6874045734,13.98,CURRYS SUPERSTORE2460
OXFORDSHIRE CC,"CHILDRENS, YOUNG PEOPLE AND FAMILIES",DIDCOT MOVE-ON HOME,CATERING PROVISIONS,18/12/2019,6874045732,2,SAINSBURYS SACAT 2067
OXFORDSHIRE CC,SOCIAL AND COMMUNITY SERVICES,UASC 16&17,PAYMENTS TO TRANSPORT OPERATORS,18/12/2019,6874045458,24,NEW SOUTHERN RAILW
OXFORDSHIRE CC,SOCIAL AND COMMUNITY SERVICES,CSS BICESTER,OTHER TRANSPORT ARRANGEMENTS,18/12/2019,6874045712,156.95,WWW.IPAYMYPCN.NET
OXFORDSHIRE CC,"CHILDRENS, YOUNG PEOPLE AND FAMILIES","	LOOKED AFTER CITY 1",POSTAGE AND DELIVERY,18/12/2019,6874045500,1.9,POST OFFICE COUNTER
OXFORDSHIRE CC,SOCIAL AND COMMUNITY SERVICES,CSS WALLINGFORD,MATERIALS,18/12/2019,6874045540,5.53,CHAMPION
OXFORDSHIRE CC,"CHILDRENS, YOUNG PEOPLE AND FAMILIES","	LOOKED AFTER CITY 1",POSTAGE AND DELIVERY,18/12/2019,6874045502,12.5,POST OFFICE COUNTER
OXFORDSHIRE CC,SOCIAL AND COMMUNITY SERVICES,"	HISTORY SERVICE","BOOKS, DVDS AND CDS",18/12/2019,6874045538,19,SOCIETY OF GENEALO
OXFORDSHIRE CC,"CHILDRENS, YOUNG PEOPLE AND FAMILIES",NORTH FSS- BANBURY,PAYMENTS TO TRANSPORT OPERATORS,18/12/2019,6874045496,274.85,WWW.GWR.COM
OXFORDSHIRE CC,SOCIAL AND COMMUNITY SERVICES,"	KINGFISHER",OTHER TRANSPORT ARRANGEMENTS,18/12/2019,6874045568,6,PPS LTD
OXFORDSHIRE CC,"CHILDRENS, YOUNG PEOPLE AND FAMILIES",NORTH FSS- WITNEY,FURNITURE,18/12/2019,6874045320,22.94,ASDA GEORGE COM LEEDS
OXFORDSHIRE CC,SOCIAL AND COMMUNITY SERVICES,SCHOOLS FM,CATERING PROVISIONS,18/12/2019,6874045532,9.76,SAINSBURYS 0600
OXFORDSHIRE CC,"CHILDRENS, YOUNG PEOPLE AND FAMILIES",EYNSHAM,MATERIALS,18/12/2019,6874045826,75.98,MOSAICS
OXFORDSHIRE CC,ENVIRONMENT AND ECONOMY,THE OXFORDSHIRE MUSEUM - SITE,MATERIALS,18/12/2019,6874045658,4.99,AMZNMKTPLACE AMAZON.CO
OXFORDSHIRE CC,"CHILDRENS, YOUNG PEOPLE AND FAMILIES",NORTH FSS- WITNEY,MATERIALS,18/12/2019,6874045322,79,ARGOS RETAIL GROUP
OXFORDSHIRE CC,"CHILDRENS, YOUNG PEOPLE AND FAMILIES",EYNSHAM,ENTERTAINMENT EXPENSES,18/12/2019,6874045830,10,OXFORD PLAYHOUSE
OXFORDSHIRE CC,"CHILDRENS, YOUNG PEOPLE AND FAMILIES","	LOOKED AFTER CITY 1",MATERIALS,18/12/2019,6874045528,1.99,CARD FACTORY
OXFORDSHIRE CC,"CHILDRENS, YOUNG PEOPLE AND FAMILIES",WITNEY,CATERING PROVISIONS,18/12/2019,6874045778,2.8,SAINSBURYS 0632
OXFORDSHIRE CC,"CHILDRENS, YOUNG PEOPLE AND FAMILIES",WITNEY,CATERING PROVISIONS,18/12/2019,6874045774,8.7,SAINSBURYS 0632
OXFORDSHIRE CC,"CHILDRENS, YOUNG PEOPLE AND FAMILIES",EYNSHAM,ENTERTAINMENT EXPENSES,18/12/2019,6874045828,80,OXFORD PLAYHOUSE
OXFORDSHIRE CC,"CHILDRENS, YOUNG PEOPLE AND FAMILIES",WITNEY,MATERIALS,18/12/2019,6874045780,17.25,WITNEY INSIDE SAINSBUR
OXFORDSHIRE CC,"CHILDRENS, YOUNG PEOPLE AND FAMILIES","	40 THE MOORS",CATERING PROVISIONS,18/12/2019,6874045700,17.39,ALDI 77 775
OXFORDSHIRE CC,"CHILDRENS, YOUNG PEOPLE AND FAMILIES",NORTH FSS- WITNEY,FURNITURE,18/12/2019,6874045318,54.99,HOME TREATS
OXFORDSHIRE CC,"CHILDRENS, YOUNG PEOPLE AND FAMILIES",CSS WALLINGFORD,CATERING PROVISIONS,18/12/2019,6874045336,24.55,WAITROSE 675
OXFORDSHIRE CC,ENVIRONMENT AND ECONOMY,COUNTY LIBRARY,HARDWARE AND CROCKERY,18/12/2019,6874045426,11.09,SCREWFIX WITNEY
OXFORDSHIRE CC,"CHILDRENS, YOUNG PEOPLE AND FAMILIES",CNTL ERLY HELP-BBLEY,MATERIALS,18/12/2019,6874045892,23,POUNDLAND LTD 1586
OXFORDSHIRE CC,"CHILDRENS, YOUNG PEOPLE AND FAMILIES",STH EARLY HELP-DDCOT,CATERING PROVISIONS,18/12/2019,6874045474,4.5,CO-OPERATIVE FUEL
OXFORDSHIRE CC,"CHILDRENS, YOUNG PEOPLE AND FAMILIES",STH EARLY HELP-DDCOT,POSTAGE AND DELIVERY,18/12/2019,6874045472,2.72,POST OFFICE COUNTER
OXFORDSHIRE CC,"CHILDRENS, YOUNG PEOPLE AND FAMILIES",CNTL EARLY HELP-RHIL,CATERING PROVISIONS,18/12/2019,6874045550,8,SAINSBURYS 0600
OXFORDSHIRE CC,CORPORATE CORE,"	COMMUNICATIONS",MATERIALS,18/12/2019,6874045526,24.48,AMZNMKTPLACE
OXFORDSHIRE CC,"CHILDRENS, YOUNG PEOPLE AND FAMILIES","	LOOKED AFTER CITY 1",NON-STAFF SUBSISTENCE AND EXPENSES,18/12/2019,6874045396,5.53,SAINSBURYS SAC2305SAC
OXFORDSHIRE CC,"CHILDRENS, YOUNG PEOPLE AND FAMILIES","	FAMILY SUPPORT CITY3",HARDWARE AND CROCKERY,18/12/2019,6874045902,138,HOMEBASE LTD 091
OXFORDSHIRE CC,SOCIAL AND COMMUNITY SERVICES,UASC 16&17,OTHER TRANSPORT ARRANGEMENTS,18/12/2019,6874045456,26,STAGECOACH OXFORD
OXFORDSHIRE CC,ENVIRONMENT AND ECONOMY,"	COUNTY HALL",MATERIALS,18/12/2019,6874045616,27.8,AMZNMKTPLACE
OXFORDSHIRE CC,SOCIAL AND COMMUNITY SERVICES,CSS - OXFORD,MATERIALS,18/12/2019,6874045556,21.39,ALDI STORES 775-142
OXFORDSHIRE CC,"CHILDRENS, YOUNG PEOPLE AND FAMILIES","	LOOKED AFTER CITY 1",POSTAGE AND DELIVERY,18/12/2019,6874045560,8.7,POST OFFICE COUNTER
OXFORDSHIRE CC,SOCIAL AND COMMUNITY SERVICES,"	MTFC",CATERING PROVISIONS,18/12/2019,6874045664,4.69,TESCO STORE 2994
OXFORDSHIRE CC,ENVIRONMENT AND ECONOMY,HARD FM,HARDWARE AND CROCKERY,18/12/2019,6874045416,274.13,SUREHEAT SPARES
OXFORDSHIRE CC,SOCIAL AND COMMUNITY SERVICES,CSS - OXFORD,CATERING PROVISIONS,18/12/2019,6874045446,32.02,ALDI STORES 775-142
OXFORDSHIRE CC,"CHILDRENS, YOUNG PEOPLE AND FAMILIES",CNTL EARLY HELP-RHIL,MATERIALS,18/12/2019,6874045470,311.94,WWW.ARGOS.CO.UK
OXFORDSHIRE CC,CORPORATE CORE,"	LEGAL SERVICES",PROFESSIONAL SUBSCRIPTIONS,18/12/2019,6874045650,240,CHARTERED INSTITUTE OF
OXFORDSHIRE CC,"CHILDRENS, YOUNG PEOPLE AND FAMILIES","	LOOKED AFTER SOUTH",REGISTRATION AND INSPECTION FEES,18/12/2019,6874045374,58.5,HM PASSPORT OFFICE
OXFORDSHIRE CC,CORPORATE CORE,,"SUPPLIES, STATIONERY AND MATERIALS",18/12/2019,6874045810,33.52,LYRECO UK LTD
OXFORDSHIRE CC,CORPORATE CORE,,"SUPPLIES, STATIONERY AND MATERIALS",18/12/2019,6874045816,5.74,LYRECO UK LTD
OXFORDSHIRE CC,"CHILDRENS, YOUNG PEOPLE AND FAMILIES","	LOOKED AFTER SOUTH",REGISTRATION AND INSPECTION FEES,18/12/2019,6874045372,58.5,HM PASSPORT OFFICE
OXFORDSHIRE CC,CORPORATE CORE,,"SUPPLIES, STATIONERY AND MATERIALS",18/12/2019,6874045812,152.27,LYRECO UK LTD
OXFORDSHIRE CC,CORPORATE CORE,,"SUPPLIES, STATIONERY AND MATERIALS",18/12/2019,6874045814,293.04,LYRECO UK LTD
OXFORDSHIRE CC,CORPORATE CORE,,"SUPPLIES, STATIONERY AND MATERIALS",18/12/2019,6874045808,64.61,LYRECO UK LTD
OXFORDSHIRE CC,ENVIRONMENT AND ECONOMY,HARD FM,HARDWARE AND CROCKERY,18/12/2019,6874045412,64.73,JOHNSONS OF DEDDINGTON
OXFORDSHIRE CC,ENVIRONMENT AND ECONOMY,HARD FM,GENERAL MAINTENANCE,18/12/2019,6874045418,31.1,WOLSELEY UK
OXFORDSHIRE CC,"CHILDRENS, YOUNG PEOPLE AND FAMILIES","	LEAVING CARE NORTH",MATERIALS,18/12/2019,6874045428,7.99,AMAZON PRIME 759MU5NW5
OXFORDSHIRE CC,"CHILDRENS, YOUNG PEOPLE AND FAMILIES",HOUSE PROJECT,CATERING PROVISIONS,18/12/2019,6874045794,4.95,WM MORRISONS STORE
OXFORDSHIRE CC,"CHILDRENS, YOUNG PEOPLE AND FAMILIES",CNTL EARLY HELP-BRTN,CATERING,18/12/2019,6874045686,35.08,LIDL GB OXFORD
OXFORDSHIRE CC,"CHILDRENS, YOUNG PEOPLE AND FAMILIES",EYNSHAM,CATERING PROVISIONS,18/12/2019,6874045824,68.97,TESCO STORES 2008
OXFORDSHIRE CC,"CHILDRENS, YOUNG PEOPLE AND FAMILIES","	LOOKED AFTER CITY 2",PAYMENTS TO TRANSPORT OPERATORS,18/12/2019,6874045624,67.2,GWR DIDCOT PKW SST
OXFORDSHIRE CC,"CHILDRENS, YOUNG PEOPLE AND FAMILIES","	LOOKED AFTER CITY 2",OTHER TRANSPORT ARRANGEMENTS,18/12/2019,6874045628,6.3,APCOA CONNECT - FGW
OXFORDSHIRE CC,"CHILDRENS, YOUNG PEOPLE AND FAMILIES","	40 THE MOORS",CATERING PROVISIONS,18/12/2019,6874045706,236.09,ASDA GROCERIES ONLINE
OXFORDSHIRE CC,"CHILDRENS, YOUNG PEOPLE AND FAMILIES","	40 THE MOORS",CATERING PROVISIONS,18/12/2019,6874045710,-1.75,ASDA GROCERIES ONLINE
OXFORDSHIRE CC,"CHILDRENS, YOUNG PEOPLE AND FAMILIES",EYNSHAM,CATERING PROVISIONS,18/12/2019,6874045832,-2,TESCO STORES 2008
OXFORDSHIRE CC,"CHILDRENS, YOUNG PEOPLE AND FAMILIES",FPT SOUTH/VALE,PAYMENTS TO TRANSPORT OPERATORS,18/12/2019,6874045784,-32,THETRAINLINE.COM
OXFORDSHIRE CC,SOCIAL AND COMMUNITY SERVICES,CSS - OXFORD,CATERING PROVISIONS,18/12/2019,6874045444,0.5,ALDI STORES 775-142
OXFORDSHIRE CC,SOCIAL AND COMMUNITY SERVICES,DIDCOT MOVE-ON HOME,CATERING,18/12/2019,6874045460,4.69,MCDONALDS
OXFORDSHIRE CC,SOCIAL AND COMMUNITY SERVICES,LOOKED AFTER NORTH,HIRE OF ACCOMMODATION AND FACILITIES,18/12/2019,6874045370,130,HOTEL ON BOOKING.COM L
OXFORDSHIRE CC,"CHILDRENS, YOUNG PEOPLE AND FAMILIES",EYNSHAM,CATERING PROVISIONS,18/12/2019,6874045822,18.92,CO-OPERATIVE FOOD
OXFORDSHIRE CC,"CHILDRENS, YOUNG PEOPLE AND FAMILIES","	LOOKED AFTER SOUTH",MATERIALS,18/12/2019,6874045394,7.99,B&M RETAIL
OXFORDSHIRE CC,"CHILDRENS, YOUNG PEOPLE AND FAMILIES","	LOOKED AFTER SOUTH",MATERIALS,18/12/2019,6874045392,10,ARGOS LTD
OXFORDSHIRE CC,"CHILDRENS, YOUNG PEOPLE AND FAMILIES","	LOOKED AFTER SOUTH",MATERIALS,18/12/2019,6874045736,10,ARGOS LTD
OXFORDSHIRE CC,"CHILDRENS, YOUNG PEOPLE AND FAMILIES",THAME E&A HOME,MATERIALS,18/12/2019,6874045464,10.95,B&M RETAIL
OXFORDSHIRE CC,"CHILDRENS, YOUNG PEOPLE AND FAMILIES","	RIVERSIDE CENTRE",CATERING PROVISIONS,18/12/2019,6874045654,7.31,CO-OPERATIVE FOOD
OXFORDSHIRE CC,SOCIAL AND COMMUNITY SERVICES,DIDCOT MOVE-ON HOME,ENTERTAINMENT EXPENSES,18/12/2019,6874045462,4.95,ANTENNA AUDIO LTD
OXFORDSHIRE CC,ENTERPRISEVC,,CAR LEASING - PRIVATE RENTALS,18/12/2019,6874045836,565.75,ENTERPRISE RENT-A-CAR
OXFORDSHIRE CC,"CHILDRENS, YOUNG PEOPLE AND FAMILIES","	RESIDENTIAL STRATEGY",EDUCATIONAL AND VOCATIONAL TRAINING ,18/12/2019,6874045562,6.5,SPORTS CENTRE
OXFORDSHIRE CC,ENVIRONMENT AND ECONOMY,HARD FM,HARDWARE AND CROCKERY,18/12/2019,6874045414,19.36,WICKES BANBURY
OXFORDSHIRE CC,"CHILDRENS, YOUNG PEOPLE AND FAMILIES",THAME E&A HOME,CATERING,18/12/2019,6874045494,27.48,HARVESTER BRIDGE
OXFORDSHIRE CC,"CHILDRENS, YOUNG PEOPLE AND FAMILIES","	RIVERSIDE CENTRE",CATERING PROVISIONS,18/12/2019,6874045652,1.65,CO-OPERATIVE FOOD
OXFORDSHIRE CC,ENVIRONMENT AND ECONOMY,HARD FM,HARDWARE AND CROCKERY,18/12/2019,6874045424,36,WICKES OXFORD
OXFORDSHIRE CC,ENVIRONMENT AND ECONOMY,HARD FM,HARDWARE AND CROCKERY,18/12/2019,6874045410,49.99,SCREWFIX BANBURY
OXFORDSHIRE CC,"CHILDRENS, YOUNG PEOPLE AND FAMILIES","	LEAVING CARE NORTH",CATERING PROVISIONS,18/12/2019,6874045534,3,WM MORRISONS STORE
OXFORDSHIRE CC,"CHILDRENS, YOUNG PEOPLE AND FAMILIES","	LOOKED AFTER SOUTH",MATERIALS,18/12/2019,6874045792,20,SPORTSDIRECT.COM
OXFORDSHIRE CC,"CHILDRENS, YOUNG PEOPLE AND FAMILIES",DIDCOT MOVE-ON HOME,MATERIALS,18/12/2019,6874045498,33.99,JD SPORTS INTERNET
OXFORDSHIRE CC,SOCIAL AND COMMUNITY SERVICES,CSS - OXFORD,CATERING PROVISIONS,18/12/2019,6874045442,3.6,ALDI STORES 775-142
OXFORDSHIRE CC,ENVIRONMENT AND ECONOMY,DRIVEN,MATERIALS,18/12/2019,6874045542,199.99,WWW.JOHNLEWIS.COM
OXFORDSHIRE CC,SOCIAL AND COMMUNITY SERVICES,CSS WANTAGE,DAY ACTIVITIES,18/12/2019,6874045334,19.98,AMZNMKTPLACE AMAZON.CO
OXFORDSHIRE CC,SOCIAL AND COMMUNITY SERVICES,CSS - OXFORD,CATERING PROVISIONS,18/12/2019,6874045554,24.84,ALDI STORES 775-142
OXFORDSHIRE CC,SOCIAL AND COMMUNITY SERVICES,CSS - OXFORD,MATERIALS,18/12/2019,6874045552,14.27,ALDI STORES 775-142
OXFORDSHIRE CC,SOCIAL AND COMMUNITY SERVICES,SCHOOLS FM,CATERING PROVISIONS,18/12/2019,6874045530,8.9,ALDI 10 775
OXFORDSHIRE CC,SOCIAL AND COMMUNITY SERVICES,WANTAGE LIBRARY,MATERIALS,18/12/2019,6874045582,35.98,ARGOS LTD
OXFORDSHIRE CC,ENVIRONMENT AND ECONOMY,HARD FM,EQUIPMENT,18/12/2019,6874045420,28.91,ZIP HEATERS
OXFORDSHIRE CC,"CHILDRENS, YOUNG PEOPLE AND FAMILIES","	MALTFIELD HOUSE",CLEANING MATERIALS,17/12/2019,6869810864,6.6,SAINSBURYS 0632
OXFORDSHIRE CC,"CHILDRENS, YOUNG PEOPLE AND FAMILIES","	MALTFIELD HOUSE",CATERING PROVISIONS,17/12/2019,6869810862,7.6,SAINSBURYS 0632
OXFORDSHIRE CC,"CHILDRENS, YOUNG PEOPLE AND FAMILIES",DIDCOT MOVE-ON HOME,CATERING PROVISIONS,17/12/2019,6869810892,9.19,SAINSBURYS SACAT 2067
OXFORDSHIRE CC,"CHILDRENS, YOUNG PEOPLE AND FAMILIES","	LOOKED AFTER SOUTH",PAYMENTS TO TRANSPORT OPERATORS,17/12/2019,6869810578,39,CROSS COUNTRY TRAINS
OXFORDSHIRE CC,"CHILDRENS, YOUNG PEOPLE AND FAMILIES","	LOOKED AFTER SOUTH",PAYMENTS TO TRANSPORT OPERATORS,17/12/2019,6869810580,39,CROSS COUNTRY TRAINS
OXFORDSHIRE CC,"CHILDRENS, YOUNG PEOPLE AND FAMILIES","	RESIDENTIAL STRATEGY",CATERING,17/12/2019,6869810594,13.18,KFC-BANBURY
OXFORDSHIRE CC,"CHILDRENS, YOUNG PEOPLE AND FAMILIES",FPT SOUTH/VALE,PAYMENTS TO TRANSPORT OPERATORS,17/12/2019,6869810916,33.32,THETRAINLINE.COM
OXFORDSHIRE CC,ENVIRONMENT AND ECONOMY,HARD FM,MATERIALS,17/12/2019,6869810612,18.5,HALFORDS 0567
OXFORDSHIRE CC,"CHILDRENS, YOUNG PEOPLE AND FAMILIES","	LOOKED AFTER CITY 2",OTHER EXPENSES,17/12/2019,6869810908,8.97,OXFORD KFC
OXFORDSHIRE CC,"CHILDRENS, YOUNG PEOPLE AND FAMILIES","	LOOKED AFTER SOUTH",FURNITURE,17/12/2019,6869810894,2.63,POUNDSTRETCHER STOCK
OXFORDSHIRE CC,"CHILDRENS, YOUNG PEOPLE AND FAMILIES","	FOSTER CARE RECRUIT","PUBLICITY, PROMOTIONS AND ADVERTISEMENT",17/12/2019,6869810798,360,ROUND & ABOUT PUBLICAT
OXFORDSHIRE CC,"CHILDRENS, YOUNG PEOPLE AND FAMILIES",EYNSHAM,CATERING,17/12/2019,6869810878,42.5,JUST EAT
OXFORDSHIRE CC,"CHILDRENS, YOUNG PEOPLE AND FAMILIES","	LOOKED AFTER CITY 1",REGISTRATION AND INSPECTION FEES,17/12/2019,6869810740,11,OXFORDSHIRE CC MOTO1
OXFORDSHIRE CC,"CHILDRENS, YOUNG PEOPLE AND FAMILIES",CNTL EARLY HELP-RHIL,MATERIALS,17/12/2019,6869810666,40.98,AMZNMKTPLACE
OXFORDSHIRE CC,"CHILDRENS, YOUNG PEOPLE AND FAMILIES",LOCALITY & COMMUNITY SUPPORT SERVICE,NON-STAFF SUBSISTENCE AND EXPENSES,17/12/2019,6869810754,290,BLS EIFNATIONALCONFERE
OXFORDSHIRE CC,"CHILDRENS, YOUNG PEOPLE AND FAMILIES","	LOOKED AFTER CITY 1",OTHER TRANSPORT ARRANGEMENTS,17/12/2019,6869810608,2.5,UNION STREET CAR PARK
OXFORDSHIRE CC,ENVIRONMENT AND ECONOMY,HARD FM,IT SOFTWARE,17/12/2019,6869810620,75,PLUMBERS MATE LTD
OXFORDSHIRE CC,CORPORATE CORE,ICT OPERATIONS & MAI,MATERIALS,17/12/2019,6869810914,23.99,AMZNMKTPLACE
OXFORDSHIRE CC,"CHILDRENS, YOUNG PEOPLE AND FAMILIES","	RIVERSIDE CENTRE",MATERIALS,17/12/2019,6869810660,29.97,BEELINE BICYCLES LIMIT
OXFORDSHIRE CC,"CHILDRENS, YOUNG PEOPLE AND FAMILIES","	LOOKED AFTER CITY 2",CATERING,17/12/2019,6869810816,3.85,STARBUCKS COFFEE
OXFORDSHIRE CC,"CHILDRENS, YOUNG PEOPLE AND FAMILIES",NORTH FSS- BANBURY,PAYMENTS TO TRANSPORT OPERATORS,17/12/2019,6869810716,18.85,WWW.GWR.COM
OXFORDSHIRE CC,ENVIRONMENT AND ECONOMY,COUNTY LIBRARY,HARDWARE AND CROCKERY,17/12/2019,6869810626,20.99,CITY PLUMBING
OXFORDSHIRE CC,"CHILDRENS, YOUNG PEOPLE AND FAMILIES","	MUSIC UNALLOCABLE",CATERING PROVISIONS,17/12/2019,6869810748,102.97,SALVATIONIST PUBLISHIN
OXFORDSHIRE CC,ENVIRONMENT AND ECONOMY,THE OXFORDSHIRE MUSEUM - SITE,MATERIALS,17/12/2019,6869810814,6.99,AMZNMKTPLACE
OXFORDSHIRE CC,SOCIAL AND COMMUNITY SERVICES,CSS BICESTER,MATERIALS,17/12/2019,6869810546,9,AMZNMKTPLACE
OXFORDSHIRE CC,SOCIAL AND COMMUNITY SERVICES,DIDCOT MOVE-ON HOME,PAYMENTS TO TRANSPORT OPERATORS,17/12/2019,6869810654,12.2,EUSTON STN SST
OXFORDSHIRE CC,SOCIAL AND COMMUNITY SERVICES,LEAVING CARE NORTH,PAYMENTS TO TRANSPORT OPERATORS,17/12/2019,6869810652,12.2,EUSTON STN SST
OXFORDSHIRE CC,"CHILDRENS, YOUNG PEOPLE AND FAMILIES",NTH FAM SUPRT-BCSTR,PAYMENTS TO TRANSPORT OPERATORS,17/12/2019,6869810742,59.1,WWW.GWR.COM
OXFORDSHIRE CC,ENTERPRISEVC,ENGAGEMENT TEAM,MATERIALS,17/12/2019,6869810668,16.99,AMAZON.CO.UK B81SZ7CI5
OXFORDSHIRE CC,SOCIAL AND COMMUNITY SERVICES,BICESTER LIBRARY,CATERING PROVISIONS,17/12/2019,6869810920,25.5,SAINSBURYS (2243)
OXFORDSHIRE CC,"CHILDRENS, YOUNG PEOPLE AND FAMILIES",NTH FAM SUPRT-BCSTR,PAYMENTS TO TRANSPORT OPERATORS,17/12/2019,6869810718,10.4,WWW.GWR.COM
OXFORDSHIRE CC,ENVIRONMENT AND ECONOMY,HARD FM,MATERIALS,17/12/2019,6869810618,19.99,AMZNMKTPLACE
OXFORDSHIRE CC,SOCIAL AND COMMUNITY SERVICES,BICESTER LIBRARY,MATERIALS,17/12/2019,6869810922,2.99,CLINTONS 051
OXFORDSHIRE CC,"CHILDRENS, YOUNG PEOPLE AND FAMILIES",EYNSHAM,FURNITURE,17/12/2019,6869810970,10.47,AMZNMKTPLACE
OXFORDSHIRE CC,"CHILDRENS, YOUNG PEOPLE AND FAMILIES",FAMILY SUPPORT 2,PAYMENTS TO TRANSPORT OPERATORS,17/12/2019,6869810962,33.75,WWW.GWR.COM
OXFORDSHIRE CC,ENVIRONMENT AND ECONOMY,DRIVEN,EQUIPMENT,17/12/2019,6869810724,399,OCULUS
OXFORDSHIRE CC,CORPORATE CORE,"	CORPORATE FINANCE",PAYMENTS TO TRANSPORT OPERATORS,17/12/2019,6869810824,23.7,WWW.GWR.COM
OXFORDSHIRE CC,CORPORATE CORE,"	CORPORATE FINANCE",PAYMENTS TO TRANSPORT OPERATORS,17/12/2019,6869810826,23.7,WWW.GWR.COM
OXFORDSHIRE CC,CORPORATE CORE,INCOME TEAM,PAYMENT TO GOVERNMENT DEPARTMENTS,17/12/2019,6869810950,11,OXFORDSHIRE CC MOTO1
OXFORDSHIRE CC,ENVIRONMENT AND ECONOMY,HARD FM,GENERAL MAINTENANCE,17/12/2019,6869810622,626.41,WOLSELEY UK
OXFORDSHIRE CC,SOCIAL AND COMMUNITY SERVICES,"	CENTRAL LIBRARY",MATERIALS,17/12/2019,6869810822,39.98,ROBERT DYAS HOLDNG LTD
OXFORDSHIRE CC,"CHILDRENS, YOUNG PEOPLE AND FAMILIES",CNTL ERLY HELP-BBLEY,CATERING PROVISIONS,17/12/2019,6869810928,7,SAINSBURYS 0600
OXFORDSHIRE CC,SOCIAL AND COMMUNITY SERVICES,CSS WITNEY,CATERING PROVISIONS,17/12/2019,6869810572,14.1,MARKS&SPENCER PLC
OXFORDSHIRE CC,"CHILDRENS, YOUNG PEOPLE AND FAMILIES","	RIVERSIDE CENTRE",HARDWARE AND CROCKERY,17/12/2019,6869810744,35,OXFORD WOOD RECYCLING
OXFORDSHIRE CC,"CHILDRENS, YOUNG PEOPLE AND FAMILIES","	LOOKED AFTER CITY 2",MATERIALS,17/12/2019,6869810818,68.98,HOBBYCRAFT
OXFORDSHIRE CC,SOCIAL AND COMMUNITY SERVICES,CSS WITNEY,CATERING PROVISIONS,17/12/2019,6869810562,88.3,MARKS&SPENCER PLC
OXFORDSHIRE CC,SOCIAL AND COMMUNITY SERVICES,CSS WITNEY,CATERING PROVISIONS,17/12/2019,6869810564,50,MARKS&SPENCER PLC
OXFORDSHIRE CC,SOCIAL AND COMMUNITY SERVICES,CSS WITNEY,CATERING PROVISIONS,17/12/2019,6869810570,35,MARKS&SPENCER PLC
OXFORDSHIRE CC,SOCIAL AND COMMUNITY SERVICES,CSS WITNEY,CATERING PROVISIONS,17/12/2019,6869810566,45.3,MARKS&SPENCER PLC
OXFORDSHIRE CC,SOCIAL AND COMMUNITY SERVICES,CSS WITNEY,CATERING PROVISIONS,17/12/2019,6869810568,40,MARKS&SPENCER PLC
OXFORDSHIRE CC,ENVIRONMENT AND ECONOMY,HARD FM,EQUIPMENT,17/12/2019,6869810614,52.16,TLC SOUTHERN LTD
OXFORDSHIRE CC,"CHILDRENS, YOUNG PEOPLE AND FAMILIES",EYNSHAM,FURNITURE,17/12/2019,6869810966,8.99,AMZNMKTPLACE
OXFORDSHIRE CC,"CHILDRENS, YOUNG PEOPLE AND FAMILIES",EYNSHAM,FURNITURE,17/12/2019,6869810964,51.44,AMZNMKTPLACE
OXFORDSHIRE CC,SOCIAL AND COMMUNITY SERVICES,DIDCOT MOVE-ON HOME,PAYMENTS TO TRANSPORT OPERATORS,17/12/2019,6869810656,32.1,GWR DIDCOT PKWY TO
OXFORDSHIRE CC,SOCIAL AND COMMUNITY SERVICES,LEAVING CARE NORTH,PAYMENTS TO TRANSPORT OPERATORS,17/12/2019,6869810658,32.1,GWR DIDCOT PKWY TO
OXFORDSHIRE CC,CORPORATE CORE,"	COMMUNICATIONS",IT SOFTWARE,17/12/2019,6869810720,19.31,"ZAPIER, INC"
OXFORDSHIRE CC,"CHILDRENS, YOUNG PEOPLE AND FAMILIES","	MUSIC UNALLOCABLE",CAR LEASING - PRIVATE RENTALS,17/12/2019,6869810792,89.1,EURODRIVE
OXFORDSHIRE CC,"CHILDRENS, YOUNG PEOPLE AND FAMILIES",EYNSHAM,FURNITURE,17/12/2019,6869810968,36.99,AMZNMKTPLACE
OXFORDSHIRE CC,"CHILDRENS, YOUNG PEOPLE AND FAMILIES",DIDCOT MOVE-ON HOME,CATERING PROVISIONS,17/12/2019,6869810904,14.8,SAINSBURYS 2067
OXFORDSHIRE CC,"CHILDRENS, YOUNG PEOPLE AND FAMILIES",DIDCOT MOVE-ON HOME,CATERING PROVISIONS,17/12/2019,6869810696,4.25,SAINSBURYS SACAT 2067
OXFORDSHIRE CC,SOCIAL AND COMMUNITY SERVICES,CO PRODUCTION WORK,CATERING PROVISIONS,17/12/2019,6869810602,2.5,SAINSBURYS SACAT 0730
OXFORDSHIRE CC,SOCIAL AND COMMUNITY SERVICES,CO PRODUCTION WORK,CATERING PROVISIONS,17/12/2019,6869810600,12.95,SAINSBURYS SACAT 0730
OXFORDSHIRE CC,"CHILDRENS, YOUNG PEOPLE AND FAMILIES","	FAMILY SUPPORT S'TH2",PAYMENTS TO TRANSPORT OPERATORS,17/12/2019,6869810552,245.8,WWW.GWR.COM
OXFORDSHIRE CC,SOCIAL AND COMMUNITY SERVICES,CO PRODUCTION WORK,CATERING PROVISIONS,17/12/2019,6869810598,28.26,SAINSBURYS SACAT 0730
OXFORDSHIRE CC,"CHILDRENS, YOUNG PEOPLE AND FAMILIES",CNTL ERLY HELP-BBLEY,CATERING PROVISIONS,17/12/2019,6869810930,32.17,LIDL GB OXFORD
OXFORDSHIRE CC,"CHILDRENS, YOUNG PEOPLE AND FAMILIES","	LOOKED AFTER CITY 1",PAYMENT TO GOVERNMENT DEPARTMENTS,17/12/2019,6869810698,8.2,WWW.MYRINGGO.CO.UK
OXFORDSHIRE CC,"CHILDRENS, YOUNG PEOPLE AND FAMILIES","	FAMILY SUPPORT CITY3",OTHER TRANSPORT ARRANGEMENTS,17/12/2019,6869810576,6,UNION STREET CAR PARK
OXFORDSHIRE CC,CORPORATE CORE,REGISTRAR,CATERING PROVISIONS,17/12/2019,6869810708,1.25,SPAR SUPER STORE
OXFORDSHIRE CC,"CHILDRENS, YOUNG PEOPLE AND FAMILIES",CNTL ERLY HELP-BBLEY,CATERING PROVISIONS,17/12/2019,6869810932,6,MARKS&SPENCER PLC SF
OXFORDSHIRE CC,"CHILDRENS, YOUNG PEOPLE AND FAMILIES",CNTL ERLY HELP-BBLEY,CATERING PROVISIONS,17/12/2019,6869810926,25.5,TESCO STORE 2994
OXFORDSHIRE CC,ENVIRONMENT AND ECONOMY,HARD FM,HARDWARE AND CROCKERY,17/12/2019,6869810616,45.01,JEWSON LTD
OXFORDSHIRE CC,ENVIRONMENT AND ECONOMY,HENLEY LIBRARY,"NEWSPAPERS, PERIODICALS AND PUBLICATIONS",17/12/2019,6869810906,63,BEST FOODS
OXFORDSHIRE CC,ENVIRONMENT AND ECONOMY,COUNTY LIBRARY,GENERAL MAINTENANCE,17/12/2019,6869810624,10.19,WOLSELEY UK
OXFORDSHIRE CC,SOCIAL AND COMMUNITY SERVICES,CSS BICESTER,CATERING PROVISIONS,17/12/2019,6869810734,2.2,WILKO RETAIL LIMITED
OXFORDSHIRE CC,"CHILDRENS, YOUNG PEOPLE AND FAMILIES",THAME E&A HOME,CATERING PROVISIONS,17/12/2019,6869810736,125.01,TESCO STORES 2038
OXFORDSHIRE CC,SOCIAL AND COMMUNITY SERVICES,CSS BICESTER,CATERING PROVISIONS,17/12/2019,6869810642,61.9,SAINSBURYS (2243)
OXFORDSHIRE CC,SOCIAL AND COMMUNITY SERVICES,CSS - BANBURY,CATERING PROVISIONS,17/12/2019,6869810538,12.17,TESCO STORE 2064
OXFORDSHIRE CC,SOCIAL AND COMMUNITY SERVICES,CSS WITNEY,CATERING PROVISIONS,17/12/2019,6869810836,113.86,TESCO STORES 2008
OXFORDSHIRE CC,"CHILDRENS, YOUNG PEOPLE AND FAMILIES",CSS - DIDCOT,CATERING PROVISIONS,17/12/2019,6869810596,227.78,TESCO STORE 2919
OXFORDSHIRE CC,SOCIAL AND COMMUNITY SERVICES,DIDCOT MOVE-ON HOME,OTHER TRANSPORT ARRANGEMENTS,17/12/2019,6869810650,6,MULLANYS COACHES LTD
OXFORDSHIRE CC,"CHILDRENS, YOUNG PEOPLE AND FAMILIES",UASC 16&17,VEHICLE FUEL,17/12/2019,6869810610,37.74,TESCO PAYAT PUMP 3700
OXFORDSHIRE CC,ENVIRONMENT AND ECONOMY,S38 INSPECT & OTHER,PAYMENTS TO TRANSPORT OPERATORS,17/12/2019,6869810704,42.68,TRAINLINE
OXFORDSHIRE CC,"CHILDRENS, YOUNG PEOPLE AND FAMILIES",THAME E&A HOME,VEHICLE FUEL,17/12/2019,6869810648,15.89,THAME BP SF CONNECT
OXFORDSHIRE CC,"CHILDRENS, YOUNG PEOPLE AND FAMILIES",THAME E&A HOME,VEHICLE FUEL,17/12/2019,6869810646,5.38,THAME BP SF CONNECT
OXFORDSHIRE CC,SOCIAL AND COMMUNITY SERVICES,"	MUSEUMS COLLECTIONS",OTHER SERVICES,17/12/2019,6869810828,804.9,WWW.PRESERVATIONEQUIPM
OXFORDSHIRE CC,ENVIRONMENT AND ECONOMY,S38 INSPECT & OTHER,PAYMENTS TO TRANSPORT OPERATORS,16/12/2019,6862689140,68.58,THETRAINLINE.COM
OXFORDSHIRE CC,"CHILDRENS, YOUNG PEOPLE AND FAMILIES",EYNSHAM,CATERING,16/12/2019,6862690128,11.98,DOMINOS PIZZA UK & IRE
OXFORDSHIRE CC,CORPORATE CORE,HOUSING& GROWTH DEAL,PAYMENTS TO TRANSPORT OPERATORS,16/12/2019,6862689016,76.11,TRAINLINE
OXFORDSHIRE CC,"CHILDRENS, YOUNG PEOPLE AND FAMILIES",CNTL EARLY HELP-RHIL,MATERIALS,16/12/2019,6862688986,24.96,AMAZON.CO.UK 5T1ES1LC5
OXFORDSHIRE CC,"CHILDRENS, YOUNG PEOPLE AND FAMILIES",DIDCOT MOVE-ON HOME,CATERING PROVISIONS,16/12/2019,6862690168,18.99,SAINSBURYS SACAT 2067
OXFORDSHIRE CC,"CHILDRENS, YOUNG PEOPLE AND FAMILIES",DIDCOT MOVE-ON HOME,MATERIALS,16/12/2019,6862690174,19.99,GAME RETAIL
OXFORDSHIRE CC,"CHILDRENS, YOUNG PEOPLE AND FAMILIES",BULLINGDON PRISON,MATERIALS,16/12/2019,6862690290,21.97,AMAZON.CO.UK LH9753UZ5
OXFORDSHIRE CC,"CHILDRENS, YOUNG PEOPLE AND FAMILIES",THAME E&A HOME,CATERING PROVISIONS,16/12/2019,6862688872,7.06,CO-OPERATIVE FOOD
OXFORDSHIRE CC,"CHILDRENS, YOUNG PEOPLE AND FAMILIES",WITNEY,CATERING PROVISIONS,16/12/2019,6862688952,74.36,SAINSBURYS 0632
OXFORDSHIRE CC,"CHILDRENS, YOUNG PEOPLE AND FAMILIES",THAME E&A HOME,ENTERTAINMENT EXPENSES,16/12/2019,6862688782,8.2,ADVENTURE GOLF (OXFORD
OXFORDSHIRE CC,"CHILDRENS, YOUNG PEOPLE AND FAMILIES",WITNEY,CATERING PROVISIONS,16/12/2019,6862688958,25,SAINSBURYS 0632
OXFORDSHIRE CC,SOCIAL AND COMMUNITY SERVICES,DIDCOT MOVE-ON HOME,PAYMENTS TO TRANSPORT OPERATORS,16/12/2019,6862688908,11.04,THETRAINLINE.COM
OXFORDSHIRE CC,SOCIAL AND COMMUNITY SERVICES,CSS - ABINGDON,CATERING PROVISIONS,16/12/2019,6862688610,65.1,TESCO STORES 2008
OXFORDSHIRE CC,SOCIAL AND COMMUNITY SERVICES,DIDCOT MOVE-ON HOME,ENTERTAINMENT EXPENSES,16/12/2019,6862688926,45,WARNER BROS. STUDIOS L
OXFORDSHIRE CC,SOCIAL AND COMMUNITY SERVICES,CSS - ABINGDON,MATERIALS,16/12/2019,6862688688,49.98,AMAZON.CO.UK S30W52005
OXFORDSHIRE CC,"CHILDRENS, YOUNG PEOPLE AND FAMILIES",EYNSHAM,ENTERTAINMENT EXPENSES,16/12/2019,6862690330,5,REBOUND REVOLUTION
OXFORDSHIRE CC,"CHILDRENS, YOUNG PEOPLE AND FAMILIES",CNTL EARLY HELP-RHIL,MATERIALS,16/12/2019,6862690102,116.38,AMZNMKTPLACE
OXFORDSHIRE CC,"CHILDRENS, YOUNG PEOPLE AND FAMILIES",EYNSHAM,ENTERTAINMENT EXPENSES,16/12/2019,6862690326,11.5,REBOUND REVOLUTION
OXFORDSHIRE CC,ENVIRONMENT AND ECONOMY,"	TVERC",IT SERVICES,16/12/2019,6862690258,9.99,DROPBOX HS8CW556MCH2
OXFORDSHIRE CC,SOCIAL AND COMMUNITY SERVICES,LEAVING CARE NORTH,PAYMENTS TO TRANSPORT OPERATORS,16/12/2019,6862688898,11.04,THETRAINLINE.COM
OXFORDSHIRE CC,ENVIRONMENT AND ECONOMY,"	BRIDGES GENERAL",HARDWARE AND CROCKERY,16/12/2019,6862689594,18.09,B & Q 1062
OXFORDSHIRE CC,ENVIRONMENT AND ECONOMY,"	BRIDGES GENERAL",HARDWARE AND CROCKERY,16/12/2019,6862689606,53.6,HOMEBASE LTD
OXFORDSHIRE CC,ENVIRONMENT AND ECONOMY,"	BRIDGES GENERAL",HARDWARE AND CROCKERY,16/12/2019,6862689610,53.45,SCREWFIX DIRECT
OXFORDSHIRE CC,"CHILDRENS, YOUNG PEOPLE AND FAMILIES",THAME E&A HOME,CATERING PROVISIONS,16/12/2019,6862689338,18.15,TESCO STORES 4480
OXFORDSHIRE CC,"CHILDRENS, YOUNG PEOPLE AND FAMILIES","	LOOKED AFTER CITY 1",TELEPHONE - EQUIPMENT,16/12/2019,6862689084,25,GIFFGAFF
OXFORDSHIRE CC,ENVIRONMENT AND ECONOMY,"	BUSINESS SYST STAFF",CATERING PROVISIONS,16/12/2019,6862690138,26.69,ASDA STORES
OXFORDSHIRE CC,"CHILDRENS, YOUNG PEOPLE AND FAMILIES",EYNSHAM,CATERING PROVISIONS,16/12/2019,6862690224,8.1,OXFORD PEARTREE STARBU
OXFORDSHIRE CC,"CHILDRENS, YOUNG PEOPLE AND FAMILIES",THAME E&A HOME,VEHICLE FUEL,16/12/2019,6862688864,5.58,THAME BP SF CONNECT
OXFORDSHIRE CC,SOCIAL AND COMMUNITY SERVICES,DIDCOT MOVE-ON HOME,MATERIALS,16/12/2019,6862688920,9.15,AMAZON.CO.UK LH7D430R5
OXFORDSHIRE CC,SOCIAL AND COMMUNITY SERVICES,DIDCOT MOVE-ON HOME,CATERING PROVISIONS,16/12/2019,6862688880,28.35,SAINSBURYS SACAT 2067
OXFORDSHIRE CC,SOCIAL AND COMMUNITY SERVICES,LOOKED AFTER NORTH,OTHER TRANSPORT ARRANGEMENTS,16/12/2019,6862688564,4,TELFORD INTERNATIONAL
OXFORDSHIRE CC,SOCIAL AND COMMUNITY SERVICES,LOOKED AFTER SOUTH,CLOTHING AND UNIFORMS,16/12/2019,6862688892,19.54,NEW LOOK 1754
OXFORDSHIRE CC,SOCIAL AND COMMUNITY SERVICES,DIDCOT MOVE-ON HOME,DRUGS AND MEDICAL SUPPLIES,16/12/2019,6862688914,6,BOOTS 2138
OXFORDSHIRE CC,SOCIAL AND COMMUNITY SERVICES,LOOKED AFTER SOUTH,CLOTHING AND UNIFORMS,16/12/2019,6862688886,40.01,H & M
OXFORDSHIRE CC,"CHILDRENS, YOUNG PEOPLE AND FAMILIES",EYNSHAM,CATERING,16/12/2019,6862690120,8,THE SHAKE SHOP
OXFORDSHIRE CC,"CHILDRENS, YOUNG PEOPLE AND FAMILIES",THAME E&A HOME,CATERING PROVISIONS,16/12/2019,6862688852,13.25,SAINSBURYS 2096
OXFORDSHIRE CC,"CHILDRENS, YOUNG PEOPLE AND FAMILIES",WITNEY,CATERING PROVISIONS,16/12/2019,6862688944,8.9,SAINSBURYS 0632
OXFORDSHIRE CC,ENVIRONMENT AND ECONOMY,"	NAT TRAILS GENERAL",MATERIALS,16/12/2019,6862688638,23.48,TOOLSTATION LTD
OXFORDSHIRE CC,"CHILDRENS, YOUNG PEOPLE AND FAMILIES",THAME E&A HOME,MATERIALS,16/12/2019,6862688860,12.99,ROBERT DYAS HOLDNG LTD
OXFORDSHIRE CC,SOCIAL AND COMMUNITY SERVICES,LOOKED AFTER NORTH,SUBSCRIPTIONS,16/12/2019,6862688570,6.1,WWW.TENPIN.CO.UK
OXFORDSHIRE CC,"CHILDRENS, YOUNG PEOPLE AND FAMILIES",CNTL EARLY HELP-RHIL,CLOTHING AND UNIFORMS,16/12/2019,6862690098,19.99,URBAN OUTFITTERS
OXFORDSHIRE CC,"CHILDRENS, YOUNG PEOPLE AND FAMILIES","	LOOKED AFTER SOUTH",REGISTRATION AND INSPECTION FEES,16/12/2019,6862689164,58.5,HM PASSPORT OFFICE
OXFORDSHIRE CC,"CHILDRENS, YOUNG PEOPLE AND FAMILIES",EYNSHAM,MATERIALS,16/12/2019,6862690336,12.99,AMZNMKTPLACE
OXFORDSHIRE CC,"CHILDRENS, YOUNG PEOPLE AND FAMILIES",EYNSHAM,MATERIALS,16/12/2019,6862690334,13.59,AMZNMKTPLACE
OXFORDSHIRE CC,"CHILDRENS, YOUNG PEOPLE AND FAMILIES",EYNSHAM,CATERING PROVISIONS,16/12/2019,6862690492,-6,TESCO STORES 2008
OXFORDSHIRE CC,"CHILDRENS, YOUNG PEOPLE AND FAMILIES",EYNSHAM,MATERIALS,16/12/2019,6862690340,-13.59,AMZNMKTPLACE
OXFORDSHIRE CC,"CHILDRENS, YOUNG PEOPLE AND FAMILIES",EYNSHAM,CATERING,16/12/2019,6862690124,0.95,THE SHAKE SHOP
OXFORDSHIRE CC,"CHILDRENS, YOUNG PEOPLE AND FAMILIES",EYNSHAM,FURNITURE,16/12/2019,6862690380,19.99,SPORTSDIRECT.COM
OXFORDSHIRE CC,"CHILDRENS, YOUNG PEOPLE AND FAMILIES","	LOOKED AFTER SOUTH",CLOTHING AND UNIFORMS,16/12/2019,6862690384,55.98,SPORTSDIRECT.COM
OXFORDSHIRE CC,CORPORATE CORE,ICT OPERATIONS & MAI,IT SERVICES,16/12/2019,6862690310,19.55,GITHUB
OXFORDSHIRE CC,"CHILDRENS, YOUNG PEOPLE AND FAMILIES",THAME E&A HOME,OTHER TRANSPORT ARRANGEMENTS,16/12/2019,6862688770,1.5,PARKJOCKEY LONDON
OXFORDSHIRE CC,"CHILDRENS, YOUNG PEOPLE AND FAMILIES",THAME E&A HOME,CATERING,16/12/2019,6862688756,3.99,IZ  55 WENZELS THE
OXFORDSHIRE CC,"CHILDRENS, YOUNG PEOPLE AND FAMILIES",THAME E&A HOME,CLOTHING AND UNIFORMS,16/12/2019,6862688774,26.5,PRIMARK 647
OXFORDSHIRE CC,"CHILDRENS, YOUNG PEOPLE AND FAMILIES",THAME E&A HOME,CATERING PROVISIONS,16/12/2019,6862690426,5.25,SAINSBURYS 2096
OXFORDSHIRE CC,"CHILDRENS, YOUNG PEOPLE AND FAMILIES",THAME E&A HOME,DRUGS AND MEDICAL SUPPLIES,16/12/2019,6862688762,1.75,SUPERDRUG STORES PLC
OXFORDSHIRE CC,SOCIAL AND COMMUNITY SERVICES,CICC,CLOTHING AND UNIFORMS,16/12/2019,6862689208,40,PRIMARK 440
OXFORDSHIRE CC,"CHILDRENS, YOUNG PEOPLE AND FAMILIES","	RIVERSIDE CENTRE",DAY ACTIVITIES,16/12/2019,6862689702,5,ROCKSTAR CLIMBING
OXFORDSHIRE CC,ENTERPRISEVC,,CAR LEASING - PRIVATE RENTALS,16/12/2019,6862690516,962.28,ENTERPRISE RENT-A-CAR
OXFORDSHIRE CC,ENTERPRISEVC,,CAR LEASING - PRIVATE RENTALS,16/12/2019,6862690506,962.28,ENTERPRISE RENT-A-CAR
OXFORDSHIRE CC,CORPORATE CORE,LIBRARY COLLECTIONS,"NEWSPAPERS, PERIODICALS AND PUBLICATIONS",16/12/2019,6862689122,47.62,GUARDIAN NEWS & MEDIA
OXFORDSHIRE CC,CORPORATE CORE,LIBRARY COLLECTIONS,"NEWSPAPERS, PERIODICALS AND PUBLICATIONS",16/12/2019,6862689118,47.62,GUARDIAN NEWS & MEDIA
OXFORDSHIRE CC,CORPORATE CORE,LIBRARY COLLECTIONS,"NEWSPAPERS, PERIODICALS AND PUBLICATIONS",16/12/2019,6862689114,47.62,GUARDIAN NEWS & MEDIA
OXFORDSHIRE CC,SOCIAL AND COMMUNITY SERVICES,CICC,DRUGS AND MEDICAL SUPPLIES,16/12/2019,6862689200,238,SUPERDRUG STORES PLC
OXFORDSHIRE CC,CORPORATE CORE,LIBRARY COLLECTIONS,"NEWSPAPERS, PERIODICALS AND PUBLICATIONS",16/12/2019,6862689110,47.62,GUARDIAN NEWS & MEDIA
OXFORDSHIRE CC,CORPORATE CORE,LIBRARY COLLECTIONS,"NEWSPAPERS, PERIODICALS AND PUBLICATIONS",16/12/2019,6862689108,47.62,GUARDIAN NEWS & MEDIA
OXFORDSHIRE CC,CORPORATE CORE,LIBRARY COLLECTIONS,"NEWSPAPERS, PERIODICALS AND PUBLICATIONS",16/12/2019,6862689104,47.62,GUARDIAN NEWS & MEDIA
OXFORDSHIRE CC,"CHILDRENS, YOUNG PEOPLE AND FAMILIES","	LOOKED AFTER NORTH",OTHER TRANSPORT ARRANGEMENTS,16/12/2019,6862690470,6.7,M6 TOLL
OXFORDSHIRE CC,SOCIAL AND COMMUNITY SERVICES,CICC,MATERIALS,16/12/2019,6862689194,176,LUSH UK
OXFORDSHIRE CC,SOCIAL AND COMMUNITY SERVICES,CICC,MATERIALS,16/12/2019,6862689188,480,LUSH UK
OXFORDSHIRE CC,CORPORATE CORE,LIBRARY COLLECTIONS,"NEWSPAPERS, PERIODICALS AND PUBLICATIONS",16/12/2019,6862689100,47.62,GUARDIAN NEWS & MEDIA
OXFORDSHIRE CC,CORPORATE CORE,LIBRARY COLLECTIONS,"NEWSPAPERS, PERIODICALS AND PUBLICATIONS",16/12/2019,6862689094,47.62,GUARDIAN NEWS & MEDIA
OXFORDSHIRE CC,"CHILDRENS, YOUNG PEOPLE AND FAMILIES",EYNSHAM,OTHER TRANSPORT ARRANGEMENTS,16/12/2019,6862688592,2.8,OXFORD UNIVERSITY HOSP
OXFORDSHIRE CC,"CHILDRENS, YOUNG PEOPLE AND FAMILIES",DIDCOT MOVE-ON HOME,CATERING PROVISIONS,16/12/2019,6862689044,4.2,SAINSBURYS SACAT 2067
OXFORDSHIRE CC,"CHILDRENS, YOUNG PEOPLE AND FAMILIES",EYNSHAM,STAFF USE OF PUBLIC TRANSPORT,16/12/2019,6862688596,2.7,NCP PARK PASS
OXFORDSHIRE CC,"CHILDRENS, YOUNG PEOPLE AND FAMILIES",NORTH FSS- BANBURY,PAYMENTS TO TRANSPORT OPERATORS,16/12/2019,6862689170,58.2,WWW.GWR.COM
OXFORDSHIRE CC,"CHILDRENS, YOUNG PEOPLE AND FAMILIES","	LEAVING CARE NORTH",PAYMENTS TO VOLUNTARY BODIES,16/12/2019,6862689832,60,SALVATION ARMY
OXFORDSHIRE CC,"CHILDRENS, YOUNG PEOPLE AND FAMILIES","	LOOKED AFTER NORTH",OTHER TRANSPORT ARRANGEMENTS,16/12/2019,6862690474,4.8,M6 TOLL
OXFORDSHIRE CC,"CHILDRENS, YOUNG PEOPLE AND FAMILIES",CNTL EARLY HELP-RHIL,MATERIALS,16/12/2019,6862689276,30,J D SPORTS
OXFORDSHIRE CC,"CHILDRENS, YOUNG PEOPLE AND FAMILIES",KINGFISHER,CATERING,16/12/2019,6862689848,6.85,COSTA COFFEE ABINGDON
OXFORDSHIRE CC,SOCIAL AND COMMUNITY SERVICES,LEAVING CARE NORTH,CATERING PROVISIONS,16/12/2019,6862689760,40,WM MORRISONS STORE
OXFORDSHIRE CC,"CHILDRENS, YOUNG PEOPLE AND FAMILIES",CNTL ERLY HELP-BBLEY,MATERIALS,16/12/2019,6862690538,25,ARGOS HEYFORD HILL
OXFORDSHIRE CC,SOCIAL AND COMMUNITY SERVICES,LEAVING CARE NORTH,CATERING PROVISIONS,16/12/2019,6862689754,4.9,WM MORRISONS STORE
OXFORDSHIRE CC,"CHILDRENS, YOUNG PEOPLE AND FAMILIES","	LOOKED AFTER NORTH",OTHER TRANSPORT ARRANGEMENTS,16/12/2019,6862690460,18,NCP LIMITED
OXFORDSHIRE CC,"CHILDRENS, YOUNG PEOPLE AND FAMILIES","	LEAVING CARE CITY 2",PAYMENT TO GOVERNMENT DEPARTMENTS,16/12/2019,6862689400,75,2MAA013018657 TD E-PMT
OXFORDSHIRE CC,"CHILDRENS, YOUNG PEOPLE AND FAMILIES","	LOOKED AFTER NORTH",HIRE OF ACCOMMODATION AND FACILITIES,16/12/2019,6862688836,324.2,THISTLE EXPRESS SW
OXFORDSHIRE CC,"CHILDRENS, YOUNG PEOPLE AND FAMILIES","	RESIDENTIAL STRATEGY",CATERING PROVISIONS,16/12/2019,6862689360,4.25,TESCO STORES 4377
OXFORDSHIRE CC,"CHILDRENS, YOUNG PEOPLE AND FAMILIES","	DIRECTOR'S OFFICE",PAYMENTS TO TRANSPORT OPERATORS,16/12/2019,6862690522,576.01,TRAINLINE
OXFORDSHIRE CC,"CHILDRENS, YOUNG PEOPLE AND FAMILIES","	FAMILY SUPPORT CITY3",OTHER TRANSPORT ARRANGEMENTS,16/12/2019,6862690064,39.7,WWW.GWR.COM
OXFORDSHIRE CC,SOCIAL AND COMMUNITY SERVICES,CSS - OXFORD,MATERIALS,16/12/2019,6862688700,7.99,AMAZON PRIME 3L8DC04Y5
OXFORDSHIRE CC,"CHILDRENS, YOUNG PEOPLE AND FAMILIES",DIDCOT MOVE-ON HOME,MATERIALS,16/12/2019,6862690162,40.97,B & M RETAIL
OXFORDSHIRE CC,"CHILDRENS, YOUNG PEOPLE AND FAMILIES","	LOOKED AFTER SOUTH",CATERING PROVISIONS,16/12/2019,6862688672,7.66,TESCO STORES 2038
OXFORDSHIRE CC,"CHILDRENS, YOUNG PEOPLE AND FAMILIES","	FAMILY SUPPORT CITY3",MATERIALS,16/12/2019,6862688540,7.99,AMAZON PRIME NB2KK21T5
OXFORDSHIRE CC,"CHILDRENS, YOUNG PEOPLE AND FAMILIES","	LOOKED AFTER SOUTH",CATERING PROVISIONS,16/12/2019,6862688666,10,TESCO STORES 2038
OXFORDSHIRE CC,"CHILDRENS, YOUNG PEOPLE AND FAMILIES",EYNSHAM,CATERING,16/12/2019,6862688934,6.4,BOSWELLS CAFE COWLEY
OXFORDSHIRE CC,SOCIAL AND COMMUNITY SERVICES,CSS - OXFORD,MATERIALS,16/12/2019,6862689574,7.99,AMAZON PRIME IP6K58HM5
OXFORDSHIRE CC,SOCIAL AND COMMUNITY SERVICES,CSS BICESTER,MATERIALS,16/12/2019,6862688496,168.22,AMZNMKTPLACE AMAZON.CO
OXFORDSHIRE CC,"CHILDRENS, YOUNG PEOPLE AND FAMILIES",CNTL ERLY HELP-BBLEY,MATERIALS,16/12/2019,6862690536,4.84,AMZNMKTPLACE AMAZON.CO
OXFORDSHIRE CC,"CHILDRENS, YOUNG PEOPLE AND FAMILIES",UNION STREET FFS,CATERING PROVISIONS,16/12/2019,6862690528,2.18,TESCO STORE 2990
OXFORDSHIRE CC,SOCIAL AND COMMUNITY SERVICES,CSS - OXFORD,CATERING PROVISIONS,16/12/2019,6862689346,2.08,ALDI STORES 775-142
OXFORDSHIRE CC,"CHILDRENS, YOUNG PEOPLE AND FAMILIES","	LOOKED AFTER NORTH",CATERING PROVISIONS,16/12/2019,6862690480,7.7,COSTA BICESTER
OXFORDSHIRE CC,SOCIAL AND COMMUNITY SERVICES,RESIDENTIAL STRATEGY,CATERING PROVISIONS,16/12/2019,6862688842,6.46,CO-OPERATIVE FOOD
OXFORDSHIRE CC,"CHILDRENS, YOUNG PEOPLE AND FAMILIES","	FPT CITY",CATERING PROVISIONS,16/12/2019,6862689130,10,SAINSBURYS SACAT 0600
OXFORDSHIRE CC,"CHILDRENS, YOUNG PEOPLE AND FAMILIES","	LOOKED AFTER SOUTH",CATERING PROVISIONS,16/12/2019,6862688678,13.95,WILKO RETAIL LIMITED
OXFORDSHIRE CC,SOCIAL AND COMMUNITY SERVICES,ABINGDON LIBRARY,"NEWSPAPERS, PERIODICALS AND PUBLICATIONS",16/12/2019,6862690298,6.1,SIMONS NEWS
OXFORDSHIRE CC,SOCIAL AND COMMUNITY SERVICES,"	KINGFISHER",PAYMENTS TO TRANSPORT OPERATORS,16/12/2019,6862689408,79.06,TRAINLINE
OXFORDSHIRE CC,SOCIAL AND COMMUNITY SERVICES,CSS BICESTER,CATERING PROVISIONS,16/12/2019,6862689318,32,WILKO RETAIL LIMITED
OXFORDSHIRE CC,ENVIRONMENT AND ECONOMY,HARD FM,MATERIALS,16/12/2019,6862688786,17.39,COLLIERS OF CROWMARSH
OXFORDSHIRE CC,"CHILDRENS, YOUNG PEOPLE AND FAMILIES","	MALTFIELD HOUSE",CATERING PROVISIONS,16/12/2019,6862689354,26.55,SAINSBURYS 2067
OXFORDSHIRE CC,"CHILDRENS, YOUNG PEOPLE AND FAMILIES",KINGFISHER,PAYMENTS TO TRANSPORT OPERATORS,16/12/2019,6862689842,129.32,TRAINLINE
OXFORDSHIRE CC,SOCIAL AND COMMUNITY SERVICES,LOOKED AFTER SOUTH,OTHER TRANSPORT ARRANGEMENTS,16/12/2019,6862689292,4,OXPENS CAR PARK
OXFORDSHIRE CC,"CHILDRENS, YOUNG PEOPLE AND FAMILIES",CNTL EARLY HELP-BRTN,FURNITURE,16/12/2019,6862690070,161.95,WWW.ARGOS.CO.UK
OXFORDSHIRE CC,"CHILDRENS, YOUNG PEOPLE AND FAMILIES","	LOOKED AFTER NORTH",CATERING,16/12/2019,6862690448,3.05,MOOR STREET KIOSK
OXFORDSHIRE CC,"CHILDRENS, YOUNG PEOPLE AND FAMILIES","	RIVERSIDE CENTRE",DAY ACTIVITIES,16/12/2019,6862689712,13,SPORTS CENTRE
OXFORDSHIRE CC,"CHILDRENS, YOUNG PEOPLE AND FAMILIES","	LOOKED AFTER NORTH",PAYMENTS TO TRANSPORT OPERATORS,16/12/2019,6862690452,22.2,BIRMINGHAM MOOR STREET
OXFORDSHIRE CC,"CHILDRENS, YOUNG PEOPLE AND FAMILIES",CSS - DIDCOT,CATERING PROVISIONS,16/12/2019,6862688656,40.18,TK MAXX
OXFORDSHIRE CC,ENVIRONMENT AND ECONOMY,HARD FM,GENERAL MAINTENANCE,16/12/2019,6862688726,282.94,WOLSELEY UK
OXFORDSHIRE CC,"CHILDRENS, YOUNG PEOPLE AND FAMILIES",CSS WALLINGFORD,CATERING PROVISIONS,16/12/2019,6862688648,4.5,SAINSBURYS SACAT 2067
OXFORDSHIRE CC,ENVIRONMENT AND ECONOMY,HARD FM,HARDWARE AND CROCKERY,16/12/2019,6862688790,9.87,B & Q 1156
OXFORDSHIRE CC,"CHILDRENS, YOUNG PEOPLE AND FAMILIES",NORTH FSS- BANBURY,NON-STAFF SUBSISTENCE AND EXPENSES,16/12/2019,6862689038,6,WM MORRISONS STORE
OXFORDSHIRE CC,"CHILDRENS, YOUNG PEOPLE AND FAMILIES",FAMILY SUPPORT 2,PAYMENTS TO TRANSPORT OPERATORS,16/12/2019,6862690628,16.8,WWW.GWR.COM
OXFORDSHIRE CC,SOCIAL AND COMMUNITY SERVICES,CSS WALLINGFORD,CATERING PROVISIONS,16/12/2019,6862689220,1.8,WAITROSE 675
OXFORDSHIRE CC,"CHILDRENS, YOUNG PEOPLE AND FAMILIES",FAMILY SUPPORT 2,PAYMENTS TO TRANSPORT OPERATORS,16/12/2019,6862690636,33.6,WWW.GWR.COM
OXFORDSHIRE CC,"CHILDRENS, YOUNG PEOPLE AND FAMILIES",THAME E&A HOME,OTHER TRANSPORT ARRANGEMENTS,16/12/2019,6862688766,3.4,PARKING CHARGE
OXFORDSHIRE CC,ENVIRONMENT AND ECONOMY,COUNTY LIBRARY,GENERAL MAINTENANCE,16/12/2019,6862688816,30.32,WOLSELEY UK
OXFORDSHIRE CC,ENVIRONMENT AND ECONOMY,MEMBERS' BAR,CATERING PROVISIONS,16/12/2019,6862689580,35.94,ALDI 77 775
OXFORDSHIRE CC,ENVIRONMENT AND ECONOMY,HARD FM,HARDWARE AND CROCKERY,16/12/2019,6862688796,49.99,SCREWFIX OXFORD BOTLEY
OXFORDSHIRE CC,ENVIRONMENT AND ECONOMY,HARD FM,GENERAL MAINTENANCE,16/12/2019,6862688736,39.29,WOLSELEY UK
OXFORDSHIRE CC,"CHILDRENS, YOUNG PEOPLE AND FAMILIES","	LOOKED AFTER NORTH",OTHER TRANSPORT ARRANGEMENTS,16/12/2019,6862690466,4.8,M6 TOLL
OXFORDSHIRE CC,"CHILDRENS, YOUNG PEOPLE AND FAMILIES","	LOOKED AFTER CITY 1",PAYMENT TO GOVERNMENT DEPARTMENTS,16/12/2019,6862689050,5.4,WWW.MYRINGGO.CO.UK
OXFORDSHIRE CC,ENVIRONMENT AND ECONOMY,HARD FM,HARDWARE AND CROCKERY,16/12/2019,6862688720,159.97,SCREWFIX DIDCOT
OXFORDSHIRE CC,CORPORATE CORE,,"SUPPLIES, STATIONERY AND MATERIALS",16/12/2019,6862690414,155.33,LYRECO UK LTD
OXFORDSHIRE CC,"CHILDRENS, YOUNG PEOPLE AND FAMILIES",0-5 STDS & PROGRESS,PROFESSIONAL SUBSCRIPTIONS,16/12/2019,6862690180,299,WWW.NASEN.ORG.UK
OXFORDSHIRE CC,"CHILDRENS, YOUNG PEOPLE AND FAMILIES",EYNSHAM,CATERING PROVISIONS,16/12/2019,6862690484,178.02,TESCO STORES 2008
OXFORDSHIRE CC,"CHILDRENS, YOUNG PEOPLE AND FAMILIES",THAME E&A HOME,CATERING PROVISIONS,16/12/2019,6862689328,134.17,TESCO STORES 2038
OXFORDSHIRE CC,CORPORATE CORE,INCOME TEAM,COURT FEES,16/12/2019,6862689178,25,WWW.MONEYCLAIM.GOV
OXFORDSHIRE CC,CORPORATE CORE,CENTRAL BUYING TEAM,VEHICLE FUEL,16/12/2019,6862690500,15.18,TESCO PFS 3700
OXFORDSHIRE CC,"CHILDRENS, YOUNG PEOPLE AND FAMILIES",THAME E&A HOME,CATERING PROVISIONS,16/12/2019,6862689332,-3.75,TESCO STORES 2038
OXFORDSHIRE CC,ENVIRONMENT AND ECONOMY,HARD FM,HARDWARE AND CROCKERY,16/12/2019,6862688744,-24.99,SCREWFIX DIDCOT
OXFORDSHIRE CC,CORPORATE CORE,THAME LIBRARY,MATERIALS,16/12/2019,6862690590,-14.99,WWW.ARGOS.CO.UK
OXFORDSHIRE CC,CORPORATE CORE,THAME LIBRARY,MATERIALS,16/12/2019,6862690582,-12.95,WWW.ARGOS.CO.UK
OXFORDSHIRE CC,"CHILDRENS, YOUNG PEOPLE AND FAMILIES","	40 THE MOORS",MATERIALS,16/12/2019,6862690110,62.98,ARGOS RETAIL GROUP
OXFORDSHIRE CC,"CHILDRENS, YOUNG PEOPLE AND FAMILIES","	LOOKED AFTER CITY 2",HIRE OF ACCOMMODATION AND FACILITIES,16/12/2019,6862689666,68.5,PREMIER INN
OXFORDSHIRE CC,"CHILDRENS, YOUNG PEOPLE AND FAMILIES",CNTL EARLY HELP-BRTN,CATERING,16/12/2019,6862690248,13.38,BURGER KING
OXFORDSHIRE CC,ENVIRONMENT AND ECONOMY,HARD FM,EQUIPMENT,16/12/2019,6862688712,68.02,WILTS ELECTRICAL
OXFORDSHIRE CC,ENVIRONMENT AND ECONOMY,HARD FM,EQUIPMENT,16/12/2019,6862688706,2.92,WILTS ELECTRICAL
OXFORDSHIRE CC,"CHILDRENS, YOUNG PEOPLE AND FAMILIES",FAMILY TIME COSTS,HIRE OF ACCOMMODATION AND FACILITIES,16/12/2019,6862689002,-53,PREMIER INN
OXFORDSHIRE CC,"CHILDRENS, YOUNG PEOPLE AND FAMILIES","	DISABILITIES TEAM-C",POSTAGE AND DELIVERY,16/12/2019,6862689642,15.86,HEART OF ENGLAND DISTR
OXFORDSHIRE CC,"CHILDRENS, YOUNG PEOPLE AND FAMILIES","	FAMILY & PLACEMENT",EDUCATIONAL AND VOCATIONAL TRAINING ,16/12/2019,6862688800,94.5,PEARSON ED LTD
OXFORDSHIRE CC,"CHILDRENS, YOUNG PEOPLE AND FAMILIES","	FAMILY & PLACEMENT",EDUCATIONAL AND VOCATIONAL TRAINING ,16/12/2019,6862688806,267.3,PEARSON ED LTD
OXFORDSHIRE CC,"CHILDRENS, YOUNG PEOPLE AND FAMILIES","	LOOKED AFTER SOUTH",PAYMENT TO GOVERNMENT DEPARTMENTS,16/12/2019,6862688574,-11,GEN REGISTER OFFICE
OXFORDSHIRE CC,CORPORATE CORE,RECRUITMENT,PAYMENT TO GOVERNMENT DEPARTMENTS,16/12/2019,6862689970,"-1,000.00",UKBA7182274720
OXFORDSHIRE CC,CORPORATE CORE,INCOME TEAM,COURT FEES,13/12/2019,6854275356,60,WWW.MONEYCLAIM.GOV
OXFORDSHIRE CC,"CHILDRENS, YOUNG PEOPLE AND FAMILIES",NTH EARLY HELP-BCSTR,CATERING PROVISIONS,13/12/2019,6854275352,18.72,MILK&MORE
OXFORDSHIRE CC,CORPORATE CORE,INCOME TEAM,COURT FEES,13/12/2019,6854275354,60,WWW.MONEYCLAIM.GOV
OXFORDSHIRE CC,SOCIAL AND COMMUNITY SERVICES,"	MUSEUMS COLLECTIONS",CATERING PROVISIONS,13/12/2019,6854275342,3.12,MILK&MORE
OXFORDSHIRE CC,SOCIAL AND COMMUNITY SERVICES,CICC,CATERING PROVISIONS,13/12/2019,6854275378,104.83,TESCO STORE 2994
OXFORDSHIRE CC,CORPORATE CORE,INCOME TEAM,COURT FEES,13/12/2019,6854275360,25,WWW.MONEYCLAIM.GOV
OXFORDSHIRE CC,"CHILDRENS, YOUNG PEOPLE AND FAMILIES","	LOOKED AFTER SOUTH",VEHICLE FUEL,13/12/2019,6854275364,35,HKS B SWAN CLOSE ROAD
OXFORDSHIRE CC,"CHILDRENS, YOUNG PEOPLE AND FAMILIES","	LEAVING CARE NORTH",HIRE OF ACCOMMODATION AND FACILITIES,13/12/2019,6854275632,258.5,OXFORD WITNEY HOTE
OXFORDSHIRE CC,"CHILDRENS, YOUNG PEOPLE AND FAMILIES","	40 THE MOORS",CATERING,13/12/2019,6854275546,10.7,MCDONALDS
OXFORDSHIRE CC,"CHILDRENS, YOUNG PEOPLE AND FAMILIES","	LOOKED AFTER SOUTH",CATERING,13/12/2019,6854275654,7.09,KFC-BANBURY
OXFORDSHIRE CC,SOCIAL AND COMMUNITY SERVICES,DIDCOT MOVE-ON HOME,MATERIALS,13/12/2019,6854275278,7.99,AMAZON PRIME F24AU5365
OXFORDSHIRE CC,"CHILDRENS, YOUNG PEOPLE AND FAMILIES","	RIVERSIDE CENTRE",POSTAGE AND DELIVERY,13/12/2019,6854275292,8.7,POST OFFICE COUNTER
OXFORDSHIRE CC,"CHILDRENS, YOUNG PEOPLE AND FAMILIES","	LOOKED AFTER NORTH",OTHER TRANSPORT ARRANGEMENTS,13/12/2019,6854275620,3.1,STGCOACH/CTYLINK
OXFORDSHIRE CC,ENVIRONMENT AND ECONOMY,HARD FM,HARDWARE AND CROCKERY,13/12/2019,6854275262,354.98,SCREWFIX DIRECT
OXFORDSHIRE CC,SOCIAL AND COMMUNITY SERVICES,"	MTFC",CATERING,13/12/2019,6854275484,3,MILLETS FARM RESTAURA
OXFORDSHIRE CC,SOCIAL AND COMMUNITY SERVICES,"	MUSEUMS COLLECTIONS",MATERIALS,13/12/2019,6854275494,3.99,AMZNMKTPLACE
OXFORDSHIRE CC,SOCIAL AND COMMUNITY SERVICES,"	MUSEUMS COLLECTIONS",MATERIALS,13/12/2019,6854275492,23.99,AMZNMKTPLACE
OXFORDSHIRE CC,SOCIAL AND COMMUNITY SERVICES,DIDCOT MOVE-ON HOME,HARDWARE AND CROCKERY,13/12/2019,6854275280,10.73,FROSTS AT MILLETS
OXFORDSHIRE CC,SOCIAL AND COMMUNITY SERVICES,DIDCOT MOVE-ON HOME,HARDWARE AND CROCKERY,13/12/2019,6854275284,5,FROSTS AT MILLETS
OXFORDSHIRE CC,SOCIAL AND COMMUNITY SERVICES,DIDCOT MOVE-ON HOME,HARDWARE AND CROCKERY,13/12/2019,6854275282,5.98,FROSTS AT MILLETS
OXFORDSHIRE CC,"CHILDRENS, YOUNG PEOPLE AND FAMILIES","	RIVERSIDE CENTRE",HARDWARE AND CROCKERY,13/12/2019,6854275294,199.97,SCREWFIX DIRECT
OXFORDSHIRE CC,"CHILDRENS, YOUNG PEOPLE AND FAMILIES",WITNEY,CATERING PROVISIONS,13/12/2019,6854275218,22.55,LIDL GB  WITNEY
OXFORDSHIRE CC,SOCIAL AND COMMUNITY SERVICES,"	MTFC",ENTERTAINMENT EXPENSES,13/12/2019,6854275488,4.5,SPROUTS PLAY BARN
OXFORDSHIRE CC,"CHILDRENS, YOUNG PEOPLE AND FAMILIES","	RESIDENTIAL STRATEGY",FURNITURE,13/12/2019,6854275362,129.6,MACOI  LIMITED
OXFORDSHIRE CC,"CHILDRENS, YOUNG PEOPLE AND FAMILIES","	LOOKED AFTER SOUTH",CATERING,13/12/2019,6854275368,9.06,MCDONALDS 1547
OXFORDSHIRE CC,ENVIRONMENT AND ECONOMY,HARD FM,HARDWARE AND CROCKERY,13/12/2019,6854275258,22.06,SCREWFIX KIDLINGTON
OXFORDSHIRE CC,"CHILDRENS, YOUNG PEOPLE AND FAMILIES",CNTL EARLY HELP-RHIL,MATERIALS,13/12/2019,6854275390,41,J D SPORTS
OXFORDSHIRE CC,"CHILDRENS, YOUNG PEOPLE AND FAMILIES","	LOOKED AFTER SOUTH",MATERIALS,13/12/2019,6854275302,280,CURRYS ONLINE
OXFORDSHIRE CC,"CHILDRENS, YOUNG PEOPLE AND FAMILIES",CNTL EARLY HELP-RHIL,MATERIALS,13/12/2019,6854275386,3,WH SMITH
OXFORDSHIRE CC,"CHILDRENS, YOUNG PEOPLE AND FAMILIES","	40 THE MOORS",ENTERTAINMENT EXPENSES,13/12/2019,6854275556,15.48,VUE ENTERTAINMENT LTD
OXFORDSHIRE CC,"CHILDRENS, YOUNG PEOPLE AND FAMILIES","	RIVERSIDE CENTRE",MATERIALS,13/12/2019,6854275406,31.89,AMZNMKTPLACE
OXFORDSHIRE CC,"CHILDRENS, YOUNG PEOPLE AND FAMILIES",DIDCOT MOVE-ON HOME,MATERIALS,13/12/2019,6854275568,48,B & M RETAIL
OXFORDSHIRE CC,"CHILDRENS, YOUNG PEOPLE AND FAMILIES","	LOOKED AFTER NORTH",CATERING,13/12/2019,6854275630,6.05,HARRIS AND HOOLE  GUIL
OXFORDSHIRE CC,"CHILDRENS, YOUNG PEOPLE AND FAMILIES","	LOOKED AFTER SOUTH",MATERIALS,13/12/2019,6854275306,249.99,WWW.ARGOS.CO.UK
OXFORDSHIRE CC,ENTERPRISEVC,BUSINESS SYST STAFF,MATERIALS,13/12/2019,6854275326,35,AMAZON.CO.UK MJ3S82WA5
OXFORDSHIRE CC,"CHILDRENS, YOUNG PEOPLE AND FAMILIES",BULLINGDON PRISON,DOMESTIC AND CLEANING EQUIPMENT,13/12/2019,6854275598,35.18,IN2PETS (WITNEY) LIMIT
OXFORDSHIRE CC,"CHILDRENS, YOUNG PEOPLE AND FAMILIES",KINGFISHER,CATERING,13/12/2019,6854275404,9.98,MCDONALDS
OXFORDSHIRE CC,"CHILDRENS, YOUNG PEOPLE AND FAMILIES",CNTL EARLY HELP-RHIL,MATERIALS,13/12/2019,6854275388,24.99,ARGOS HEYFORD HILL
OXFORDSHIRE CC,"CHILDRENS, YOUNG PEOPLE AND FAMILIES","	LOOKED AFTER SOUTH",MATERIALS,13/12/2019,6854275304,339.99,WWW.ARGOS.CO.UK
OXFORDSHIRE CC,SOCIAL AND COMMUNITY SERVICES,LOOKED AFTER NORTH,SUBSCRIPTIONS,13/12/2019,6854275208,45.06,WWW.TENPIN.CO.UK
OXFORDSHIRE CC,"CHILDRENS, YOUNG PEOPLE AND FAMILIES","	LOOKED AFTER SOUTH",SUBSCRIPTIONS,13/12/2019,6854275656,40,WWW.TENPIN.CO.UK
OXFORDSHIRE CC,SOCIAL AND COMMUNITY SERVICES,"	SHARED LIVES",OTHER EXPENSES,13/12/2019,6854275614,7,WAITROSE 211
OXFORDSHIRE CC,SOCIAL AND COMMUNITY SERVICES,WANTAGE LIBRARY,CATERING PROVISIONS,13/12/2019,6854275418,20.2,ROWES NEWSMARKET
OXFORDSHIRE CC,"CHILDRENS, YOUNG PEOPLE AND FAMILIES",THAME E&A HOME,MATERIALS,13/12/2019,6854275324,16.87,AMZNMKTPLACE
OXFORDSHIRE CC,"CHILDRENS, YOUNG PEOPLE AND FAMILIES","	LEAVING CARE NORTH",CATERING,13/12/2019,6854275508,5.79,MCDONALDS
OXFORDSHIRE CC,"CHILDRENS, YOUNG PEOPLE AND FAMILIES","	RIVERSIDE CENTRE",MATERIALS,13/12/2019,6854275408,32.98,WWW.SOFMILITARY.CO.UK
OXFORDSHIRE CC,SOCIAL AND COMMUNITY SERVICES,CSS WALLINGFORD,CATERING PROVISIONS,13/12/2019,6854275316,90.56,THE OLD FARM SHOP
OXFORDSHIRE CC,SOCIAL AND COMMUNITY SERVICES,"	MTFC",CATERING PROVISIONS,13/12/2019,6854275480,2,TESCO STORE 2994
OXFORDSHIRE CC,"CHILDRENS, YOUNG PEOPLE AND FAMILIES","	RIVERSIDE CENTRE",MATERIALS,13/12/2019,6854275296,21.97,DECATHLON UK LTD
OXFORDSHIRE CC,"CHILDRENS, YOUNG PEOPLE AND FAMILIES","	LEAVING CARE NORTH",ENTERTAINMENT EXPENSES,13/12/2019,6854275506,32.5,ACADEMY
OXFORDSHIRE CC,ENVIRONMENT AND ECONOMY,HARD FM,MATERIALS,13/12/2019,6854275252,46.78,TLC SOUTHERN LTD
OXFORDSHIRE CC,"CHILDRENS, YOUNG PEOPLE AND FAMILIES",FAMILY SUPPORT 2,PAYMENTS TO TRANSPORT OPERATORS,13/12/2019,6854275680,6.8,WWW.GWR.COM
OXFORDSHIRE CC,"CHILDRENS, YOUNG PEOPLE AND FAMILIES",HOUSE PROJECT,OTHER TRANSPORT ARRANGEMENTS,13/12/2019,6854275638,2,SEACOURT PARK AND RIDE
OXFORDSHIRE CC,"CHILDRENS, YOUNG PEOPLE AND FAMILIES",FAMILY SUPPORT 2,PAYMENTS TO TRANSPORT OPERATORS,13/12/2019,6854275678,22.5,WWW.GWR.COM
OXFORDSHIRE CC,"CHILDRENS, YOUNG PEOPLE AND FAMILIES",BULLINGDON PRISON,"NEWSPAPERS, PERIODICALS AND PUBLICATIONS",13/12/2019,6854275600,96.7,MARTIN MCCOLL
OXFORDSHIRE CC,"CHILDRENS, YOUNG PEOPLE AND FAMILIES",HOUSE PROJECT,CATERING PROVISIONS,13/12/2019,6854275636,6.4,TESCO STORES 4377
OXFORDSHIRE CC,ENVIRONMENT AND ECONOMY,HARD FM,EQUIPMENT,13/12/2019,6854275254,86.94,TLC SOUTHERN LTD
OXFORDSHIRE CC,"CHILDRENS, YOUNG PEOPLE AND FAMILIES","	LOOKED AFTER CITY 2",CATERING,13/12/2019,6854275452,4,THE SHAKE SHOP
OXFORDSHIRE CC,SOCIAL AND COMMUNITY SERVICES,"	MTFC",CATERING,13/12/2019,6854275482,5.85,MILLETS FARM RESTAURA
OXFORDSHIRE CC,"CHILDRENS, YOUNG PEOPLE AND FAMILIES","	LOOKED AFTER CITY 1",DRUGS AND MEDICAL SUPPLIES,13/12/2019,6854275250,9.99,SUPERDRUG STORES PLC
OXFORDSHIRE CC,SOCIAL AND COMMUNITY SERVICES,CICC,OTHER TRANSPORT ARRANGEMENTS,13/12/2019,6854275376,35.1,STAGECOACH SERVICE
OXFORDSHIRE CC,"CHILDRENS, YOUNG PEOPLE AND FAMILIES",LEADERSHIP TEAM,OTHER TRANSPORT ARRANGEMENTS,13/12/2019,6854275274,18.27,CMT UK LTD TAXI FARE
OXFORDSHIRE CC,"CHILDRENS, YOUNG PEOPLE AND FAMILIES",0-5 STDS & PROGRESS,PROFESSIONAL SUBSCRIPTIONS,13/12/2019,6854275572,335,EARLY EDUCATION
OXFORDSHIRE CC,SOCIAL AND COMMUNITY SERVICES,"	MTFC",ENTERTAINMENT EXPENSES,13/12/2019,6854275486,7.3,SPROUTS PLAY BARN
OXFORDSHIRE CC,SOCIAL AND COMMUNITY SERVICES,SERVICE IMPROVEMENT,CATERING PROVISIONS,13/12/2019,6854275290,75,WAITROSE 211
OXFORDSHIRE CC,SOCIAL AND COMMUNITY SERVICES,SERVICE IMPROVEMENT,CATERING PROVISIONS,13/12/2019,6854275288,15.9,WAITROSE 211
OXFORDSHIRE CC,SOCIAL AND COMMUNITY SERVICES,CSS - OXFORD,CATERING PROVISIONS,13/12/2019,6854275398,14.18,ALDI STORES 775-142
OXFORDSHIRE CC,SOCIAL AND COMMUNITY SERVICES,CSS - OXFORD,CATERING PROVISIONS,13/12/2019,6854275396,17.25,ALDI STORES 775-142
OXFORDSHIRE CC,"CHILDRENS, YOUNG PEOPLE AND FAMILIES",NTH EARLY HELP-BCSTR,MATERIALS,13/12/2019,6854275350,58.46,AMAZON.CO.UK 3Q4ZY8ZZ5
OXFORDSHIRE CC,"CHILDRENS, YOUNG PEOPLE AND FAMILIES",FAMILY TIME COSTS,IT SERVICES,13/12/2019,6854275394,8.5,FARINGDON
OXFORDSHIRE CC,SOCIAL AND COMMUNITY SERVICES,"	CENTRAL LIBRARY",MATERIALS,13/12/2019,6854275474,21.01,ROBERT DYAS HOLDNG LTD
OXFORDSHIRE CC,SOCIAL AND COMMUNITY SERVICES,CSS BICESTER,CATERING PROVISIONS,13/12/2019,6854275272,33.15,SAINSBURYS (2243)
OXFORDSHIRE CC,"CHILDRENS, YOUNG PEOPLE AND FAMILIES","	LOOKED AFTER NORTH",PAYMENTS TO TRANSPORT OPERATORS,13/12/2019,6854275626,33.5,GWR OXFORD ATE
OXFORDSHIRE CC,CORPORATE CORE,INCOME TEAM,COURT FEES,13/12/2019,6854275358,35,WWW.MONEYCLAIM.GOV
OXFORDSHIRE CC,"CHILDRENS, YOUNG PEOPLE AND FAMILIES","	FAMILY SUPPORT CITY3",EDUCATIONAL AND VOCATIONAL TRAINING ,13/12/2019,6854275410,6.5,SPORTS CENTRE
OXFORDSHIRE CC,CORPORATE CORE,,"SUPPLIES, STATIONERY AND MATERIALS",13/12/2019,6854275644,4.63,LYRECO UK LTD
OXFORDSHIRE CC,CORPORATE CORE,,"SUPPLIES, STATIONERY AND MATERIALS",13/12/2019,6854275646,12.67,LYRECO UK LTD
OXFORDSHIRE CC,CORPORATE CORE,,"SUPPLIES, STATIONERY AND MATERIALS",13/12/2019,6854275650,7.19,LYRECO UK LTD
OXFORDSHIRE CC,CORPORATE CORE,,"SUPPLIES, STATIONERY AND MATERIALS",13/12/2019,6854275642,11.47,LYRECO UK LTD
OXFORDSHIRE CC,CORPORATE CORE,INCOME TEAM,PAYMENT TO GOVERNMENT DEPARTMENTS,13/12/2019,6854275672,11,OXFORDSHIRE CC MOTO1
OXFORDSHIRE CC,CORPORATE CORE,,"SUPPLIES, STATIONERY AND MATERIALS",13/12/2019,6854275648,2.9,LYRECO UK LTD
OXFORDSHIRE CC,"CHILDRENS, YOUNG PEOPLE AND FAMILIES","	LEAVING CARE SOUTH",OTHER TRANSPORT ARRANGEMENTS,13/12/2019,6854275606,42.7,GWR OXFORD TO
OXFORDSHIRE CC,SOCIAL AND COMMUNITY SERVICES,CSS WANTAGE,CATERING PROVISIONS,13/12/2019,6854275190,27.49,TESCO STORE 2413
OXFORDSHIRE CC,"CHILDRENS, YOUNG PEOPLE AND FAMILIES","	LOOKED AFTER NORTH",OTHER TRANSPORT ARRANGEMENTS,13/12/2019,6854275628,3.5,HANBOROUGH STN
OXFORDSHIRE CC,SOCIAL AND COMMUNITY SERVICES,CSS WANTAGE,CATERING PROVISIONS,13/12/2019,6854275192,112.89,ALDI 99 775
OXFORDSHIRE CC,"CHILDRENS, YOUNG PEOPLE AND FAMILIES",CUDDESDON CORNER FSS,CATERING PROVISIONS,13/12/2019,6854275602,2.78,NISA DELTEYS
OXFORDSHIRE CC,ENVIRONMENT AND ECONOMY,"	NETWORK & ASSET MGT",PAYMENTS TO TRANSPORT OPERATORS,13/12/2019,6854275370,68.4,BICESTER NORTH STATION
OXFORDSHIRE CC,"CHILDRENS, YOUNG PEOPLE AND FAMILIES","	LOOKED AFTER SOUTH",VEHICLE FUEL,13/12/2019,6854275366,4,W M MORRISON PETROL
OXFORDSHIRE CC,"CHILDRENS, YOUNG PEOPLE AND FAMILIES","	LEAVING CARE SOUTH",BIRTHDAY ALLOWANCE,13/12/2019,6854275684,1,WAITROSE 211
OXFORDSHIRE CC,"CHILDRENS, YOUNG PEOPLE AND FAMILIES",EYNSHAM,MATERIALS,13/12/2019,6854275682,-7.58,AMZ MOUIS
OXFORDSHIRE CC,"CHILDRENS, YOUNG PEOPLE AND FAMILIES","	LOOKED AFTER CITY 2",VEHICLE FUEL,13/12/2019,6854275472,26.25,TESCO PAY AT PUMP 3418
OXFORDSHIRE CC,"CHILDRENS, YOUNG PEOPLE AND FAMILIES","	LOOKED AFTER NORTH",OTHER TRANSPORT ARRANGEMENTS,13/12/2019,6854275624,1.6,ARRIVA KENT & SURREY
OXFORDSHIRE CC,"CHILDRENS, YOUNG PEOPLE AND FAMILIES","	LOOKED AFTER NORTH",OTHER TRANSPORT ARRANGEMENTS,13/12/2019,6854275622,1,ARRIVA KENT & SURREY
OXFORDSHIRE CC,"CHILDRENS, YOUNG PEOPLE AND FAMILIES","	40 THE MOORS",MATERIALS,13/12/2019,6854275554,238.99,ARGOS KIDLINGTON INSID
OXFORDSHIRE CC,SOCIAL AND COMMUNITY SERVICES,RESIDENTIAL STRATEGY,CATERING PROVISIONS,13/12/2019,6854275270,6.49,CO-OPERATIVE FOOD
OXFORDSHIRE CC,"CHILDRENS, YOUNG PEOPLE AND FAMILIES","	LOOKED AFTER CITY 2",VEHICLE FUEL,13/12/2019,6854275502,17.51,SHELL CHASE 508
OXFORDSHIRE CC,"CHILDRENS, YOUNG PEOPLE AND FAMILIES",HOUSE PROJECT,OTHER TRANSPORT ARRANGEMENTS,13/12/2019,6854275286,6.7,M6 TOLL
OXFORDSHIRE CC,"CHILDRENS, YOUNG PEOPLE AND FAMILIES",WITNEY,MATERIALS,13/12/2019,6854275216,10,WITNEY INSIDE SAINSBUR
OXFORDSHIRE CC,SOCIAL AND COMMUNITY SERVICES,CICC,SUBSCRIPTIONS,13/12/2019,6854275374,306.5,HIGHSTREETVOUCHERS
OXFORDSHIRE CC,SOCIAL AND COMMUNITY SERVICES,CICC,SUBSCRIPTIONS,13/12/2019,6854275372,456.5,HIGHSTREETVOUCHERS
OXFORDSHIRE CC,"CHILDRENS, YOUNG PEOPLE AND FAMILIES",CNTL EARLY HELP-BRTN,CATERING PROVISIONS,13/12/2019,6854275590,9.3,YARNTON NURSERIES
OXFORDSHIRE CC,"CHILDRENS, YOUNG PEOPLE AND FAMILIES","	LEAVING CARE CITY 2",MATERIALS,13/12/2019,6854275412,3.05,POUNDLAND LTD
OXFORDSHIRE CC,ENVIRONMENT AND ECONOMY,HARD FM,HARDWARE AND CROCKERY,13/12/2019,6854275256,40.98,SCREWFIX OXFORD
OXFORDSHIRE CC,"CHILDRENS, YOUNG PEOPLE AND FAMILIES","	LOOKED AFTER CITY 2",OTHER EXPENSES,13/12/2019,6854275402,55.77,DPD_LOCAL_ONLINE
OXFORDSHIRE CC,SOCIAL AND COMMUNITY SERVICES,"	MTFC",VEHICLE FUEL,13/12/2019,6854275478,1.79,BP CANNON POOL S/SERVE
OXFORDSHIRE CC,SOCIAL AND COMMUNITY SERVICES,"	MTFC",VEHICLE FUEL,13/12/2019,6854275478,1.89,BP CANNON POOL S/SERVE
OXFORDSHIRE CC,"CHILDRENS, YOUNG PEOPLE AND FAMILIES","	LEAVING CARE NORTH",CLOTHING AND UNIFORMS,13/12/2019,6854275652,132.05,SPORTSDIRECT.COM
OXFORDSHIRE CC,ENVIRONMENT AND ECONOMY,HARD FM,MATERIALS,13/12/2019,6854275268,24.42,EXECUTIVE SECURITY
OXFORDSHIRE CC,CORPORATE CORE,INCOME TEAM,PAYMENT TO GOVERNMENT DEPARTMENTS,13/12/2019,6854275670,1.5,WWW.GOV.UK
OXFORDSHIRE CC,"CHILDRENS, YOUNG PEOPLE AND FAMILIES",CNTL EARLY HELP-BRTN,CLOTHING AND UNIFORMS,13/12/2019,6854275592,40,PRIMARK 440
OXFORDSHIRE CC,"CHILDRENS, YOUNG PEOPLE AND FAMILIES",THAME E&A HOME,MATERIALS,13/12/2019,6854275276,30,ARGOS BICESTER
OXFORDSHIRE CC,ENVIRONMENT AND ECONOMY,"	COUNTY PRINT FINSHRS",PAYMENT TO GOVERNMENT DEPARTMENTS,13/12/2019,6854275248,262.5,DVLA VEHICLE TAX
OXFORDSHIRE CC,CORPORATE CORE,MOTOR FLEET,MOTOR IF OWN DAMAGE,13/12/2019,6854275640,"3,573.22",WHOLESALE AUTOPARTS
OXFORDSHIRE CC,ENVIRONMENT AND ECONOMY,HARD FM,HARDWARE AND CROCKERY,13/12/2019,6854275266,10.9,WICKES OXFORD
OXFORDSHIRE CC,ENVIRONMENT AND ECONOMY,"	FLEET OPERATIONS",ROAD FUND LICENCES AND MOTS,13/12/2019,6854275520,262.5,DVLA VEHICLE TAX
OXFORDSHIRE CC,ENVIRONMENT AND ECONOMY,"	FLEET OPERATIONS",ROAD FUND LICENCES AND MOTS,13/12/2019,6854275522,327.5,DVLA VEHICLE TAX
OXFORDSHIRE CC,ENVIRONMENT AND ECONOMY,"	FLEET OPERATIONS",ROAD FUND LICENCES AND MOTS,13/12/2019,6854275524,147.5,DVLA VEHICLE TAX
OXFORDSHIRE CC,"CHILDRENS, YOUNG PEOPLE AND FAMILIES",FAMILY TIME COSTS,HIRE OF ACCOMMODATION AND FACILITIES,13/12/2019,6854275308,53,PREMIER INN
OXFORDSHIRE CC,SOCIAL AND COMMUNITY SERVICES,CSS BICESTER,MATERIALS,13/12/2019,6854275182,39.99,AMZNMKTPLACE AMAZON.CO
OXFORDSHIRE CC,"CHILDRENS, YOUNG PEOPLE AND FAMILIES",HOUSE PROJECT,OTHER TRANSPORT ARRANGEMENTS,13/12/2019,6854275634,6.7,M6 TOLL
OXFORDSHIRE CC,ENVIRONMENT AND ECONOMY,HARD FM,HARDWARE AND CROCKERY,13/12/2019,6854275264,28.5,WICKES OXFORD
OXFORDSHIRE CC,"CHILDRENS, YOUNG PEOPLE AND FAMILIES","	FPT NORTH",CATERING PROVISIONS,13/12/2019,6854275450,7,WM MORRISONS STORE
OXFORDSHIRE CC,ENVIRONMENT AND ECONOMY,HARD FM,HARDWARE AND CROCKERY,13/12/2019,6854275260,41.47,SCREWFIX OXFORD BOTLEY
OXFORDSHIRE CC,"CHILDRENS, YOUNG PEOPLE AND FAMILIES","	LEAVING CARE NORTH",MATERIALS,13/12/2019,6854275504,43.99,SPORTSDIRECT.COM
OXFORDSHIRE CC,"CHILDRENS, YOUNG PEOPLE AND FAMILIES","	LEADING THE EYFS Q&I",MATERIALS,12/12/2019,6848143204,70.48,AMAZON.CO.UK UQ1H21N55
OXFORDSHIRE CC,"CHILDRENS, YOUNG PEOPLE AND FAMILIES","	LEADING THE EYFS Q&I",MATERIALS,12/12/2019,6848143200,35.24,AMAZON.CO.UK J46KY2FD5
OXFORDSHIRE CC,ENVIRONMENT AND ECONOMY,"	WASTE MNGMNT GEN",MATERIALS,12/12/2019,6848142834,14.18,AMAZON.CO.UK V766K41U5
OXFORDSHIRE CC,"CHILDRENS, YOUNG PEOPLE AND FAMILIES","	FPT NORTH",CATERING,12/12/2019,6848142850,33.48,JUST EAT
OXFORDSHIRE CC,"CHILDRENS, YOUNG PEOPLE AND FAMILIES",CSS - DIDCOT,CATERING PROVISIONS,12/12/2019,6848142734,2,SAINSBURYS SACAT 2067
OXFORDSHIRE CC,"CHILDRENS, YOUNG PEOPLE AND FAMILIES","	LOOKED AFTER CITY 1",VEHICLE FUEL,12/12/2019,6848142748,16.04,SAINSBURYS PFS1067
OXFORDSHIRE CC,"CHILDRENS, YOUNG PEOPLE AND FAMILIES",KINGFISHER,DRUGS AND MEDICAL SUPPLIES,12/12/2019,6848142754,28.54,BOOTS THE CHEMIST
OXFORDSHIRE CC,ENVIRONMENT AND ECONOMY,"	COUNTY PRINT FINSHRS",MATERIALS,12/12/2019,6848142532,17.9,AMZNMKTPLACE
OXFORDSHIRE CC,CORPORATE CORE,HUNTERCOMBE PRISON,MATERIALS,12/12/2019,6848142700,12,HOBBYCRAFT
OXFORDSHIRE CC,"CHILDRENS, YOUNG PEOPLE AND FAMILIES",WITNEY,CATERING PROVISIONS,12/12/2019,6848142428,18.65,SAINSBURYS 0632
OXFORDSHIRE CC,"CHILDRENS, YOUNG PEOPLE AND FAMILIES","	LOOKED AFTER NORTH",OTHER EXPENSES,12/12/2019,6848143394,49,HM PASSPORT OFFICE
OXFORDSHIRE CC,SOCIAL AND COMMUNITY SERVICES,DIDCOT MOVE-ON HOME,CATERING PROVISIONS,12/12/2019,6848142622,22.43,SAINSBURYS 2067
OXFORDSHIRE CC,"CHILDRENS, YOUNG PEOPLE AND FAMILIES",KINGFISHER,PAYMENTS TO TRANSPORT OPERATORS,12/12/2019,6848142758,197.7,TRAINLINE
OXFORDSHIRE CC,SOCIAL AND COMMUNITY SERVICES,"	MUSEUMS COLLECTIONS",OTHER SERVICES,12/12/2019,6848142944,16.9,AMZNMKTPLACE
OXFORDSHIRE CC,"CHILDRENS, YOUNG PEOPLE AND FAMILIES","	LOOKED AFTER CITY 1",FURNITURE,12/12/2019,6848142752,203,BEDS TO U
OXFORDSHIRE CC,CORPORATE CORE,"	LEGAL SERVICES",LEGAL COSTS,12/12/2019,6848142910,"1,207.20",KNIGHTS PROFESSIONAL S
OXFORDSHIRE CC,"CHILDRENS, YOUNG PEOPLE AND FAMILIES","	RESIDENTIAL STRATEGY",CATERING,12/12/2019,6848142490,27.76,FRANKIE & BENNYS 5389
OXFORDSHIRE CC,ENVIRONMENT AND ECONOMY,"	LIBRARY PROJECTS",EQUIPMENT,12/12/2019,6848142760,47.22,AMZNMKTPLACE
OXFORDSHIRE CC,"CHILDRENS, YOUNG PEOPLE AND FAMILIES","	LOOKED AFTER SOUTH",CATERING,12/12/2019,6848142500,12.37,CHERWELL V. N/E BK
OXFORDSHIRE CC,"CHILDRENS, YOUNG PEOPLE AND FAMILIES","	LEAVING CARE SOUTH",OTHER TRANSPORT ARRANGEMENTS,12/12/2019,6848143278,2.2,GLOUCESTER QUAYS PARKI
OXFORDSHIRE CC,ENVIRONMENT AND ECONOMY,S38 INSPECT & OTHER,PAYMENTS TO TRANSPORT OPERATORS,12/12/2019,6848142646,51.94,THETRAINLINE.COM
OXFORDSHIRE CC,CORPORATE CORE,REGISTRAR,MATERIALS,12/12/2019,6848142576,15.68,AMZNMKTPLACE
OXFORDSHIRE CC,ENVIRONMENT AND ECONOMY,S38 INSPECT & OTHER,PAYMENTS TO TRANSPORT OPERATORS,12/12/2019,6848142642,200.14,THETRAINLINE.COM
OXFORDSHIRE CC,"CHILDRENS, YOUNG PEOPLE AND FAMILIES","	LOOKED AFTER SOUTH",HIRE OF ACCOMMODATION AND FACILITIES,12/12/2019,6848142418,60.24,TRAVELODGE
OXFORDSHIRE CC,SOCIAL AND COMMUNITY SERVICES,CSS WITNEY,"SUPPLIES, STATIONERY AND MATERIALS",12/12/2019,6848142348,6.02,RYMAN 1172
OXFORDSHIRE CC,"CHILDRENS, YOUNG PEOPLE AND FAMILIES","	FAMILY SUPPORT CITY3",OTHER TRANSPORT ARRANGEMENTS,12/12/2019,6848143108,155.6,WWW.GWR.COM
OXFORDSHIRE CC,SOCIAL AND COMMUNITY SERVICES,LEADERSHIP TEAM,PAYMENTS TO TRANSPORT OPERATORS,12/12/2019,6848143258,55.8,WWW.GWR.COM
OXFORDSHIRE CC,ENVIRONMENT AND ECONOMY,"	ROW MAINT",EQUIPMENT,12/12/2019,6848142742,27.22,FAROL
OXFORDSHIRE CC,"CHILDRENS, YOUNG PEOPLE AND FAMILIES","	LEAVING CARE NORTH",CATERING,12/12/2019,6848142982,3,CAFFE NERO WITNEY
OXFORDSHIRE CC,SOCIAL AND COMMUNITY SERVICES,SCHOOLS FM,CATERING PROVISIONS,12/12/2019,6848142586,11.2,SAINSBURYS SACAT 0632
OXFORDSHIRE CC,"CHILDRENS, YOUNG PEOPLE AND FAMILIES","	LEADING THE EYFS Q&I","BOOKS, DVDS AND CDS",12/12/2019,6848143210,8.99,AMAZON.CO.UK XH0ZR6T55
OXFORDSHIRE CC,ENVIRONMENT AND ECONOMY,"	OXFORDSHIRE MUSEUM",MATERIALS,12/12/2019,6848142928,39.9,AMZNMKTPLACE
OXFORDSHIRE CC,SOCIAL AND COMMUNITY SERVICES,CO PRODUCTION WORK,CATERING PROVISIONS,12/12/2019,6848142506,7.04,MARKS&SPENCER PLC
OXFORDSHIRE CC,"CHILDRENS, YOUNG PEOPLE AND FAMILIES","	EDM",CATERING PROVISIONS,12/12/2019,6848143032,38.35,MARKS&SPENCER PLC
OXFORDSHIRE CC,"CHILDRENS, YOUNG PEOPLE AND FAMILIES",THAME E&A HOME,CATERING PROVISIONS,12/12/2019,6848142546,17,SAINSBURYS (2243)
OXFORDSHIRE CC,CORPORATE CORE,ICT OPERATIONS & MAI,IT SOFTWARE,12/12/2019,6848143282,819.89,LIGHTNING TOOLS
OXFORDSHIRE CC,"CHILDRENS, YOUNG PEOPLE AND FAMILIES",SWINDON,POSTAGE AND DELIVERY,12/12/2019,6848142656,13.2,THE POST OFFICE
OXFORDSHIRE CC,CORPORATE CORE,INCOME TEAM,PAYMENT TO GOVERNMENT DEPARTMENTS,12/12/2019,6848143432,11,GEN REGISTER OFFICE
OXFORDSHIRE CC,"CHILDRENS, YOUNG PEOPLE AND FAMILIES","	LEADING THE EYFS Q&I","BOOKS, DVDS AND CDS",12/12/2019,6848143214,44.95,AMAZON.CO.UK YX2XL2F65
OXFORDSHIRE CC,"CHILDRENS, YOUNG PEOPLE AND FAMILIES","	LEAVING CARE NORTH",OTHER TRANSPORT ARRANGEMENTS,12/12/2019,6848143388,112.5,PAYPAL  TRAINLINE
OXFORDSHIRE CC,"CHILDRENS, YOUNG PEOPLE AND FAMILIES",THAME E&A HOME,DRUGS AND MEDICAL SUPPLIES,12/12/2019,6848142600,12.05,"BOOTS,THAME"
OXFORDSHIRE CC,SOCIAL AND COMMUNITY SERVICES,CSS - BANBURY,MATERIALS,12/12/2019,6848143140,40,CLASSIC FLOWERS
OXFORDSHIRE CC,"CHILDRENS, YOUNG PEOPLE AND FAMILIES","	FAM GRP CONFERENCES",PAYMENTS TO TRANSPORT OPERATORS,12/12/2019,6848142630,66.75,THETRAINLINE.COM
OXFORDSHIRE CC,"CHILDRENS, YOUNG PEOPLE AND FAMILIES","	RIVERSIDE CENTRE",CATERING PROVISIONS,12/12/2019,6848142554,15.45,SAINSBURYS 0600
OXFORDSHIRE CC,SOCIAL AND COMMUNITY SERVICES,DIDCOT MOVE-ON HOME,CATERING PROVISIONS,12/12/2019,6848142624,11.94,SAINSBURYS 2067
OXFORDSHIRE CC,"CHILDRENS, YOUNG PEOPLE AND FAMILIES","	LEADING THE EYFS Q&I","BOOKS, DVDS AND CDS",12/12/2019,6848143196,5.14,AMZNMKTPLACE
OXFORDSHIRE CC,"CHILDRENS, YOUNG PEOPLE AND FAMILIES","	LEAVING CARE SOUTH",OTHER TRANSPORT ARRANGEMENTS,12/12/2019,6848142412,77,STAGECOACH SERVICE
OXFORDSHIRE CC,,,PAYMENTS TO TRANSPORT OPERATORS,12/12/2019,6848142686,210.88,NYS CORPORATE
OXFORDSHIRE CC,"CHILDRENS, YOUNG PEOPLE AND FAMILIES",CNTL EARLY HELP-RHIL,CATERING PROVISIONS,12/12/2019,6848142730,8,SAINSBURYS 0600
OXFORDSHIRE CC,"CHILDRENS, YOUNG PEOPLE AND FAMILIES",EYNSHAM,DRUGS AND MEDICAL SUPPLIES,12/12/2019,6848142388,3.59,LLOYDS PHARMACY
OXFORDSHIRE CC,CORPORATE CORE,INCOME TEAM,PAYMENT TO GOVERNMENT DEPARTMENTS,12/12/2019,6848143428,11,GEN REGISTER OFFICE
OXFORDSHIRE CC,CORPORATE CORE,,"SUPPLIES, STATIONERY AND MATERIALS",12/12/2019,6848143298,142.31,LYRECO UK LTD
OXFORDSHIRE CC,CORPORATE CORE,,"SUPPLIES, STATIONERY AND MATERIALS",12/12/2019,6848143304,33.7,LYRECO UK LTD
OXFORDSHIRE CC,CORPORATE CORE,,"SUPPLIES, STATIONERY AND MATERIALS",12/12/2019,6848143306,194.12,LYRECO UK LTD
OXFORDSHIRE CC,CORPORATE CORE,,"SUPPLIES, STATIONERY AND MATERIALS",12/12/2019,6848143314,5.65,LYRECO UK LTD
OXFORDSHIRE CC,"CHILDRENS, YOUNG PEOPLE AND FAMILIES","	OSCB",CATERING PROVISIONS,12/12/2019,6848142432,8.7,MARKS&SPENCER PLC SF
OXFORDSHIRE CC,"CHILDRENS, YOUNG PEOPLE AND FAMILIES",CNTL ERLY HELP-BBLEY,CATERING PROVISIONS,12/12/2019,6848143398,6,TESCO STORE 2990
OXFORDSHIRE CC,ENVIRONMENT AND ECONOMY,"	LPP MANAGEMENT",PAYMENTS TO TRANSPORT OPERATORS,12/12/2019,6848142706,114.1,WWW.GWR.COM
OXFORDSHIRE CC,"CHILDRENS, YOUNG PEOPLE AND FAMILIES",CSS - DIDCOT,CATERING PROVISIONS,12/12/2019,6848142496,12.5,TESCO STORE 2413
OXFORDSHIRE CC,"CHILDRENS, YOUNG PEOPLE AND FAMILIES",EYNSHAM,CATERING PROVISIONS,12/12/2019,6848143324,78.13,TESCO STORES 2008
OXFORDSHIRE CC,CORPORATE CORE,LIBRARY COLLECTIONS,"NEWSPAPERS, PERIODICALS AND PUBLICATIONS",12/12/2019,6848142632,"1,767.49",BOLINDA PUBLISHING
OXFORDSHIRE CC,CORPORATE CORE,"	CORPORATE FINANCE",PAYMENTS TO TRANSPORT OPERATORS,12/12/2019,6848142940,-64.5,WWW.GWR.COM
OXFORDSHIRE CC,CORPORATE CORE,"	CORPORATE FINANCE",PAYMENTS TO TRANSPORT OPERATORS,12/12/2019,6848142938,-13.1,WWW.GWR.COM
OXFORDSHIRE CC,CORPORATE CORE,"	ORGANISATIONAL DEV'T",PAYMENTS TO TRANSPORT OPERATORS,12/12/2019,6848142888,-71.7,WWW.GWR.COM
OXFORDSHIRE CC,SOCIAL AND COMMUNITY SERVICES,DIDCOT MOVE-ON HOME,MATERIALS,12/12/2019,6848142548,30.49,WWW.THEFRAGRANCESHOP.C
OXFORDSHIRE CC,"CHILDRENS, YOUNG PEOPLE AND FAMILIES",THAME E&A HOME,CATERING,12/12/2019,6848142522,1.98,MCDONALDS
OXFORDSHIRE CC,"CHILDRENS, YOUNG PEOPLE AND FAMILIES",THAME E&A HOME,CATERING,12/12/2019,6848142524,5.75,MCDONALDS
OXFORDSHIRE CC,"CHILDRENS, YOUNG PEOPLE AND FAMILIES",EYNSHAM,CATERING,12/12/2019,6848143176,2.96,CO-OPERATIVE FOOD
OXFORDSHIRE CC,"CHILDRENS, YOUNG PEOPLE AND FAMILIES","	LEAVING CARE NORTH",MATERIALS,12/12/2019,6848142978,68.99,JD SPORTS INTERNET
OXFORDSHIRE CC,"CHILDRENS, YOUNG PEOPLE AND FAMILIES",CNTL EARLY HELP-RHIL,CATERING PROVISIONS,12/12/2019,6848142570,73.92,MILK&MORE
OXFORDSHIRE CC,ENVIRONMENT AND ECONOMY,HARD FM,HARDWARE AND CROCKERY,12/12/2019,6848142516,114.74,WICKES BANBURY
OXFORDSHIRE CC,"CHILDRENS, YOUNG PEOPLE AND FAMILIES","	LEAVING CARE NORTH",CATERING PROVISIONS,12/12/2019,6848142970,4.2,WM MORRISONS STORE
OXFORDSHIRE CC,ENVIRONMENT AND ECONOMY,"	FLEET OPERATIONS",VEHICLE EQUIPMENT AND EXPENSES - OTHER,12/12/2019,6848143076,34.99,ARGOS RETAIL GROUP
OXFORDSHIRE CC,"CHILDRENS, YOUNG PEOPLE AND FAMILIES","	FPT CITY",HIRE OF ACCOMMODATION AND FACILITIES,12/12/2019,6848142638,312,COTSWOLD LODGE HOTEL
OXFORDSHIRE CC,CORPORATE CORE,HISTORY SERVICE,FURNITURE,12/12/2019,6848142924,729,WWW.JOHNLEWIS.COM
OXFORDSHIRE CC,SOCIAL AND COMMUNITY SERVICES,"	KEEP PROJECT",CATERING,12/12/2019,6848142932,248.79,BEEFEATER40014640
OXFORDSHIRE CC,ENVIRONMENT AND ECONOMY,HARD FM,HARDWARE AND CROCKERY,12/12/2019,6848142528,21.98,SCREWFIX OXFORD
OXFORDSHIRE CC,"CHILDRENS, YOUNG PEOPLE AND FAMILIES",EYNSHAM,VEHICLE FUEL,12/12/2019,6848143288,3.59,TEX COCKHORSE S/S
OXFORDSHIRE CC,"CHILDRENS, YOUNG PEOPLE AND FAMILIES",THAME E&A HOME,MATERIALS,12/12/2019,6848142518,19.8,POUNDLAND LTD 1586
OXFORDSHIRE CC,"CHILDRENS, YOUNG PEOPLE AND FAMILIES",THAME E&A HOME,MATERIALS,12/12/2019,6848142542,23.99,JD SPORTS INTERNET
OXFORDSHIRE CC,ENVIRONMENT AND ECONOMY,DRIVEN,MATERIALS,12/12/2019,6848142682,399.98,WWW.JOHNLEWIS.COM
OXFORDSHIRE CC,"CHILDRENS, YOUNG PEOPLE AND FAMILIES",HOUSE PROJECT,OTHER TRANSPORT ARRANGEMENTS,12/12/2019,6848143292,1.5,PARKING CHARGE
OXFORDSHIRE CC,CORPORATE CORE,"	ORGANISATIONAL DEV'T",MATERIALS,12/12/2019,6848142882,100,HIGHSTREETVOUCHERS
OXFORDSHIRE CC,CORPORATE CORE,"	ORGANISATIONAL DEV'T",POSTAGE AND DELIVERY,12/12/2019,6848142882,3.5,HIGHSTREETVOUCHERS
OXFORDSHIRE CC,"CHILDRENS, YOUNG PEOPLE AND FAMILIES",THAME E&A HOME,MATERIALS,12/12/2019,6848142738,12,POUNDLAND LTD 1505
OXFORDSHIRE CC,ENTERPRISEVC,,CAR LEASING - PRIVATE RENTALS,12/12/2019,6848143384,83.83,ENTERPRISE RENT-A-CAR
OXFORDSHIRE CC,ENTERPRISEVC,,CAR LEASING - PRIVATE RENTALS,12/12/2019,6848143382,112.45,ENTERPRISE RENT-A-CAR
OXFORDSHIRE CC,ENTERPRISEVC,,CAR LEASING - PRIVATE RENTALS,12/12/2019,6848143376,46.12,ENTERPRISE RENT-A-CAR
OXFORDSHIRE CC,ENTERPRISEVC,,CAR LEASING - PRIVATE RENTALS,12/12/2019,6848143372,46.12,ENTERPRISE RENT-A-CAR
OXFORDSHIRE CC,ENTERPRISEVC,,CAR LEASING - PRIVATE RENTALS,12/12/2019,6848143368,123.53,ENTERPRISE RENT-A-CAR
OXFORDSHIRE CC,ENTERPRISEVC,,CAR LEASING - PRIVATE RENTALS,12/12/2019,6848143364,52.32,ENTERPRISE RENT-A-CAR
OXFORDSHIRE CC,ENTERPRISEVC,,CAR LEASING - PRIVATE RENTALS,12/12/2019,6848143360,43.18,ENTERPRISE RENT-A-CAR
OXFORDSHIRE CC,ENTERPRISEVC,,CAR LEASING - PRIVATE RENTALS,12/12/2019,6848143358,91.43,ENTERPRISE RENT-A-CAR
OXFORDSHIRE CC,ENTERPRISEVC,,CAR LEASING - PRIVATE RENTALS,12/12/2019,6848143354,42.08,ENTERPRISE RENT-A-CAR
OXFORDSHIRE CC,ENTERPRISEVC,,CAR LEASING - PRIVATE RENTALS,12/12/2019,6848143350,123.07,ENTERPRISE RENT-A-CAR
OXFORDSHIRE CC,ENTERPRISEVC,,CAR LEASING - PRIVATE RENTALS,12/12/2019,6848143346,62.08,ENTERPRISE RENT-A-CAR
OXFORDSHIRE CC,ENTERPRISEVC,,CAR LEASING - PRIVATE RENTALS,12/12/2019,6848143342,83.83,ENTERPRISE RENT-A-CAR
OXFORDSHIRE CC,ENTERPRISEVC,,CAR LEASING - PRIVATE RENTALS,12/12/2019,6848143338,60.84,ENTERPRISE RENT-A-CAR
OXFORDSHIRE CC,ENTERPRISEVC,,CAR LEASING - PRIVATE RENTALS,12/12/2019,6848143336,52.72,ENTERPRISE RENT-A-CAR
OXFORDSHIRE CC,ENTERPRISEVC,,CAR LEASING - PRIVATE RENTALS,12/12/2019,6848143332,26.16,ENTERPRISE RENT-A-CAR
OXFORDSHIRE CC,ENTERPRISEVC,,CAR LEASING - PRIVATE RENTALS,12/12/2019,6848143328,104.58,ENTERPRISE RENT-A-CAR
OXFORDSHIRE CC,"CHILDRENS, YOUNG PEOPLE AND FAMILIES",DIDCOT MOVE-ON HOME,MATERIALS,12/12/2019,6848142592,22,ARGOS LTD
OXFORDSHIRE CC,SOCIAL AND COMMUNITY SERVICES,CSS - OXFORD,MATERIALS,12/12/2019,6848142744,18.03,ALDI STORES 775-142
OXFORDSHIRE CC,SOCIAL AND COMMUNITY SERVICES,CSS - OXFORD,CATERING PROVISIONS,12/12/2019,6848142536,19.8,ALDI STORES 775-142
OXFORDSHIRE CC,"CHILDRENS, YOUNG PEOPLE AND FAMILIES","	LEAVING CARE NORTH",MATERIALS,12/12/2019,6848142974,68.99,JD SPORTS INTERNET
OXFORDSHIRE CC,"CHILDRENS, YOUNG PEOPLE AND FAMILIES","	LOOKED AFTER CITY 1",VEHICLE FUEL,12/12/2019,6848142512,35.86,BP THINFORD NORTH
OXFORDSHIRE CC,"CHILDRENS, YOUNG PEOPLE AND FAMILIES","	RIVERSIDE CENTRE",MATERIALS,11/12/2019,6842686900,7.16,AMAZON.CO.UK UR1WA3TR5
OXFORDSHIRE CC,"CHILDRENS, YOUNG PEOPLE AND FAMILIES","	RIVERSIDE CENTRE",MATERIALS,11/12/2019,6842686902,23.87,AMZNMKTPLACE
OXFORDSHIRE CC,"CHILDRENS, YOUNG PEOPLE AND FAMILIES","	RIVERSIDE CENTRE",MATERIALS,11/12/2019,6842687026,12.45,AMZNMKTPLACE
OXFORDSHIRE CC,CORPORATE CORE,"	AUDIT SERVICES",OTHER TRAINING COURSES AND QUALIFICATION,11/12/2019,6842687068,23.51,THE INST OF INT AUDITO
OXFORDSHIRE CC,"CHILDRENS, YOUNG PEOPLE AND FAMILIES","	RIVERSIDE CENTRE",MATERIALS,11/12/2019,6842686904,10.49,AMZNMKTPLACE
OXFORDSHIRE CC,SOCIAL AND COMMUNITY SERVICES,CSS WANTAGE,MATERIALS,11/12/2019,6842687168,19.99,AMZNMKTPLACE
OXFORDSHIRE CC,"CHILDRENS, YOUNG PEOPLE AND FAMILIES",THAME E&A HOME,CATERING,11/12/2019,6842687006,6.99,TESCO SUBSCRIPTION
OXFORDSHIRE CC,"CHILDRENS, YOUNG PEOPLE AND FAMILIES","	LEAVING CARE SOUTH",TRANSPORT TO SCHOOL,11/12/2019,6842686966,41,STAGECOACH SERVICE
OXFORDSHIRE CC,"CHILDRENS, YOUNG PEOPLE AND FAMILIES","	MUSIC UNALLOCABLE",EQUIPMENT,11/12/2019,6842687066,303.97,AMAZON.CO.UK 0W7I19755
OXFORDSHIRE CC,"CHILDRENS, YOUNG PEOPLE AND FAMILIES",KINGFISHER,CATERING,11/12/2019,6842687148,3.95,COSTA COFFEE
OXFORDSHIRE CC,ENVIRONMENT AND ECONOMY,HOOK NORTON LIBRARY,MATERIALS,11/12/2019,6842687042,29.99,AMAZON.CO.UK 7K2QF56K5
OXFORDSHIRE CC,SOCIAL AND COMMUNITY SERVICES,"	MTFC",OTHER TRANSPORT ARRANGEMENTS,11/12/2019,6842687124,2.7,NCP PARK PASS
OXFORDSHIRE CC,"CHILDRENS, YOUNG PEOPLE AND FAMILIES","	ASSESS TEAM CITY",HIRE OF ACCOMMODATION AND FACILITIES,11/12/2019,6842687230,497.93,TRAVELODGE
OXFORDSHIRE CC,ENVIRONMENT AND ECONOMY,S38 INSPECT & OTHER,PAYMENTS TO TRANSPORT OPERATORS,11/12/2019,6842686948,12.97,THETRAINLINE.COM
OXFORDSHIRE CC,SOCIAL AND COMMUNITY SERVICES,WANTAGE LIBRARY,MATERIALS,11/12/2019,6842687044,42.99,AMZNMKTPLACE
OXFORDSHIRE CC,SOCIAL AND COMMUNITY SERVICES,"	MTFC",CATERING,11/12/2019,6842687126,3.45,CAFFE NERO BANBURY
OXFORDSHIRE CC,ENVIRONMENT AND ECONOMY,COUNTY LIBRARY,GENERAL MAINTENANCE,11/12/2019,6842686864,34.81,WOLSELEY UK
OXFORDSHIRE CC,"CHILDRENS, YOUNG PEOPLE AND FAMILIES","	LOOKED AFTER NORTH",OTHER TRANSPORT ARRANGEMENTS,11/12/2019,6842687226,60,MOLE VALLEY PREMIE
OXFORDSHIRE CC,CORPORATE CORE,"	COMMUNICATIONS",PHOTOCOPYING,11/12/2019,6842686978,29,STK SHUTTERSTOCK
OXFORDSHIRE CC,"CHILDRENS, YOUNG PEOPLE AND FAMILIES","	RIVERSIDE CENTRE",CATERING PROVISIONS,11/12/2019,6842686898,10.58,SAINSBURYS SACAT 0600
OXFORDSHIRE CC,"CHILDRENS, YOUNG PEOPLE AND FAMILIES","	NCS",IT SOFTWARE,11/12/2019,6842686842,17.89,FASTSPRING
OXFORDSHIRE CC,CORPORATE CORE,"	COMMUNICATIONS",MATERIALS,11/12/2019,6842686980,31.32,STOCKMUSIC.NET
OXFORDSHIRE CC,ENVIRONMENT AND ECONOMY,"	LIBRARY PROJECTS",MATERIALS,11/12/2019,6842687040,17.99,AMZNMKTPLACE AMAZON.CO
OXFORDSHIRE CC,"CHILDRENS, YOUNG PEOPLE AND FAMILIES",THAME E&A HOME,ENTERTAINMENT EXPENSES,11/12/2019,6842686862,30,WWW.GRAVITEEGOLF.COM
OXFORDSHIRE CC,CORPORATE CORE,REGISTRAR,MATERIALS,11/12/2019,6842686908,15,AMZNMKTPLACE
OXFORDSHIRE CC,ENVIRONMENT AND ECONOMY,"	COUNTY PRINT FINSHRS",POSTAGE AND DELIVERY,11/12/2019,6842686872,17.5,ROYAL MAIL CUSTOMER
OXFORDSHIRE CC,"CHILDRENS, YOUNG PEOPLE AND FAMILIES",CNTL ERLY HELP-BBLEY,CATERING PROVISIONS,11/12/2019,6842687242,73.64,TESCO STORE 2994
OXFORDSHIRE CC,SOCIAL AND COMMUNITY SERVICES,CSS - OXFORD,CATERING PROVISIONS,11/12/2019,6842687014,12.1,TESCO STORE 2994
OXFORDSHIRE CC,CORPORATE CORE,"	LEGAL SERVICES",LEGAL COSTS,11/12/2019,6842687106,84,GEN REGISTER OFFICE
OXFORDSHIRE CC,"CHILDRENS, YOUNG PEOPLE AND FAMILIES",CNTL ERLY HELP-BBLEY,CATERING PROVISIONS,11/12/2019,6842687246,71.15,LIDL GB OXFORD
OXFORDSHIRE CC,ENVIRONMENT AND ECONOMY,"	E&I STAFF",MATERIALS,11/12/2019,6842686816,15.99,AMAZON.CO.UK A65IK5815
OXFORDSHIRE CC,SOCIAL AND COMMUNITY SERVICES,CSS BICESTER,CATERING PROVISIONS,11/12/2019,6842686840,6,WILKO RETAIL LIMITED
OXFORDSHIRE CC,"CHILDRENS, YOUNG PEOPLE AND FAMILIES",CNTL ERLY HELP-BBLEY,MATERIALS,11/12/2019,6842687244,17.91,WWW.KIDSPARTYTIME.CO.U
OXFORDSHIRE CC,"CHILDRENS, YOUNG PEOPLE AND FAMILIES","	LEAVING CARE CITY 2",OTHER TRANSPORT ARRANGEMENTS,11/12/2019,6842687214,3.3,GWR OXFORD SST
OXFORDSHIRE CC,"CHILDRENS, YOUNG PEOPLE AND FAMILIES",CNTL EARLY HELP-BRTN,CATERING,11/12/2019,6842687178,168.35,MULLER MILK
OXFORDSHIRE CC,SOCIAL AND COMMUNITY SERVICES,LOOKED AFTER NORTH,PAYMENTS TO TRANSPORT OPERATORS,11/12/2019,6842686828,37.4,BICESTER VIL SSTP
OXFORDSHIRE CC,"CHILDRENS, YOUNG PEOPLE AND FAMILIES","	40 THE MOORS",FURNITURE,11/12/2019,6842687120,63.2,ASDA SUPERSTORE
OXFORDSHIRE CC,SOCIAL AND COMMUNITY SERVICES,CSS WANTAGE,MATERIALS,11/12/2019,6842687166,19.96,SAINSBURYS PFS1244
OXFORDSHIRE CC,SOCIAL AND COMMUNITY SERVICES,CSS WANTAGE,CATERING PROVISIONS,11/12/2019,6842687164,7.65,SAINSBURYS SACAT 2244
OXFORDSHIRE CC,SOCIAL AND COMMUNITY SERVICES,"	MUSEUMS COLLECTIONS",OTHER SERVICES,11/12/2019,6842687130,900.8,CONSERVATION RESOURCES
OXFORDSHIRE CC,"CHILDRENS, YOUNG PEOPLE AND FAMILIES","	MUSIC UNALLOCABLE",CAR LEASING - PRIVATE RENTALS,11/12/2019,6842687064,89.1,EURODRIVE
OXFORDSHIRE CC,ENVIRONMENT AND ECONOMY,S38 INSPECT & OTHER,PAYMENTS TO TRANSPORT OPERATORS,11/12/2019,6842686946,51.94,THETRAINLINE.COM
OXFORDSHIRE CC,SOCIAL AND COMMUNITY SERVICES,CSS - DIDCOT,MATERIALS,11/12/2019,6842687196,139,AMZNMKTPLACE
OXFORDSHIRE CC,"CHILDRENS, YOUNG PEOPLE AND FAMILIES","	LEAVING CARE CITY 2",PAYMENT TO GOVERNMENT DEPARTMENTS,11/12/2019,6842687086,80.5,HM PASSPORT OFFICE
OXFORDSHIRE CC,ENVIRONMENT AND ECONOMY,"	MOUNT HOUSE",MATERIALS,11/12/2019,6842687134,11.98,AMZNMKTPLACE
OXFORDSHIRE CC,"CHILDRENS, YOUNG PEOPLE AND FAMILIES",NTH FAM SUPRT-BCSTR,PAYMENTS TO TRANSPORT OPERATORS,11/12/2019,6842686974,64,WWW.GWR.COM
OXFORDSHIRE CC,SOCIAL AND COMMUNITY SERVICES,"	VISUAL IMP. TEAM",MATERIALS,11/12/2019,6842687058,14.48,AMAZON.CO.UK U11R085O5
OXFORDSHIRE CC,SOCIAL AND COMMUNITY SERVICES,"	VISUAL IMP. TEAM",MATERIALS,11/12/2019,6842687056,9.85,AMAZON.CO.UK E26UI9515
OXFORDSHIRE CC,CORPORATE CORE,SNR LEADERSHIP TEAM,PAYMENTS TO TRANSPORT OPERATORS,11/12/2019,6842687262,79.7,WWW.GWR.COM
OXFORDSHIRE CC,"CHILDRENS, YOUNG PEOPLE AND FAMILIES","	LOOKED AFTER SOUTH",PAYMENTS TO TRANSPORT OPERATORS,11/12/2019,6842687238,15.31,TRAINLINE
OXFORDSHIRE CC,"CHILDRENS, YOUNG PEOPLE AND FAMILIES","	LEAVING CARE NORTH",OTHER TRANSPORT ARRANGEMENTS,11/12/2019,6842687146,1.4,OXFORD UNIVERSITY HOSP
OXFORDSHIRE CC,SOCIAL AND COMMUNITY SERVICES,CSS WALLINGFORD,MATERIALS,11/12/2019,6842686912,71.5,KERI THE FLORIST
OXFORDSHIRE CC,SOCIAL AND COMMUNITY SERVICES,SCHOOLS FM,CATERING PROVISIONS,11/12/2019,6842686928,51.6,SAINSBURYS SACAT 0745
OXFORDSHIRE CC,SOCIAL AND COMMUNITY SERVICES,"	MTFC",CATERING PROVISIONS,11/12/2019,6842687122,8.38,TESCO STORE 2994
OXFORDSHIRE CC,SOCIAL AND COMMUNITY SERVICES,SERVICE IMPROVEMENT,CATERING PROVISIONS,11/12/2019,6842686896,15.75,TESCO STORES 2008
OXFORDSHIRE CC,"CHILDRENS, YOUNG PEOPLE AND FAMILIES",MEMBERS ALLOWANCES,HIRE OF ACCOMMODATION AND FACILITIES,11/12/2019,6842686848,65,THE OLD MILL
OXFORDSHIRE CC,"CHILDRENS, YOUNG PEOPLE AND FAMILIES","	40 THE MOORS",CATERING PROVISIONS,11/12/2019,6842687190,164.43,ASDA GROCERIES ONLINE
OXFORDSHIRE CC,CORPORATE CORE,"	LEGAL SERVICES",LEGAL COSTS,11/12/2019,6842687108,-33,OXFORDSHIRE CC MOTO1
OXFORDSHIRE CC,SOCIAL AND COMMUNITY SERVICES,CSS - OXFORD,CATERING PROVISIONS,11/12/2019,6842687016,-1,TESCO STORE 2994
OXFORDSHIRE CC,SOCIAL AND COMMUNITY SERVICES,UASC 16&17,VEHICLE FUEL,11/12/2019,6842686890,47,TESCO PAY AT PUMP 4267
OXFORDSHIRE CC,"CHILDRENS, YOUNG PEOPLE AND FAMILIES","	40 THE MOORS",CATERING PROVISIONS,11/12/2019,6842687192,-1.65,ASDA GROCERIES ONLINE
OXFORDSHIRE CC,"CHILDRENS, YOUNG PEOPLE AND FAMILIES","	LEAVING CARE NORTH",MATERIALS,11/12/2019,6842686870,0.99,AMAZON PRIME M38ZF1FN4
OXFORDSHIRE CC,SOCIAL AND COMMUNITY SERVICES,DIDCOT MOVE-ON HOME,CATERING,11/12/2019,6842686892,6.35,CAFFE NERO 87 PADDINGT
OXFORDSHIRE CC,SOCIAL AND COMMUNITY SERVICES,DIDCOT MOVE-ON HOME,CATERING,11/12/2019,6842686894,4,CREPES AND WAFFLES CO
OXFORDSHIRE CC,"CHILDRENS, YOUNG PEOPLE AND FAMILIES","	DIRECTOR'S OFFICE",HIRE OF ACCOMMODATION AND FACILITIES,11/12/2019,6842687240,262.5,MALMAISON OXFORD
OXFORDSHIRE CC,"CHILDRENS, YOUNG PEOPLE AND FAMILIES","	LOOKED AFTER NORTH",HIRE OF ACCOMMODATION AND FACILITIES,11/12/2019,6842687232,368.1,OXFORD WITNEY HOTE
OXFORDSHIRE CC,ENVIRONMENT AND ECONOMY,HARD FM,HARDWARE AND CROCKERY,11/12/2019,6842686860,30.25,B & Q 1062
OXFORDSHIRE CC,ENVIRONMENT AND ECONOMY,HARD FM,HARDWARE AND CROCKERY,11/12/2019,6842686858,14.05,WICKES OXFORD
OXFORDSHIRE CC,"CHILDRENS, YOUNG PEOPLE AND FAMILIES","	LEAVING CARE CITY 1",BIRTHDAY ALLOWANCE,11/12/2019,6842687222,40,PRIMARK 440
OXFORDSHIRE CC,"CHILDRENS, YOUNG PEOPLE AND FAMILIES","	ASSESS TEAM CITY",HIRE OF ACCOMMODATION AND FACILITIES,11/12/2019,6842687228,195,PREMIER INN
OXFORDSHIRE CC,"CHILDRENS, YOUNG PEOPLE AND FAMILIES","	LOOKED AFTER NORTH",HIRE OF ACCOMMODATION AND FACILITIES,11/12/2019,6842686868,310.75,THISTLE EXPRESS SW
OXFORDSHIRE CC,"CHILDRENS, YOUNG PEOPLE AND FAMILIES","	LOOKED AFTER SOUTH",CATERING,11/12/2019,6842686830,56.05,ROMANY RYE
OXFORDSHIRE CC,"CHILDRENS, YOUNG PEOPLE AND FAMILIES",EYNSHAM,CATERING,11/12/2019,6842686832,4.19,CO-OPERATIVE FOOD
OXFORDSHIRE CC,ENVIRONMENT AND ECONOMY,DRIVEN,MATERIALS,11/12/2019,6842686976,399.98,WWW.JOHNLEWIS.COM
OXFORDSHIRE CC,"CHILDRENS, YOUNG PEOPLE AND FAMILIES","	RIVERSIDE CENTRE",EDUCATIONAL AND VOCATIONAL TRAINING ,11/12/2019,6842687022,6.5,SPORTS CENTRE
OXFORDSHIRE CC,"CHILDRENS, YOUNG PEOPLE AND FAMILIES",WITNEY,CATERING PROVISIONS,11/12/2019,6842686834,4.39,ALDI 41 775
OXFORDSHIRE CC,"CHILDRENS, YOUNG PEOPLE AND FAMILIES","	RIVERSIDE CENTRE",PAYMENT TO GOVERNMENT DEPARTMENTS,11/12/2019,6842687024,33.98,WWW.LEISURE.ORDNANCE
OXFORDSHIRE CC,"CHILDRENS, YOUNG PEOPLE AND FAMILIES","	LEAVING CARE CITY 2",MANAGEMENT CONSULTANT FEES,11/12/2019,6842687084,154.5,TVLICENSING.CO.UK
OXFORDSHIRE CC,SOCIAL AND COMMUNITY SERVICES,CSS BICESTER,MATERIALS,11/12/2019,6842686812,30.23,AMZNMKTPLACE AMAZON.CO
OXFORDSHIRE CC,SOCIAL AND COMMUNITY SERVICES,CSS WANTAGE,MATERIALS,11/12/2019,6842686814,17.97,CHARLTON PARK GDN
OXFORDSHIRE CC,ENTERPRISEVC,COMMUNICATIONS,SUBSCRIPTIONS,11/12/2019,6842686906,206.5,HIGHSTREETVOUCHERS
OXFORDSHIRE CC,"CHILDRENS, YOUNG PEOPLE AND FAMILIES",THAME E&A HOME,MATERIALS,11/12/2019,6842687004,20.49,AMZNMKTPLACE AMAZON.CO
OXFORDSHIRE CC,SOCIAL AND COMMUNITY SERVICES,CSS - OXFORD,CATERING PROVISIONS,11/12/2019,6842687012,13.96,ALDI STORES 775-142
OXFORDSHIRE CC,SOCIAL AND COMMUNITY SERVICES,CSS - OXFORD,MATERIALS,11/12/2019,6842687010,15.33,ALDI STORES 775-142
OXFORDSHIRE CC,"CHILDRENS, YOUNG PEOPLE AND FAMILIES","	RIVERSIDE CENTRE",CATERING PROVISIONS,11/12/2019,6842687112,7.82,CO-OPERATIVE FOOD
OXFORDSHIRE CC,"CHILDRENS, YOUNG PEOPLE AND FAMILIES",CUDDESDON CORNER FSS,CATERING PROVISIONS,11/12/2019,6842687212,2,SPAR GREATER LEYS
OXFORDSHIRE CC,"CHILDRENS, YOUNG PEOPLE AND FAMILIES","	LOOKED AFTER SOUTH",VEHICLE FUEL,11/12/2019,6842686982,18,W M MORRISON PETROL
OXFORDSHIRE CC,ENVIRONMENT AND ECONOMY,HARD FM,EQUIPMENT,11/12/2019,6842686856,96.12,WILTS ELECTRICAL
OXFORDSHIRE CC,ENVIRONMENT AND ECONOMY,HARD FM,EQUIPMENT,11/12/2019,6842686854,47.96,WILTS ELECTRICAL
OXFORDSHIRE CC,ENVIRONMENT AND ECONOMY,HARD FM,EQUIPMENT,11/12/2019,6842686852,49.87,WILTS ELECTRICAL
OXFORDSHIRE CC,ENVIRONMENT AND ECONOMY,HARD FM,EQUIPMENT,11/12/2019,6842686850,5.86,WILTS ELECTRICAL
OXFORDSHIRE CC,ENVIRONMENT AND ECONOMY,DRIVEN,MATERIALS,10/12/2019,6837657230,349,AMAZON.CO.UK 6J0Z06AD5
OXFORDSHIRE CC,CORPORATE CORE,"	AUDIT SERVICES",OTHER TRAINING COURSES AND QUALIFICATION,10/12/2019,6837657334,23.54,THE INST OF INT AUDITO
OXFORDSHIRE CC,SOCIAL AND COMMUNITY SERVICES,DIDCOT MOVE-ON HOME,ENTERTAINMENT EXPENSES,10/12/2019,6837657148,13.2,APOLLO VICTORIA
OXFORDSHIRE CC,SOCIAL AND COMMUNITY SERVICES,DIDCOT MOVE-ON HOME,HOSPITALITY EXPENSES,10/12/2019,6837657140,14,BAVARIAN VILLAGE
OXFORDSHIRE CC,"CHILDRENS, YOUNG PEOPLE AND FAMILIES",MEMBERS ALLOWANCES,HIRE OF ACCOMMODATION AND FACILITIES,10/12/2019,6837657112,10,THE OLD MILL
OXFORDSHIRE CC,SOCIAL AND COMMUNITY SERVICES,CSS WANTAGE,"BOOKS, DVDS AND CDS",10/12/2019,6837657060,10,SAINSBURYS 2067
OXFORDSHIRE CC,SOCIAL AND COMMUNITY SERVICES,LOOKED AFTER SOUTH,VEHICLE FUEL,10/12/2019,6837657264,32.92,TESCO PFS 3932
OXFORDSHIRE CC,SOCIAL AND COMMUNITY SERVICES,DIDCOT MOVE-ON HOME,CATERING,10/12/2019,6837657146,5,WINTER WONDERLAND
OXFORDSHIRE CC,"CHILDRENS, YOUNG PEOPLE AND FAMILIES",DIDCOT MOVE-ON HOME,CATERING PROVISIONS,10/12/2019,6837657186,15.67,SAINSBURYS SACAT 2067
OXFORDSHIRE CC,"CHILDRENS, YOUNG PEOPLE AND FAMILIES",HOSPITAL TEAMS,PAYMENTS TO TRANSPORT OPERATORS,10/12/2019,6837657184,41.7,WWW.GWR.COM
OXFORDSHIRE CC,"CHILDRENS, YOUNG PEOPLE AND FAMILIES","	RESIDENTIAL STRATEGY",CATERING PROVISIONS,10/12/2019,6837657290,3,IZ  BROOKES SPORTS CAF
OXFORDSHIRE CC,"CHILDRENS, YOUNG PEOPLE AND FAMILIES","	LOOKED AFTER SOUTH",REGISTRATION AND INSPECTION FEES,10/12/2019,6837657074,33,OXFORDSHIRE CC MOTO1
OXFORDSHIRE CC,ENVIRONMENT AND ECONOMY,HARD FM,MATERIALS,10/12/2019,6837657120,52.2,TOOLSTATION LTD
OXFORDSHIRE CC,ENVIRONMENT AND ECONOMY,HARD FM,MATERIALS,10/12/2019,6837657122,17.4,TOOLSTATION LTD
OXFORDSHIRE CC,SOCIAL AND COMMUNITY SERVICES,DIDCOT MOVE-ON HOME,PAYMENTS TO TRANSPORT OPERATORS,10/12/2019,6837657144,13.1,GWR LOND PADD SST
OXFORDSHIRE CC,"CHILDRENS, YOUNG PEOPLE AND FAMILIES","	LOOKED AFTER CITY 1",PAYMENTS TO TRANSPORT OPERATORS,10/12/2019,6837657206,22.94,TRAINLINE
OXFORDSHIRE CC,CORPORATE CORE,"	LEGAL SERVICES",LEGAL COSTS,10/12/2019,6837657372,11,WEST BERKSHIRE DISTRIC
OXFORDSHIRE CC,"CHILDRENS, YOUNG PEOPLE AND FAMILIES","	LOOKED AFTER CITY 1",OTHER TRANSPORT ARRANGEMENTS,10/12/2019,6837657210,44.25,WWW.THEKEY.CO.UK
OXFORDSHIRE CC,CORPORATE CORE,MOTOR FLEET,MOTOR IF OWN DAMAGE,10/12/2019,6837657486,647.79,OLIVER HOLDINGS
OXFORDSHIRE CC,"CHILDRENS, YOUNG PEOPLE AND FAMILIES","	FAMILY SUPPORT CITY3",OTHER EXPENSES,10/12/2019,6837657434,49.98,AMAZON.CO.UK LQ05F7DH5
OXFORDSHIRE CC,CORPORATE CORE,"	LEGAL SERVICES",LEGAL COSTS,10/12/2019,6837657368,33,OXFORDSHIRE CC MOTO1
OXFORDSHIRE CC,SOCIAL AND COMMUNITY SERVICES,LEADERSHIP TEAM,PAYMENTS TO TRANSPORT OPERATORS,10/12/2019,6837657190,73.3,WWW.GWR.COM
OXFORDSHIRE CC,SOCIAL AND COMMUNITY SERVICES,DIDCOT MOVE-ON HOME,PAYMENTS TO TRANSPORT OPERATORS,10/12/2019,6837657142,27.4,GWR DIDCOT PKWY TO
OXFORDSHIRE CC,"CHILDRENS, YOUNG PEOPLE AND FAMILIES",NTH FAM SUPRT-BCSTR,PAYMENTS TO TRANSPORT OPERATORS,10/12/2019,6837657228,125.1,WWW.GWR.COM
OXFORDSHIRE CC,"CHILDRENS, YOUNG PEOPLE AND FAMILIES",THAME E&A HOME,CATERING PROVISIONS,10/12/2019,6837657102,14.5,SAINSBURYS 2096
OXFORDSHIRE CC,"CHILDRENS, YOUNG PEOPLE AND FAMILIES",WITNEY,CATERING,10/12/2019,6837657086,5.4,HACKETT S FOOD AND DRI
OXFORDSHIRE CC,SOCIAL AND COMMUNITY SERVICES,CSS WANTAGE,EQUIPMENT,10/12/2019,6837657062,47.5,AMZNMKTPLACE
OXFORDSHIRE CC,"CHILDRENS, YOUNG PEOPLE AND FAMILIES","	OSCB",CATERING PROVISIONS,10/12/2019,6837657088,10.5,MARKS&SPENCER PLC
OXFORDSHIRE CC,SOCIAL AND COMMUNITY SERVICES,LEAVING CARE NORTH,CATERING,10/12/2019,6837657390,5.75,COSTA COFFEE 43036410
OXFORDSHIRE CC,ENVIRONMENT AND ECONOMY,"	ROW MAINT",EQUIPMENT,10/12/2019,6837657276,9.8,EVENLODE DIY
OXFORDSHIRE CC,"CHILDRENS, YOUNG PEOPLE AND FAMILIES","	ASSESS TEAM CITY",PAYMENTS TO TRANSPORT OPERATORS,10/12/2019,6837657248,233.55,GWR OXFORD TO
OXFORDSHIRE CC,ENVIRONMENT AND ECONOMY,"	ROW MAINT",EQUIPMENT,10/12/2019,6837657274,29.51,OXON FASTENING SYSTEMS
OXFORDSHIRE CC,SOCIAL AND COMMUNITY SERVICES,CSS WANTAGE,MATERIALS,10/12/2019,6837657054,22.96,AMZNMKTPLACE
OXFORDSHIRE CC,"CHILDRENS, YOUNG PEOPLE AND FAMILIES","	RIVERSIDE CENTRE",MATERIALS,10/12/2019,6837657284,13.99,AMAZON.CO.UK QM9GL2WJ5
OXFORDSHIRE CC,"CHILDRENS, YOUNG PEOPLE AND FAMILIES","	RIVERSIDE CENTRE",MATERIALS,10/12/2019,6837657288,13.58,AMZNMKTPLACE
OXFORDSHIRE CC,ENVIRONMENT AND ECONOMY,V2GO,CATERING PROVISIONS,10/12/2019,6837657238,67.66,MARKS&SPENCER PLC
OXFORDSHIRE CC,ENVIRONMENT AND ECONOMY,V2GO,CATERING PROVISIONS,10/12/2019,6837657242,55.1,MARKS&SPENCER PLC
OXFORDSHIRE CC,"CHILDRENS, YOUNG PEOPLE AND FAMILIES","	40 THE MOORS",,10/12/2019,6837657450,8.99,PLAYSTATIONNETWORK
OXFORDSHIRE CC,"CHILDRENS, YOUNG PEOPLE AND FAMILIES",WITNEY,CATERING PROVISIONS,10/12/2019,6837657152,12.8,TESCO STORES 4480
OXFORDSHIRE CC,"CHILDRENS, YOUNG PEOPLE AND FAMILIES","	FAMILY SUPPORT CITY3",OTHER TRANSPORT ARRANGEMENTS,10/12/2019,6837657432,77.8,WWW.GWR.COM
OXFORDSHIRE CC,"CHILDRENS, YOUNG PEOPLE AND FAMILIES","	FAM SUPP CITY 1",OTHER TRANSPORT ARRANGEMENTS,10/12/2019,6837657158,38.75,OXFORD BUS COMPANY
OXFORDSHIRE CC,"CHILDRENS, YOUNG PEOPLE AND FAMILIES",EYNSHAM,CATERING,10/12/2019,6837657080,1.25,SAINSBURYS SACAT 0631
OXFORDSHIRE CC,"CHILDRENS, YOUNG PEOPLE AND FAMILIES","	LEAVING CARE NORTH",CLOTHING AND UNIFORMS,10/12/2019,6837657132,26,NEXT RETAIL LTD
OXFORDSHIRE CC,"CHILDRENS, YOUNG PEOPLE AND FAMILIES","	RIVERSIDE CENTRE",CATERING PROVISIONS,10/12/2019,6837657382,9.48,TESCO STORES 4377
OXFORDSHIRE CC,"CHILDRENS, YOUNG PEOPLE AND FAMILIES","	RESIDENTIAL STRATEGY",CATERING PROVISIONS,10/12/2019,6837657100,9.15,TESCO STORE 2990
OXFORDSHIRE CC,ENVIRONMENT AND ECONOMY,COUNTY LIBRARY,EQUIPMENT,10/12/2019,6837657128,604.43,BSS OXFORD
OXFORDSHIRE CC,ENVIRONMENT AND ECONOMY,HARD FM,GENERAL MAINTENANCE,10/12/2019,6837657124,551.29,WOLSELEY UK
OXFORDSHIRE CC,ENVIRONMENT AND ECONOMY,HARD FM,HARDWARE AND CROCKERY,10/12/2019,6837657114,150.05,AWBS
OXFORDSHIRE CC,ENVIRONMENT AND ECONOMY,HARD FM,HARDWARE AND CROCKERY,10/12/2019,6837657118,108.89,TRAVIS PERKINS
OXFORDSHIRE CC,ENVIRONMENT AND ECONOMY,COUNTY LIBRARY,GENERAL MAINTENANCE,10/12/2019,6837657126,46.07,WOLSELEY UK
OXFORDSHIRE CC,ENVIRONMENT AND ECONOMY,"	WASTE MNGMNT GEN",PAYMENTS TO TRANSPORT OPERATORS,10/12/2019,6837657324,73.3,WWW.GWR.COM
OXFORDSHIRE CC,"CHILDRENS, YOUNG PEOPLE AND FAMILIES",CNTL ERLY HELP-BBLEY,CATERING PROVISIONS,10/12/2019,6837657492,50,TESCO STORE 2990
OXFORDSHIRE CC,"CHILDRENS, YOUNG PEOPLE AND FAMILIES","	LOOKED AFTER CITY 2",PAYMENTS TO TRANSPORT OPERATORS,10/12/2019,6837657342,55.45,TRAINLINE
OXFORDSHIRE CC,"CHILDRENS, YOUNG PEOPLE AND FAMILIES","	LOOKED AFTER CITY 1",OTHER TRANSPORT ARRANGEMENTS,10/12/2019,6837657282,73.77,TRAINLINE
OXFORDSHIRE CC,"CHILDRENS, YOUNG PEOPLE AND FAMILIES","	LEAVING CARE CITY 1",OTHER TRANSPORT ARRANGEMENTS,10/12/2019,6837657280,68,WWW.THEKEY.CO.UK
OXFORDSHIRE CC,CORPORATE CORE,,"SUPPLIES, STATIONERY AND MATERIALS",10/12/2019,6837657488,101.68,LYRECO UK LTD
OXFORDSHIRE CC,SOCIAL AND COMMUNITY SERVICES,CSS - OXFORD,CATERING PROVISIONS,10/12/2019,6837657330,345.81,TESCO STORE 2994
OXFORDSHIRE CC,SOCIAL AND COMMUNITY SERVICES,SERVICE IMPROVEMENT,CATERING PROVISIONS,10/12/2019,6837657150,12.35,TESCO STORE 2413
OXFORDSHIRE CC,"CHILDRENS, YOUNG PEOPLE AND FAMILIES",THAME E&A HOME,CATERING PROVISIONS,10/12/2019,6837657268,101.05,TESCO STORES 2038
OXFORDSHIRE CC,SOCIAL AND COMMUNITY SERVICES,CSS WITNEY,CATERING PROVISIONS,10/12/2019,6837657414,174.54,TESCO STORES 2008
OXFORDSHIRE CC,SOCIAL AND COMMUNITY SERVICES,CSS WALLINGFORD,CATERING PROVISIONS,10/12/2019,6837657172,159.85,TESCO STORES 2008
OXFORDSHIRE CC,SOCIAL AND COMMUNITY SERVICES,CSS BICESTER,CATERING PROVISIONS,10/12/2019,6837657138,62.85,SAINSBURYS (2243)
OXFORDSHIRE CC,SOCIAL AND COMMUNITY SERVICES,CSS - BANBURY,CATERING PROVISIONS,10/12/2019,6837657244,56.15,SAINSBURYS TO YOU 0642
OXFORDSHIRE CC,"CHILDRENS, YOUNG PEOPLE AND FAMILIES",STEP INTO TRAINING,"BOOKS, DVDS AND CDS",10/12/2019,6837657462,3.07,AMAZON.CO.UK PN3H55L15
OXFORDSHIRE CC,"CHILDRENS, YOUNG PEOPLE AND FAMILIES","	RESIDENTIAL STRATEGY",MATERIALS,10/12/2019,6837657386,-11.99,AMZ WALL ARTER
OXFORDSHIRE CC,"CHILDRENS, YOUNG PEOPLE AND FAMILIES",ATV ADOPTION WOODLEY,MATERIALS,10/12/2019,6837657078,37.45,AMZNMKTPLACE
OXFORDSHIRE CC,"CHILDRENS, YOUNG PEOPLE AND FAMILIES",DIDCOT MOVE-ON HOME,CATERING PROVISIONS,10/12/2019,6837657458,0.8,SAINSBURYS SACAT 2067
OXFORDSHIRE CC,CORPORATE CORE,"	LEGAL SERVICES",PROFESSIONAL SUBSCRIPTIONS,10/12/2019,6837657376,204,CHARTERED INSTITUTE OF
OXFORDSHIRE CC,"CHILDRENS, YOUNG PEOPLE AND FAMILIES",THAME E&A HOME,MATERIALS,09/12/2019,6829947914,42.3,AMZNMKTPLACE
OXFORDSHIRE CC,"CHILDRENS, YOUNG PEOPLE AND FAMILIES",THAME E&A HOME,MATERIALS,09/12/2019,6829947800,21.79,AMAZON.CO.UK TD6BP1MB5
OXFORDSHIRE CC,SOCIAL AND COMMUNITY SERVICES,DIDCOT MOVE-ON HOME,ENTERTAINMENT EXPENSES,09/12/2019,6829947660,9,CINEWORLD DID CP
OXFORDSHIRE CC,"CHILDRENS, YOUNG PEOPLE AND FAMILIES",BULLINGDON PRISON,"BOOKS, DVDS AND CDS",09/12/2019,6829948048,7.99,AMAZON PRIME E08LD4WF5
OXFORDSHIRE CC,"CHILDRENS, YOUNG PEOPLE AND FAMILIES","	40 THE MOORS",TELEPHONE - EQUIPMENT,09/12/2019,6829948012,20,GIFFGAFF
OXFORDSHIRE CC,"CHILDRENS, YOUNG PEOPLE AND FAMILIES","	DISABILITIES TEAM-N",MATERIALS,09/12/2019,6829947728,17.68,AMAZON.CO.UK EH2PC73C5
OXFORDSHIRE CC,SOCIAL AND COMMUNITY SERVICES,CSS WANTAGE,EQUIPMENT,09/12/2019,6829947542,29.97,AMZNMKTPLACE
OXFORDSHIRE CC,ENVIRONMENT AND ECONOMY,"	BUSINESS SYST STAFF",PAYMENTS TO TRANSPORT OPERATORS,09/12/2019,6829948026,49.35,TRAINLINE
OXFORDSHIRE CC,"CHILDRENS, YOUNG PEOPLE AND FAMILIES",EYNSHAM,MATERIALS,09/12/2019,6829947888,19.05,HOBBYCRAFT
OXFORDSHIRE CC,"CHILDRENS, YOUNG PEOPLE AND FAMILIES",THAME E&A HOME,MATERIALS,09/12/2019,6829947910,3.99,ARGOS LTD
OXFORDSHIRE CC,"CHILDRENS, YOUNG PEOPLE AND FAMILIES",THAME E&A HOME,CATERING,09/12/2019,6829947912,1.75,GREGGS PLC
OXFORDSHIRE CC,SOCIAL AND COMMUNITY SERVICES,DIDCOT MOVE-ON HOME,CATERING PROVISIONS,09/12/2019,6829947658,24.61,TESCO STORE 2413
OXFORDSHIRE CC,"CHILDRENS, YOUNG PEOPLE AND FAMILIES",THAME E&A HOME,MATERIALS,09/12/2019,6829947908,20.94,SUMUP   SPACE STORE LI
OXFORDSHIRE CC,"CHILDRENS, YOUNG PEOPLE AND FAMILIES",EYNSHAM,PAYMENTS TO VOLUNTARY BODIES,09/12/2019,6829947668,1.98,COGGES HERITAGE TRUST
OXFORDSHIRE CC,"CHILDRENS, YOUNG PEOPLE AND FAMILIES",EYNSHAM,PAYMENTS TO VOLUNTARY BODIES,09/12/2019,6829947670,3,COGGES HERITAGE TRUST
OXFORDSHIRE CC,"CHILDRENS, YOUNG PEOPLE AND FAMILIES",NORTH FSS- BANBURY,CLOTHING AND UNIFORMS,09/12/2019,6829947666,5,SAINSBURYS SACAT 0632
OXFORDSHIRE CC,ENVIRONMENT AND ECONOMY,HARD FM,HIRE OF ACCOMMODATION AND FACILITIES,09/12/2019,6829947624,92.99,TRAVELODGE
OXFORDSHIRE CC,SOCIAL AND COMMUNITY SERVICES,RESIDENTIAL STRATEGY,CATERING PROVISIONS,09/12/2019,6829947646,0.99,CO-OPERATIVE FOOD
OXFORDSHIRE CC,"CHILDRENS, YOUNG PEOPLE AND FAMILIES",BULLINGDON PRISON,"BOOKS, DVDS AND CDS",09/12/2019,6829948092,-4,AMAZON PRIME
OXFORDSHIRE CC,CORPORATE CORE,"	COMMUNICATIONS",IT SOFTWARE,09/12/2019,6829947748,7.84,RSS.APP
OXFORDSHIRE CC,"CHILDRENS, YOUNG PEOPLE AND FAMILIES","	40 THE MOORS",MATERIALS,09/12/2019,6829948010,43.99,ARGOS RETAIL GROUP
OXFORDSHIRE CC,"CHILDRENS, YOUNG PEOPLE AND FAMILIES",EYNSHAM,CATERING PROVISIONS,09/12/2019,6829947664,2.09,CO-OPERATIVE FOOD
OXFORDSHIRE CC,"CHILDRENS, YOUNG PEOPLE AND FAMILIES","	40 THE MOORS",CATERING PROVISIONS,09/12/2019,6829948008,4,TESCO STORE 2788
OXFORDSHIRE CC,"CHILDRENS, YOUNG PEOPLE AND FAMILIES","	40 THE MOORS",CATERING,09/12/2019,6829948006,66.85,DOMINOS PIZZA UK & IRE
OXFORDSHIRE CC,"CHILDRENS, YOUNG PEOPLE AND FAMILIES","	MALTFIELD HOUSE",CATERING PROVISIONS,09/12/2019,6829947810,8.2,SAINSBURYS 2067
OXFORDSHIRE CC,"CHILDRENS, YOUNG PEOPLE AND FAMILIES",THAME E&A HOME,OTHER TRANSPORT ARRANGEMENTS,09/12/2019,6829947708,1.5,PARKJOCKEY LONDON
OXFORDSHIRE CC,"CHILDRENS, YOUNG PEOPLE AND FAMILIES",THAME E&A HOME,CATERING PROVISIONS,09/12/2019,6829947704,20,WILKO RETAIL LIMITED
OXFORDSHIRE CC,SOCIAL AND COMMUNITY SERVICES,"	KINGFISHER",CATERING PROVISIONS,09/12/2019,6829947826,10,WAITROSE 209
OXFORDSHIRE CC,"CHILDRENS, YOUNG PEOPLE AND FAMILIES",THAME E&A HOME,MATERIALS,09/12/2019,6829947706,130.05,JD SPORTS PLC
OXFORDSHIRE CC,SOCIAL AND COMMUNITY SERVICES,DIDCOT MOVE-ON HOME,CATERING PROVISIONS,09/12/2019,6829947656,8,SAINSBURYS SACAT 0632
OXFORDSHIRE CC,"CHILDRENS, YOUNG PEOPLE AND FAMILIES","	RESIDENTIAL STRATEGY",CATERING PROVISIONS,09/12/2019,6829947606,5.49,PPOINT_ BAN E F & W LT
OXFORDSHIRE CC,"CHILDRENS, YOUNG PEOPLE AND FAMILIES",THAME E&A HOME,MATERIALS,09/12/2019,6829947906,14.99,WALLYS TOYSHOP
OXFORDSHIRE CC,"CHILDRENS, YOUNG PEOPLE AND FAMILIES",THAME E&A HOME,CATERING PROVISIONS,09/12/2019,6829947904,3.3,SAINSBURYS 2096
OXFORDSHIRE CC,"CHILDRENS, YOUNG PEOPLE AND FAMILIES","	LOOKED AFTER CITY 2",PAYMENTS TO TRANSPORT OPERATORS,09/12/2019,6829947920,46.8,THETRAINLINE.COM
OXFORDSHIRE CC,CORPORATE CORE,"	COMMUNICATIONS",MATERIALS,09/12/2019,6829947746,188.22,MAILCHIMP    MONTHLY
OXFORDSHIRE CC,"CHILDRENS, YOUNG PEOPLE AND FAMILIES",WITNEY,CATERING PROVISIONS,09/12/2019,6829947672,96.75,SAINSBURYS TO YOU 0632
OXFORDSHIRE CC,"CHILDRENS, YOUNG PEOPLE AND FAMILIES",THAME E&A HOME,MATERIALS,09/12/2019,6829947710,0.99,CARD FACTORY
OXFORDSHIRE CC,"CHILDRENS, YOUNG PEOPLE AND FAMILIES",BULLINGDON PRISON,"BOOKS, DVDS AND CDS",09/12/2019,6829948090,-4.09,MUSIC MAGPIE
OXFORDSHIRE CC,"CHILDRENS, YOUNG PEOPLE AND FAMILIES",BULLINGDON PRISON,"BOOKS, DVDS AND CDS",09/12/2019,6829948088,-2.49,MUSIC MAGPIE
OXFORDSHIRE CC,"CHILDRENS, YOUNG PEOPLE AND FAMILIES",BULLINGDON PRISON,"BOOKS, DVDS AND CDS",09/12/2019,6829948086,-2.49,MUSIC MAGPIE
OXFORDSHIRE CC,"CHILDRENS, YOUNG PEOPLE AND FAMILIES",BULLINGDON PRISON,"BOOKS, DVDS AND CDS",09/12/2019,6829948084,-4.09,MUSIC MAGPIE
OXFORDSHIRE CC,"CHILDRENS, YOUNG PEOPLE AND FAMILIES",BULLINGDON PRISON,"BOOKS, DVDS AND CDS",09/12/2019,6829948082,-1.5,MUSIC MAGPIE
OXFORDSHIRE CC,"CHILDRENS, YOUNG PEOPLE AND FAMILIES",BULLINGDON PRISON,"BOOKS, DVDS AND CDS",09/12/2019,6829948080,-3.89,MUSIC MAGPIE
OXFORDSHIRE CC,"CHILDRENS, YOUNG PEOPLE AND FAMILIES",BULLINGDON PRISON,"BOOKS, DVDS AND CDS",09/12/2019,6829948078,-1.5,MUSIC MAGPIE
OXFORDSHIRE CC,"CHILDRENS, YOUNG PEOPLE AND FAMILIES",BULLINGDON PRISON,"BOOKS, DVDS AND CDS",09/12/2019,6829948076,-4.09,MUSIC MAGPIE
OXFORDSHIRE CC,"CHILDRENS, YOUNG PEOPLE AND FAMILIES",BULLINGDON PRISON,"BOOKS, DVDS AND CDS",09/12/2019,6829948074,-4.09,MUSIC MAGPIE
OXFORDSHIRE CC,"CHILDRENS, YOUNG PEOPLE AND FAMILIES",BULLINGDON PRISON,"BOOKS, DVDS AND CDS",09/12/2019,6829948072,-1.5,MUSIC MAGPIE
OXFORDSHIRE CC,"CHILDRENS, YOUNG PEOPLE AND FAMILIES",BULLINGDON PRISON,"BOOKS, DVDS AND CDS",09/12/2019,6829948070,-6.09,MUSIC MAGPIE
OXFORDSHIRE CC,"CHILDRENS, YOUNG PEOPLE AND FAMILIES",BULLINGDON PRISON,"BOOKS, DVDS AND CDS",09/12/2019,6829948068,-1.5,MUSIC MAGPIE
OXFORDSHIRE CC,"CHILDRENS, YOUNG PEOPLE AND FAMILIES",BULLINGDON PRISON,"BOOKS, DVDS AND CDS",09/12/2019,6829948066,-4.09,MUSIC MAGPIE
OXFORDSHIRE CC,"CHILDRENS, YOUNG PEOPLE AND FAMILIES",BULLINGDON PRISON,"BOOKS, DVDS AND CDS",09/12/2019,6829948064,-1.5,MUSIC MAGPIE
OXFORDSHIRE CC,"CHILDRENS, YOUNG PEOPLE AND FAMILIES",BULLINGDON PRISON,"BOOKS, DVDS AND CDS",09/12/2019,6829948062,-2,MUSIC MAGPIE
OXFORDSHIRE CC,"CHILDRENS, YOUNG PEOPLE AND FAMILIES",BULLINGDON PRISON,"BOOKS, DVDS AND CDS",09/12/2019,6829948060,-1.5,MUSIC MAGPIE
OXFORDSHIRE CC,"CHILDRENS, YOUNG PEOPLE AND FAMILIES",BULLINGDON PRISON,"BOOKS, DVDS AND CDS",09/12/2019,6829948058,-1.5,MUSIC MAGPIE
OXFORDSHIRE CC,"CHILDRENS, YOUNG PEOPLE AND FAMILIES",BULLINGDON PRISON,"BOOKS, DVDS AND CDS",09/12/2019,6829948056,-1.5,MUSIC MAGPIE
OXFORDSHIRE CC,"CHILDRENS, YOUNG PEOPLE AND FAMILIES",BULLINGDON PRISON,"BOOKS, DVDS AND CDS",09/12/2019,6829948054,-4.09,MUSIC MAGPIE
OXFORDSHIRE CC,"CHILDRENS, YOUNG PEOPLE AND FAMILIES",BULLINGDON PRISON,"BOOKS, DVDS AND CDS",09/12/2019,6829948052,-1.99,MUSIC MAGPIE
OXFORDSHIRE CC,"CHILDRENS, YOUNG PEOPLE AND FAMILIES",BULLINGDON PRISON,"BOOKS, DVDS AND CDS",09/12/2019,6829948050,-1.99,MUSIC MAGPIE
OXFORDSHIRE CC,"CHILDRENS, YOUNG PEOPLE AND FAMILIES",THAME E&A HOME,CATERING PROVISIONS,09/12/2019,6829947902,4.5,SAINSBURYS SACAT 2096
OXFORDSHIRE CC,SOCIAL AND COMMUNITY SERVICES,"	KINGFISHER",VEHICLE FUEL,09/12/2019,6829947832,40.48,SEDGEMOOR 20268608
OXFORDSHIRE CC,SOCIAL AND COMMUNITY SERVICES,"	KINGFISHER",CATERING PROVISIONS,09/12/2019,6829947830,6.94,WELCOME BREAK SEDGEMOO
OXFORDSHIRE CC,"CHILDRENS, YOUNG PEOPLE AND FAMILIES",DIDCOT MOVE-ON HOME,CATERING PROVISIONS,09/12/2019,6829948034,9.74,SAINSBURYS SACAT 2067
OXFORDSHIRE CC,ENVIRONMENT AND ECONOMY,HARD FM,HARDWARE AND CROCKERY,09/12/2019,6829947628,152,TRAVIS PERKINS
OXFORDSHIRE CC,SOCIAL AND COMMUNITY SERVICES,"	KINGFISHER",CLOTHING AND UNIFORMS,09/12/2019,6829947834,11.6,PRIMARK
OXFORDSHIRE CC,"CHILDRENS, YOUNG PEOPLE AND FAMILIES",NORTH FSS- BANBURY,PAYMENTS TO TRANSPORT OPERATORS,09/12/2019,6829947712,18.85,WWW.GWR.COM
OXFORDSHIRE CC,CORPORATE CORE,INCOME TEAM,PAYMENT TO GOVERNMENT DEPARTMENTS,09/12/2019,6829948170,22,OXFORDSHIRE CC MOTO1
OXFORDSHIRE CC,"CHILDRENS, YOUNG PEOPLE AND FAMILIES",NTH FAM SUPRT-BCSTR,OTHER TRANSPORT ARRANGEMENTS,09/12/2019,6829947740,55,YELLOW TAXIS COVENTRY
OXFORDSHIRE CC,"CHILDRENS, YOUNG PEOPLE AND FAMILIES","	LOOKED AFTER CITY 2",REGISTRATION AND INSPECTION FEES,09/12/2019,6829947730,22,OXFORDSHIRE CC MOTO1
OXFORDSHIRE CC,"CHILDRENS, YOUNG PEOPLE AND FAMILIES","	PARENT PARTNERSHIP",CATERING PROVISIONS,09/12/2019,6829948002,43,MARKS&SPENCER PLC
OXFORDSHIRE CC,"CHILDRENS, YOUNG PEOPLE AND FAMILIES","	LEAVING CARE NORTH",EDUCATIONAL AND VOCATIONAL TRAINING ,09/12/2019,6829947752,22,OXFORDSHIRE CC MOTO1
OXFORDSHIRE CC,ENVIRONMENT AND ECONOMY,SUMMERTOWN LIBRARY,"NEWSPAPERS, PERIODICALS AND PUBLICATIONS",09/12/2019,6829948094,41.75,TIM'S NEWSAGENT
OXFORDSHIRE CC,ENVIRONMENT AND ECONOMY,HARD FM,EQUIPMENT,09/12/2019,6829947626,404.78,BSS OXFORD
OXFORDSHIRE CC,"CHILDRENS, YOUNG PEOPLE AND FAMILIES",KINGFISHER,OTHER TRANSPORT ARRANGEMENTS,09/12/2019,6829947938,7,WESTGATE OXFORD CAR PA
OXFORDSHIRE CC,SOCIAL AND COMMUNITY SERVICES,"	MUSEUMS COLLECTIONS",MATERIALS,09/12/2019,6829947928,18.98,AMAZON.CO.UK LT6QP1ZO5
OXFORDSHIRE CC,"CHILDRENS, YOUNG PEOPLE AND FAMILIES",FPT SOUTH/VALE,PAYMENTS TO VOLUNTARY BODIES,09/12/2019,6829948116,7.98,OXFAM F3723
OXFORDSHIRE CC,ENTERPRISEVC,COMMUNICATIONS,PAYMENTS TO TRANSPORT OPERATORS,09/12/2019,6829947680,34.04,THETRAINLINE.COM
OXFORDSHIRE CC,ENVIRONMENT AND ECONOMY,HARD FM,HARDWARE AND CROCKERY,09/12/2019,6829947636,929.52,JEWSON LTD
OXFORDSHIRE CC,"CHILDRENS, YOUNG PEOPLE AND FAMILIES","	LOOKED AFTER SOUTH",MATERIALS,09/12/2019,6829947612,1.99,WH SMITH
OXFORDSHIRE CC,"CHILDRENS, YOUNG PEOPLE AND FAMILIES",FAMILY SUPPORT 2,PAYMENTS TO TRANSPORT OPERATORS,09/12/2019,6829948096,25.2,WWW.GWR.COM
OXFORDSHIRE CC,"CHILDRENS, YOUNG PEOPLE AND FAMILIES","	LOOKED AFTER SOUTH",MATERIALS,09/12/2019,6829947610,17.99,WH SMITH
OXFORDSHIRE CC,"CHILDRENS, YOUNG PEOPLE AND FAMILIES","	LOOKED AFTER CITY 2",RESIDENTIAL ACTIVITIES,09/12/2019,6829947822,31,WWW.MILLETSFARMCENTRE.
OXFORDSHIRE CC,CORPORATE CORE,"	LEGAL SERVICES",LEGAL COSTS,09/12/2019,6829947898,11,OXFORDSHIRE CC MOTO1
OXFORDSHIRE CC,"CHILDRENS, YOUNG PEOPLE AND FAMILIES","	FAMILY SUPPORT CITY3",CATERING,09/12/2019,6829947562,13.93,PRET A MANGER
OXFORDSHIRE CC,"CHILDRENS, YOUNG PEOPLE AND FAMILIES","	LOOKED AFTER SOUTH",PAYMENTS TO TRANSPORT OPERATORS,09/12/2019,6829947650,30.3,OXFORD PARKWAY SSTP
OXFORDSHIRE CC,ENVIRONMENT AND ECONOMY,HARD FM,HARDWARE AND CROCKERY,09/12/2019,6829947638,7.6,SCREWFIX OXFORD
OXFORDSHIRE CC,"CHILDRENS, YOUNG PEOPLE AND FAMILIES",CSS - DIDCOT,MATERIALS,09/12/2019,6829947796,26.96,ROBERT DYAS HOLDNG LTD
OXFORDSHIRE CC,"CHILDRENS, YOUNG PEOPLE AND FAMILIES","	LOOKED AFTER CITY 2",PAYMENTS TO TRANSPORT OPERATORS,09/12/2019,6829947880,106.74,THETRAINLINE.COM
OXFORDSHIRE CC,CORPORATE CORE,THAME LIBRARY,MATERIALS,09/12/2019,6829948164,147.93,WWW.ARGOS.CO.UK
OXFORDSHIRE CC,"CHILDRENS, YOUNG PEOPLE AND FAMILIES",CSS - DIDCOT,CATERING PROVISIONS,09/12/2019,6829947794,95.86,SAINSBURYS 2067
OXFORDSHIRE CC,SOCIAL AND COMMUNITY SERVICES,CSS - BANBURY,IT SERVICES,09/12/2019,6829948014,270,TRAINING SYNERGY LTD
OXFORDSHIRE CC,"CHILDRENS, YOUNG PEOPLE AND FAMILIES",CSS WALLINGFORD,CATERING PROVISIONS,09/12/2019,6829947544,3.05,WAITROSE 675
OXFORDSHIRE CC,"CHILDRENS, YOUNG PEOPLE AND FAMILIES","	LOOKED AFTER NORTH",POSTAGE AND DELIVERY,09/12/2019,6829948146,9.95,POST OFFICE COUNTER
OXFORDSHIRE CC,ENVIRONMENT AND ECONOMY,LIB ICT SUPPRT&MAINT,MATERIALS,09/12/2019,6829947838,12,A & P CHAMBERS LTD
OXFORDSHIRE CC,SOCIAL AND COMMUNITY SERVICES,CSS - DIDCOT,CATERING,09/12/2019,6829947526,47.3,CHURCHILLS
OXFORDSHIRE CC,"CHILDRENS, YOUNG PEOPLE AND FAMILIES","	LEAVING CARE NORTH",MATERIALS,09/12/2019,6829947936,85,JD SPORTS INTERNET
OXFORDSHIRE CC,SOCIAL AND COMMUNITY SERVICES,CSS - BANBURY,MATERIALS,09/12/2019,6829948016,89.99,AMZNMKTPLACE
OXFORDSHIRE CC,ENVIRONMENT AND ECONOMY,HARD FM,HARDWARE AND CROCKERY,09/12/2019,6829947644,8.12,WICKES OXFORD
OXFORDSHIRE CC,SOCIAL AND COMMUNITY SERVICES,CSS WANTAGE,MATERIALS,09/12/2019,6829947958,134.4,PAYPAL  BAG BOOKS
OXFORDSHIRE CC,"CHILDRENS, YOUNG PEOPLE AND FAMILIES",FAMILY SUPPORT 2,MATERIALS,09/12/2019,6829948174,25.99,WWW.ARGOS.CO.UK
OXFORDSHIRE CC,"CHILDRENS, YOUNG PEOPLE AND FAMILIES",FAMILY TIME COSTS,PAYMENTS TO TRANSPORT OPERATORS,09/12/2019,6829947842,39.7,WWW.GWR.COM
OXFORDSHIRE CC,SOCIAL AND COMMUNITY SERVICES,DIDCOT MOVE-ON HOME,CATERING PROVISIONS,09/12/2019,6829947654,33.9,SAINSBURYS SACAT 2067
OXFORDSHIRE CC,"CHILDRENS, YOUNG PEOPLE AND FAMILIES",NORTH FSS- BANBURY,PAYMENTS TO TRANSPORT OPERATORS,09/12/2019,6829947714,17.5,WWW.GWR.COM
OXFORDSHIRE CC,"CHILDRENS, YOUNG PEOPLE AND FAMILIES","	ASSESS TEAM CITY",HIRE OF ACCOMMODATION AND FACILITIES,09/12/2019,6829948122,152.25,TRAVELODGE
OXFORDSHIRE CC,ENVIRONMENT AND ECONOMY,HARD FM,SECURITY COSTS,09/12/2019,6829947634,71.4,INSIGHT SECURITY
OXFORDSHIRE CC,ENVIRONMENT AND ECONOMY,HARD FM,HARDWARE AND CROCKERY,09/12/2019,6829947640,10.04,SCREWFIX OXFORD
OXFORDSHIRE CC,SOCIAL AND COMMUNITY SERVICES,SCHOOLS FM,CATERING PROVISIONS,09/12/2019,6829947750,26.5,MARKS&SPENCER PLC
OXFORDSHIRE CC,ENVIRONMENT AND ECONOMY,HARD FM,SECURITY COSTS,09/12/2019,6829947632,238.2,INSIGHT SECURITY
OXFORDSHIRE CC,ENVIRONMENT AND ECONOMY,DRIVEN,MATERIALS,09/12/2019,6829947742,124.98,WWW.JOHNLEWIS.COM
OXFORDSHIRE CC,"CHILDRENS, YOUNG PEOPLE AND FAMILIES","	LOOKED AFTER SOUTH",EDUCATIONAL AND VOCATIONAL TRAINING ,09/12/2019,6829947676,11,OXFORDSHIRE CC MOTO1
OXFORDSHIRE CC,"CHILDRENS, YOUNG PEOPLE AND FAMILIES","	LOOKED AFTER SOUTH",PAYMENTS TO TRANSPORT OPERATORS,09/12/2019,6829947608,64.2,GWR OXFORD TO
OXFORDSHIRE CC,SOCIAL AND COMMUNITY SERVICES,"	PUBLIC HEALTH GENERA",MANAGEMENT CONSULTANT FEES,09/12/2019,6829948100,276,WESTMINSTER FORUM PROJ
OXFORDSHIRE CC,SOCIAL AND COMMUNITY SERVICES,CSS - OXFORD,CATERING PROVISIONS,09/12/2019,6829947808,30.1,ALDI STORES 775-142
OXFORDSHIRE CC,ENTERPRISEVC,COMMUNICATIONS,PAYMENTS TO TRANSPORT OPERATORS,09/12/2019,6829947678,16.13,THETRAINLINE.COM
OXFORDSHIRE CC,ENVIRONMENT AND ECONOMY,HARD FM,HARDWARE AND CROCKERY,09/12/2019,6829947630,145,BUILDBASE - OXFORD
OXFORDSHIRE CC,CORPORATE CORE,,"SUPPLIES, STATIONERY AND MATERIALS",09/12/2019,6829948136,11.98,LYRECO UK LTD
OXFORDSHIRE CC,CORPORATE CORE,,"SUPPLIES, STATIONERY AND MATERIALS",09/12/2019,6829948126,5.08,LYRECO UK LTD
OXFORDSHIRE CC,CORPORATE CORE,,"SUPPLIES, STATIONERY AND MATERIALS",09/12/2019,6829948140,87.56,LYRECO UK LTD
OXFORDSHIRE CC,CORPORATE CORE,,"SUPPLIES, STATIONERY AND MATERIALS",09/12/2019,6829948130,3.29,LYRECO UK LTD
OXFORDSHIRE CC,CORPORATE CORE,,"SUPPLIES, STATIONERY AND MATERIALS",09/12/2019,6829948134,197.57,LYRECO UK LTD
OXFORDSHIRE CC,CORPORATE CORE,,"SUPPLIES, STATIONERY AND MATERIALS",09/12/2019,6829948128,34.73,LYRECO UK LTD
OXFORDSHIRE CC,CORPORATE CORE,,"SUPPLIES, STATIONERY AND MATERIALS",09/12/2019,6829948138,165.26,LYRECO UK LTD
OXFORDSHIRE CC,CORPORATE CORE,,"SUPPLIES, STATIONERY AND MATERIALS",09/12/2019,6829948132,74.95,LYRECO UK LTD
OXFORDSHIRE CC,"CHILDRENS, YOUNG PEOPLE AND FAMILIES",UNION STREET FFS,CATERING PROVISIONS,09/12/2019,6829948158,3.27,TESCO STORE 2990
OXFORDSHIRE CC,"CHILDRENS, YOUNG PEOPLE AND FAMILIES",CNTL ERLY HELP-BBLEY,CATERING PROVISIONS,09/12/2019,6829948156,4.04,TESCO STORE 2990
OXFORDSHIRE CC,ENVIRONMENT AND ECONOMY,HARD FM,HARDWARE AND CROCKERY,09/12/2019,6829947622,9.99,SCREWFIX KIDLINGTON
OXFORDSHIRE CC,"CHILDRENS, YOUNG PEOPLE AND FAMILIES","	LOOKED AFTER CITY 2",OTHER TRANSPORT ARRANGEMENTS,09/12/2019,6829948098,93.05,GWR OXFORD TO
OXFORDSHIRE CC,SOCIAL AND COMMUNITY SERVICES,CSS WALLINGFORD,CATERING PROVISIONS,09/12/2019,6829947686,165.35,TESCO STORES 2008
OXFORDSHIRE CC,"CHILDRENS, YOUNG PEOPLE AND FAMILIES",THAME E&A HOME,CATERING PROVISIONS,09/12/2019,6829947798,61.11,TESCO STORES 2038
OXFORDSHIRE CC,SOCIAL AND COMMUNITY SERVICES,ADULTS AT RISK,HIRE OF ACCOMMODATION AND FACILITIES,09/12/2019,6829947786,200,THE RIDINGS
OXFORDSHIRE CC,"CHILDRENS, YOUNG PEOPLE AND FAMILIES",BULLINGDON PRISON,PURCHASE OF IT EQUIPMENT,09/12/2019,6829948046,5.39,AMAZON.CO.UK O00KL36B5
OXFORDSHIRE CC,"CHILDRENS, YOUNG PEOPLE AND FAMILIES",EYNSHAM,CATERING,09/12/2019,6829947570,249.96,TESCO STORE 2994
OXFORDSHIRE CC,"CHILDRENS, YOUNG PEOPLE AND FAMILIES",DEPUTY DIRECTOR &MAN,PAYMENTS TO TRANSPORT OPERATORS,09/12/2019,6829947736,-65.7,TRAINLINE
OXFORDSHIRE CC,SOCIAL AND COMMUNITY SERVICES,"	KINGFISHER",OTHER TRANSPORT ARRANGEMENTS,09/12/2019,6829947828,1,HORIZON PARKING LTD SA
OXFORDSHIRE CC,SOCIAL AND COMMUNITY SERVICES,CSS WALLINGFORD,CATERING PROVISIONS,09/12/2019,6829947688,-165.35,TESCO STORES 2008
OXFORDSHIRE CC,"CHILDRENS, YOUNG PEOPLE AND FAMILIES",HOUSE PROJECT,MATERIALS,09/12/2019,6829947662,44.97,AMZNMKTPLACE
OXFORDSHIRE CC,ENVIRONMENT AND ECONOMY,"	ROW MAINT",VEHICLE FUEL,09/12/2019,6829947802,20,TESCO PAY AT PUMP 2488
OXFORDSHIRE CC,CORPORATE CORE,CENTRAL BUYING TEAM,"BOOKS, DVDS AND CDS",09/12/2019,6829947766,-11.49,PRIME VIDEO
OXFORDSHIRE CC,"CHILDRENS, YOUNG PEOPLE AND FAMILIES",FPT SOUTH/VALE,HOSPITALITY EXPENSES,09/12/2019,6829948114,311.25,THE MERRY MILLER
OXFORDSHIRE CC,"CHILDRENS, YOUNG PEOPLE AND FAMILIES",FPT SOUTH/VALE,HOSPITALITY EXPENSES,09/12/2019,6829948112,250,THE MERRY MILLER
OXFORDSHIRE CC,SOCIAL AND COMMUNITY SERVICES,"	MUSEUMS COLLECTIONS",CATERING PROVISIONS,09/12/2019,6829947726,3.12,MILK&MORE
OXFORDSHIRE CC,"CHILDRENS, YOUNG PEOPLE AND FAMILIES",NTH EARLY HELP-BCSTR,CATERING PROVISIONS,09/12/2019,6829947738,18.72,MILK&MORE
OXFORDSHIRE CC,"CHILDRENS, YOUNG PEOPLE AND FAMILIES","	ASSESS TEAM CITY",HIRE OF ACCOMMODATION AND FACILITIES,09/12/2019,6829948120,79.5,PREMIER INN
OXFORDSHIRE CC,"CHILDRENS, YOUNG PEOPLE AND FAMILIES","	LOOKED AFTER SOUTH",CATERING,09/12/2019,6829948148,8.16,MCDONALDS
OXFORDSHIRE CC,ENVIRONMENT AND ECONOMY,HARD FM,HARDWARE AND CROCKERY,09/12/2019,6829947642,18,B & Q 1156
OXFORDSHIRE CC,"CHILDRENS, YOUNG PEOPLE AND FAMILIES","	LOOKED AFTER NORTH",CATERING,09/12/2019,6829948118,3.55,GREGGS
OXFORDSHIRE CC,"CHILDRENS, YOUNG PEOPLE AND FAMILIES","	40 THE MOORS",CATERING,09/12/2019,6829948004,7.49,BURGER KING
OXFORDSHIRE CC,"CHILDRENS, YOUNG PEOPLE AND FAMILIES","	SM QUALITY ASSURANCE",OTHER TRANSPORT ARRANGEMENTS,09/12/2019,6829947916,6.7,M6 TOLL
OXFORDSHIRE CC,"CHILDRENS, YOUNG PEOPLE AND FAMILIES",KINGFISHER,MATERIALS,09/12/2019,6829947824,9.99,B&M RETAIL LTD
OXFORDSHIRE CC,SOCIAL AND COMMUNITY SERVICES,LOOKED AFTER NORTH,OTHER TRANSPORT ARRANGEMENTS,09/12/2019,6829947566,6.7,M6 TOLL
OXFORDSHIRE CC,"CHILDRENS, YOUNG PEOPLE AND FAMILIES",THAME E&A HOME,CATERING PROVISIONS,09/12/2019,6829947702,15,WAITROSE 206
OXFORDSHIRE CC,"CHILDRENS, YOUNG PEOPLE AND FAMILIES","	FOSTER CARE RECRUIT",PRINTING,09/12/2019,6829947890,240,NEWSQUEST MEDIA
OXFORDSHIRE CC,SOCIAL AND COMMUNITY SERVICES,LOOKED AFTER NORTH,VEHICLE FUEL,09/12/2019,6829947564,62.18,NORTON CANES CONNECT 3
OXFORDSHIRE CC,SOCIAL AND COMMUNITY SERVICES,CSS WANTAGE,MATERIALS,09/12/2019,6829947956,29.99,B&M RETAIL LTD
OXFORDSHIRE CC,"CHILDRENS, YOUNG PEOPLE AND FAMILIES",CNTL EARLY HELP-BRTN,HARDWARE AND CROCKERY,09/12/2019,6829947840,70,HOMEBASE LTD 091
OXFORDSHIRE CC,"CHILDRENS, YOUNG PEOPLE AND FAMILIES",EYNSHAM,CATERING PROVISIONS,09/12/2019,6829947792,17.88,CO-OPERATIVE FOOD
OXFORDSHIRE CC,CORPORATE CORE,CENTRAL BUYING TEAM,MATERIALS,09/12/2019,6829947764,9.99,AMZNMKTPLACE AMAZON.CO
OXFORDSHIRE CC,SOCIAL AND COMMUNITY SERVICES,CSS - OXFORD,CATERING PROVISIONS,09/12/2019,6829947806,21.36,ALDI STORES 775-142
OXFORDSHIRE CC,SOCIAL AND COMMUNITY SERVICES,CSS - OXFORD,CATERING PROVISIONS,09/12/2019,6829947804,1.9,ALDI STORES 775-142
OXFORDSHIRE CC,"CHILDRENS, YOUNG PEOPLE AND FAMILIES","	SM QUALITY ASSURANCE",HIRE OF ACCOMMODATION AND FACILITIES,09/12/2019,6829947616,74,WWW.ROBINSONSBREWE
OXFORDSHIRE CC,"CHILDRENS, YOUNG PEOPLE AND FAMILIES",CNTL ERLY HELP-BBLEY,MATERIALS,09/12/2019,6829948154,80.39,B&M RETAIL
OXFORDSHIRE CC,ENVIRONMENT AND ECONOMY,HARD FM,EQUIPMENT,09/12/2019,6829947620,17.01,WILTS ELECTRICAL
OXFORDSHIRE CC,ENVIRONMENT AND ECONOMY,HARD FM,EQUIPMENT,09/12/2019,6829947618,28.22,WILTS ELECTRICAL
OXFORDSHIRE CC,"CHILDRENS, YOUNG PEOPLE AND FAMILIES","	LOOKED AFTER NORTH",VEHICLE FUEL,06/12/2019,6821598516,27.11,MELLORS MOT & GARAGE L
OXFORDSHIRE CC,"CHILDRENS, YOUNG PEOPLE AND FAMILIES",WITNEY,CATERING PROVISIONS,06/12/2019,6821598130,8.4,SAINSBURYS SACAT 0632
OXFORDSHIRE CC,ENVIRONMENT AND ECONOMY,"	NATURAL ENVIRONMENT",MATERIALS,06/12/2019,6821598264,13.83,AMZNMKTPLACE
OXFORDSHIRE CC,"CHILDRENS, YOUNG PEOPLE AND FAMILIES",CNTL EARLY HELP-BRTN,CATERING,06/12/2019,6821598490,5.9,COSTA COFFEE
OXFORDSHIRE CC,SOCIAL AND COMMUNITY SERVICES,DIDCOT MOVE-ON HOME,CATERING PROVISIONS,06/12/2019,6821598154,17.54,TESCO STORE 2413
OXFORDSHIRE CC,ENVIRONMENT AND ECONOMY,"	E&I STAFF",MATERIALS,06/12/2019,6821598096,31.48,AMAZON.CO.UK 3X84X6MT5
OXFORDSHIRE CC,"CHILDRENS, YOUNG PEOPLE AND FAMILIES",THAME E&A HOME,CATERING PROVISIONS,06/12/2019,6821598522,22.6,SAINSBURYS SACAT 2096
OXFORDSHIRE CC,CORPORATE CORE,LIBRARY COLLECTIONS,"BOOKS, DVDS AND CDS",06/12/2019,6821598186,29.55,OVERDRIVE DIST
OXFORDSHIRE CC,CORPORATE CORE,LIBRARY COLLECTIONS,"BOOKS, DVDS AND CDS",06/12/2019,6821598184,"4,162.78",OVERDRIVE DIST
OXFORDSHIRE CC,CORPORATE CORE,HOUSING& GROWTH DEAL,MANAGEMENT CONSULTANT FEES,06/12/2019,6821598162,276,WESTMINSTER FORUM PROJ
OXFORDSHIRE CC,"CHILDRENS, YOUNG PEOPLE AND FAMILIES","	40 THE MOORS",CATERING PROVISIONS,06/12/2019,6821598446,2,TESCO STORE 2788
OXFORDSHIRE CC,"CHILDRENS, YOUNG PEOPLE AND FAMILIES",UASC 16&17,RESIDENTIAL ACTIVITIES,06/12/2019,6821598132,32.99,PUREGYM LIMITED
OXFORDSHIRE CC,"CHILDRENS, YOUNG PEOPLE AND FAMILIES","	LOOKED AFTER CITY 2",ENTERTAINMENT EXPENSES,06/12/2019,6821598268,21.9,KIDS KINGDOM
OXFORDSHIRE CC,ENVIRONMENT AND ECONOMY,HARD FM,MATERIALS,06/12/2019,6821598138,3.48,TOOLSTATION
OXFORDSHIRE CC,ENVIRONMENT AND ECONOMY,HARD FM,MATERIALS,06/12/2019,6821598136,160.71,TOOLSTATION
OXFORDSHIRE CC,SOCIAL AND COMMUNITY SERVICES,"	MTFC",CATERING,06/12/2019,6821598314,2.85,MILLETS FARM RESTAURA
OXFORDSHIRE CC,"CHILDRENS, YOUNG PEOPLE AND FAMILIES","	LOOKED AFTER NORTH",PAYMENTS TO TRANSPORT OPERATORS,06/12/2019,6821598542,199.5,DIRECTLINE FLIGHTS
OXFORDSHIRE CC,"CHILDRENS, YOUNG PEOPLE AND FAMILIES","	LOOKED AFTER NORTH",OTHER TRANSPORT ARRANGEMENTS,06/12/2019,6821598518,3.4,3C_ CP PLUS - ROYAL SU
OXFORDSHIRE CC,"CHILDRENS, YOUNG PEOPLE AND FAMILIES","	SM QUALITY ASSURANCE",VEHICLE FUEL,06/12/2019,6821598288,30.04,WINTER HILL FIVE
OXFORDSHIRE CC,ENVIRONMENT AND ECONOMY,SCH&SOC CARE TRANSP,HIRE OF ACCOMMODATION AND FACILITIES,06/12/2019,6821598352,51,PREMIER INN
OXFORDSHIRE CC,"CHILDRENS, YOUNG PEOPLE AND FAMILIES","	LOOKED AFTER CITY 2",OTHER TRANSPORT ARRANGEMENTS,06/12/2019,6821598504,16,BERRIDGE TAXIS
OXFORDSHIRE CC,ENVIRONMENT AND ECONOMY,SCH&SOC CARE TRANSP,PAYMENTS TO TRANSPORT OPERATORS,06/12/2019,6821598348,67.55,CROSS COUNTRY TRAINS
OXFORDSHIRE CC,SOCIAL AND COMMUNITY SERVICES,"	MTFC",ENTERTAINMENT EXPENSES,06/12/2019,6821598316,4.5,SPROUTS PLAY BARN
OXFORDSHIRE CC,"CHILDRENS, YOUNG PEOPLE AND FAMILIES",DEPUTY DIRECTOR &MAN,CATERING PROVISIONS,06/12/2019,6821598192,14,MARKS&SPENCER PLC
OXFORDSHIRE CC,"CHILDRENS, YOUNG PEOPLE AND FAMILIES",DEPUTY DIRECTOR &MAN,CATERING PROVISIONS,06/12/2019,6821598190,20.1,MARKS&SPENCER PLC
OXFORDSHIRE CC,"CHILDRENS, YOUNG PEOPLE AND FAMILIES","	MARLBOROUGH",DISABILITY AIDS AND EQUIPMENT,06/12/2019,6821598346,119.97,AMZNMKTPLACE
OXFORDSHIRE CC,"CHILDRENS, YOUNG PEOPLE AND FAMILIES","	LEAVING CARE SOUTH",OTHER EXPENSES,06/12/2019,6821598570,93.3,TESCO STORES 4480
OXFORDSHIRE CC,SOCIAL AND COMMUNITY SERVICES,WANTAGE LIBRARY,CATERING PROVISIONS,06/12/2019,6821598236,20.1,SAINSBURYS SACAT 2244
OXFORDSHIRE CC,ENVIRONMENT AND ECONOMY,"	OXFORDSHIRE MUSEUM",MATERIALS,06/12/2019,6821598298,6.99,AMZNMKTPLACE
OXFORDSHIRE CC,"CHILDRENS, YOUNG PEOPLE AND FAMILIES","	40 THE MOORS",MATERIALS,06/12/2019,6821598442,9.99,GAME RETAIL
OXFORDSHIRE CC,"CHILDRENS, YOUNG PEOPLE AND FAMILIES",THAME E&A HOME,CATERING PROVISIONS,06/12/2019,6821598098,219.8,SAINSBURYS SACAT 0600
OXFORDSHIRE CC,"CHILDRENS, YOUNG PEOPLE AND FAMILIES","	LOOKED AFTER SOUTH",CATERING,06/12/2019,6821598462,7.1,COSTA COFFEE ABINGDON
OXFORDSHIRE CC,"CHILDRENS, YOUNG PEOPLE AND FAMILIES","	40 THE MOORS",CATERING PROVISIONS,06/12/2019,6821598450,50.05,SAINSBURYS 0642
OXFORDSHIRE CC,ENVIRONMENT AND ECONOMY,COUNTY LIBRARY,GENERAL MAINTENANCE,06/12/2019,6821598146,17.57,WOLSELEY UK
OXFORDSHIRE CC,"CHILDRENS, YOUNG PEOPLE AND FAMILIES",WITNEY,CATERING PROVISIONS,06/12/2019,6821598514,3.1,SAINSBURYS SACAT 0632
OXFORDSHIRE CC,"CHILDRENS, YOUNG PEOPLE AND FAMILIES","	LEAVING CARE NORTH",CLOTHING AND UNIFORMS,06/12/2019,6821598148,41,PONDEN HOME
OXFORDSHIRE CC,"CHILDRENS, YOUNG PEOPLE AND FAMILIES","	C&I BASE LORD WILL'M",MATERIALS,06/12/2019,6821598338,4.99,AMZNMKTPLACE
OXFORDSHIRE CC,"CHILDRENS, YOUNG PEOPLE AND FAMILIES","	C&I BASE LORD WILL'M",MATERIALS,06/12/2019,6821598342,4.95,AMZNMKTPLACE
OXFORDSHIRE CC,"CHILDRENS, YOUNG PEOPLE AND FAMILIES",STH EARLY HELP-ABNDN,DOMESTIC SUPPLIES,06/12/2019,6821598156,54.99,AMZNMKTPLACE
OXFORDSHIRE CC,ENVIRONMENT AND ECONOMY,HARD FM,MATERIALS,06/12/2019,6821598140,36,HALFORDS 0988
OXFORDSHIRE CC,"CHILDRENS, YOUNG PEOPLE AND FAMILIES","	LOOKED AFTER CITY 2",OTHER TRANSPORT ARRANGEMENTS,06/12/2019,6821598502,16,BERRIDGE TAXIS
OXFORDSHIRE CC,"CHILDRENS, YOUNG PEOPLE AND FAMILIES","	RIVERSIDE CENTRE",CATERING PROVISIONS,06/12/2019,6821598230,1.05,TESCO STORES 4377
OXFORDSHIRE CC,"CHILDRENS, YOUNG PEOPLE AND FAMILIES","	LOOKED AFTER CITY 2",PAYMENTS TO TRANSPORT OPERATORS,06/12/2019,6821598272,49.9,GWR DIDCOT PKWY TO
OXFORDSHIRE CC,"CHILDRENS, YOUNG PEOPLE AND FAMILIES","	LOOKED AFTER CITY 2",OTHER TRANSPORT ARRANGEMENTS,06/12/2019,6821598274,6.3,APCOA CONNECT - FGW
OXFORDSHIRE CC,SOCIAL AND COMMUNITY SERVICES,CSS WANTAGE,MATERIALS,06/12/2019,6821598332,13.45,HOME BARGAINS
OXFORDSHIRE CC,ENVIRONMENT AND ECONOMY,"	OXFORDSHIRE MUSEUM",MATERIALS,06/12/2019,6821598296,53.34,AMZNMKTPLACE
OXFORDSHIRE CC,"CHILDRENS, YOUNG PEOPLE AND FAMILIES","	FAMILY SUPPORT CITY3",OTHER TRANSPORT ARRANGEMENTS,06/12/2019,6821598112,7,WESTGATE OXFORD CAR PA
OXFORDSHIRE CC,"CHILDRENS, YOUNG PEOPLE AND FAMILIES",DIDCOT MOVE-ON HOME,CATERING PROVISIONS,06/12/2019,6821598476,25.49,TESCO STORE 2413
OXFORDSHIRE CC,ENVIRONMENT AND ECONOMY,S38 INSPECT & OTHER,MANAGEMENT CONSULTANT FEES,06/12/2019,6821598188,276,WESTMINSTER FORUM PROJ
OXFORDSHIRE CC,"CHILDRENS, YOUNG PEOPLE AND FAMILIES",DIDCOT MOVE-ON HOME,CATERING PROVISIONS,06/12/2019,6821598478,2.99,TESCO STORE 2413
OXFORDSHIRE CC,"CHILDRENS, YOUNG PEOPLE AND FAMILIES",FAMILY SUPPORT 2,PAYMENTS TO TRANSPORT OPERATORS,06/12/2019,6821598568,6.8,WWW.GWR.COM
OXFORDSHIRE CC,"CHILDRENS, YOUNG PEOPLE AND FAMILIES",CNTL EARLY HELP-RHIL,PAYMENTS TO VOLUNTARY BODIES,06/12/2019,6821598548,63,EMMAUS OXFORD
OXFORDSHIRE CC,ENVIRONMENT AND ECONOMY,"	OXFORDSHIRE MUSEUM",MATERIALS,06/12/2019,6821598294,6.18,AMAZON.CO.UK 108GV76U5
OXFORDSHIRE CC,CORPORATE CORE,CENTRAL BUYING TEAM,"BOOKS, DVDS AND CDS",06/12/2019,6821598196,11.49,PRIME VIDEO DM2ZB2Y05
OXFORDSHIRE CC,"CHILDRENS, YOUNG PEOPLE AND FAMILIES",KINGFISHER,OTHER TRANSPORT ARRANGEMENTS,06/12/2019,6821598228,7,WESTGATE OXFORD CAR PA
OXFORDSHIRE CC,"CHILDRENS, YOUNG PEOPLE AND FAMILIES","	RIVERSIDE CENTRE",RESIDENTIAL ACTIVITIES,06/12/2019,6821598232,300,WWW.WOODLAND-WAYS.CO.U
OXFORDSHIRE CC,ENVIRONMENT AND ECONOMY,HARD FM,OTHER TRANSPORT ARRANGEMENTS,06/12/2019,6821598144,2.5,ST CLEMENTS CAR PARK
OXFORDSHIRE CC,"CHILDRENS, YOUNG PEOPLE AND FAMILIES","	AAC EQUIPMENT",MATERIALS,06/12/2019,6821598344,29.97,AMZNMKTPLACE
OXFORDSHIRE CC,ENVIRONMENT AND ECONOMY,CPD TRAINING,OTHER TRAINING COURSES AND QUALIFICATION,06/12/2019,6821598220,174,IZ  VALE TRAINING
OXFORDSHIRE CC,"CHILDRENS, YOUNG PEOPLE AND FAMILIES",EET SERVICE,EDUCATIONAL AND VOCATIONAL TRAINING ,06/12/2019,6821598218,298.8,WWW.MARKALLENGROUP.COM
OXFORDSHIRE CC,SOCIAL AND COMMUNITY SERVICES,CSS - DIDCOT,CATERING PROVISIONS,06/12/2019,6821598088,29.25,THE OLD FARM SHOP
OXFORDSHIRE CC,"CHILDRENS, YOUNG PEOPLE AND FAMILIES","	40 THE MOORS",OTHER EXPENSES,06/12/2019,6821598304,30.75,AMAZON.CO.UK 574254HL5
OXFORDSHIRE CC,"CHILDRENS, YOUNG PEOPLE AND FAMILIES",THAME E&A HOME,CATERING PROVISIONS,06/12/2019,6821598174,20,ASDA SUPERSTORE
OXFORDSHIRE CC,"CHILDRENS, YOUNG PEOPLE AND FAMILIES","	LOOKED AFTER SOUTH",OTHER TRANSPORT ARRANGEMENTS,06/12/2019,6821598546,6,3C_ ECP - BRITANNIA IN
OXFORDSHIRE CC,SOCIAL AND COMMUNITY SERVICES,"	MTFC",CATERING,06/12/2019,6821598318,5.6,IZ  THE VAULTS AND GAR
OXFORDSHIRE CC,ENVIRONMENT AND ECONOMY,"	MUSEUM DEV OFFICER",OTHER TRANSPORT ARRANGEMENTS,06/12/2019,6821598484,2,3C_ OCC PR WATER EATON
OXFORDSHIRE CC,"CHILDRENS, YOUNG PEOPLE AND FAMILIES","	SM QUALITY ASSURANCE",VEHICLES REPAIRS AND MAINTENANCE,06/12/2019,6821598292,35,CASTLE GARAGE
OXFORDSHIRE CC,ENVIRONMENT AND ECONOMY,HARD FM,MATERIALS,06/12/2019,6821598134,14,HALFORDS 0988
OXFORDSHIRE CC,SOCIAL AND COMMUNITY SERVICES,CSS BICESTER,CATERING PROVISIONS,06/12/2019,6821598128,2.1,ICELAND
OXFORDSHIRE CC,SOCIAL AND COMMUNITY SERVICES,"	HISTORY SERVICE","BOOKS, DVDS AND CDS",06/12/2019,6821598198,15.99,AMAZON.CO.UK K48DK6R15
OXFORDSHIRE CC,"CHILDRENS, YOUNG PEOPLE AND FAMILIES","	LOOKED AFTER NORTH",OTHER TRANSPORT ARRANGEMENTS,06/12/2019,6821598520,3.4,3C_ CP PLUS - ROYAL SU
OXFORDSHIRE CC,"CHILDRENS, YOUNG PEOPLE AND FAMILIES","	LEAVING CARE NORTH",CATERING,06/12/2019,6821598326,2.9,CAFFE NERO CHIPPING NO
OXFORDSHIRE CC,SOCIAL AND COMMUNITY SERVICES,LEAVING CARE NORTH,OTHER TRANSPORT ARRANGEMENTS,06/12/2019,6821598308,11.1,SABA UK WMT GB4310 MIR
OXFORDSHIRE CC,CORPORATE CORE,,"SUPPLIES, STATIONERY AND MATERIALS",06/12/2019,6821598538,45.6,LYRECO UK LTD
OXFORDSHIRE CC,CORPORATE CORE,,"SUPPLIES, STATIONERY AND MATERIALS",06/12/2019,6821598536,45.6,LYRECO UK LTD
OXFORDSHIRE CC,CORPORATE CORE,,"SUPPLIES, STATIONERY AND MATERIALS",06/12/2019,6821598534,45.6,LYRECO UK LTD
OXFORDSHIRE CC,CORPORATE CORE,,"SUPPLIES, STATIONERY AND MATERIALS",06/12/2019,6821598540,61.08,LYRECO UK LTD
OXFORDSHIRE CC,CORPORATE CORE,,"SUPPLIES, STATIONERY AND MATERIALS",06/12/2019,6821598528,91.24,LYRECO UK LTD
OXFORDSHIRE CC,CORPORATE CORE,,"SUPPLIES, STATIONERY AND MATERIALS",06/12/2019,6821598530,120.77,LYRECO UK LTD
OXFORDSHIRE CC,"CHILDRENS, YOUNG PEOPLE AND FAMILIES","	LOOKED AFTER CITY 2",OTHER TRANSPORT ARRANGEMENTS,06/12/2019,6821598500,69.65,GWR OXFORD TO
OXFORDSHIRE CC,"CHILDRENS, YOUNG PEOPLE AND FAMILIES","	SM QUALITY ASSURANCE",HIRE OF ACCOMMODATION AND FACILITIES,06/12/2019,6821598290,25.86,THE BULKELEY
OXFORDSHIRE CC,"CHILDRENS, YOUNG PEOPLE AND FAMILIES","	LEAVING CARE NORTH",PAYMENTS TO TRANSPORT OPERATORS,06/12/2019,6821598544,6.8,BANBURY SSTP
OXFORDSHIRE CC,"CHILDRENS, YOUNG PEOPLE AND FAMILIES",CUDDESDON CORNER FSS,CATERING PROVISIONS,06/12/2019,6821598498,1.39,NISA DELTEYS
OXFORDSHIRE CC,ENTERPRISEVC,BUSINESS SYST STAFF,PAYMENTS TO TRANSPORT OPERATORS,06/12/2019,6821598176,167,SWRAILWAYSELFSERVE
OXFORDSHIRE CC,SOCIAL AND COMMUNITY SERVICES,CSS WANTAGE,CATERING PROVISIONS,06/12/2019,6821598334,93.4,ASDA GROCERIES ONLINE
OXFORDSHIRE CC,"CHILDRENS, YOUNG PEOPLE AND FAMILIES","	40 THE MOORS",CATERING PROVISIONS,06/12/2019,6821598456,141.77,ASDA GROCERIES ONLINE
OXFORDSHIRE CC,SOCIAL AND COMMUNITY SERVICES,CSS WANTAGE,CATERING PROVISIONS,06/12/2019,6821598336,-37,ASDA GROCERIES ONLINE
OXFORDSHIRE CC,ENVIRONMENT AND ECONOMY,"	BUSINESS SYST STAFF",PAYMENTS TO TRANSPORT OPERATORS,06/12/2019,6821598466,43.96,TRAINLINE
OXFORDSHIRE CC,SOCIAL AND COMMUNITY SERVICES,"	MTFC",VEHICLE FUEL,06/12/2019,6821598312,2.47,BP CANNON POOL S/SERVE
OXFORDSHIRE CC,SOCIAL AND COMMUNITY SERVICES,"	MTFC",VEHICLE FUEL,06/12/2019,6821598312,1.89,BP CANNON POOL S/SERVE
OXFORDSHIRE CC,"CHILDRENS, YOUNG PEOPLE AND FAMILIES","	LOOKED AFTER CITY 2",PAYMENTS TO TRANSPORT OPERATORS,06/12/2019,6821598270,6.1,GWR OXFORD SST
OXFORDSHIRE CC,"CHILDRENS, YOUNG PEOPLE AND FAMILIES","	RESIDENTIAL STRATEGY",MANAGEMENT CONSULTANT FEES,06/12/2019,6821598306,154.5,TVLICENSING.CO.UK
OXFORDSHIRE CC,"CHILDRENS, YOUNG PEOPLE AND FAMILIES","	40 THE MOORS",OTHER EXPENSES,06/12/2019,6821598302,54.99,ARGOS KIDLINGTON INSID
OXFORDSHIRE CC,"CHILDRENS, YOUNG PEOPLE AND FAMILIES",CNTL ERLY HELP-BBLEY,MATERIALS,06/12/2019,6821598550,119.99,AMZNMKTPLACE AMAZON.CO
OXFORDSHIRE CC,ENVIRONMENT AND ECONOMY,"	BUSINESS SYST STAFF",MATERIALS,05/12/2019,6815855838,13.99,AMZNMKTPLACE
OXFORDSHIRE CC,,,,05/12/2019,6815855502,"-335,147.80",
OXFORDSHIRE CC,ENTERPRISEVC,BUSINESS SYST STAFF,OTHER TRANSPORT ARRANGEMENTS,05/12/2019,6815855298,4.3,STAGECOACH BUS
OXFORDSHIRE CC,SOCIAL AND COMMUNITY SERVICES,LEAVING CARE NORTH,PAYMENTS TO TRANSPORT OPERATORS,05/12/2019,6815855666,147.08,THETRAINLINE.COM
OXFORDSHIRE CC,SOCIAL AND COMMUNITY SERVICES,LOOKED AFTER SOUTH,VEHICLE FUEL,05/12/2019,6815855436,28.43,SAINSBURYS PFS0146
OXFORDSHIRE CC,SOCIAL AND COMMUNITY SERVICES,CSS - BANBURY,CATERING PROVISIONS,05/12/2019,6815855028,19.35,SAINSBURYS 0642
OXFORDSHIRE CC,"CHILDRENS, YOUNG PEOPLE AND FAMILIES",DIDCOT MOVE-ON HOME,CATERING PROVISIONS,05/12/2019,6815855854,17.6,SAINSBURYS SACAT 2067
OXFORDSHIRE CC,SOCIAL AND COMMUNITY SERVICES,CICC,CATERING PROVISIONS,05/12/2019,6815855358,23.67,ART CAFE
OXFORDSHIRE CC,"CHILDRENS, YOUNG PEOPLE AND FAMILIES",UASC 16&17,RESIDENTIAL ACTIVITIES,05/12/2019,6815855138,29.99,PUREGYM LIMITED
OXFORDSHIRE CC,"CHILDRENS, YOUNG PEOPLE AND FAMILIES",THAME E&A HOME,MATERIALS,05/12/2019,6815855286,7.99,AMAZON PRIME XX0293TA5
OXFORDSHIRE CC,SOCIAL AND COMMUNITY SERVICES,LEAVING CARE NORTH,HIRE OF ACCOMMODATION AND FACILITIES,05/12/2019,6815855662,441.6,HAMILTONGRACELIMITED
OXFORDSHIRE CC,SOCIAL AND COMMUNITY SERVICES,DIDCOT MOVE-ON HOME,CATERING,05/12/2019,6815855186,29.79,JUST EAT
OXFORDSHIRE CC,"CHILDRENS, YOUNG PEOPLE AND FAMILIES",UASC POST 18,REGISTRATION AND INSPECTION FEES,05/12/2019,6815855134,75,SOPRA STERIA LIMITED
OXFORDSHIRE CC,"CHILDRENS, YOUNG PEOPLE AND FAMILIES",CNTL EARLY HELP-RHIL,MATERIALS,05/12/2019,6815855798,101.95,WWW.ARGOS.CO.UK
OXFORDSHIRE CC,"CHILDRENS, YOUNG PEOPLE AND FAMILIES",WITNEY,CATERING PROVISIONS,05/12/2019,6815855110,18.25,SAINSBURYS 0632
OXFORDSHIRE CC,"CHILDRENS, YOUNG PEOPLE AND FAMILIES",WITNEY,CATERING PROVISIONS,05/12/2019,6815855112,10.5,SAINSBURYS 0632
OXFORDSHIRE CC,"CHILDRENS, YOUNG PEOPLE AND FAMILIES","	FOSTER CARE RECRUIT","SUPPLIES, STATIONERY AND MATERIALS",05/12/2019,6815855578,25,MARKS&SPENCER PLC SF
OXFORDSHIRE CC,"CHILDRENS, YOUNG PEOPLE AND FAMILIES","	LOOKED AFTER CITY 1",PAYMENT TO GOVERNMENT DEPARTMENTS,05/12/2019,6815855708,85,HM PASSPORT OFFICE
OXFORDSHIRE CC,"CHILDRENS, YOUNG PEOPLE AND FAMILIES","	RESIDENTIAL STRATEGY",HIRE OF ACCOMMODATION AND FACILITIES,05/12/2019,6815855654,128,CHERBRIDGE COTTAGE
OXFORDSHIRE CC,SOCIAL AND COMMUNITY SERVICES,"	MTFC",CATERING,05/12/2019,6815855676,4.35,IZ  PARKS TENNIS CIC
OXFORDSHIRE CC,"CHILDRENS, YOUNG PEOPLE AND FAMILIES",THAME E&A HOME,MATERIALS,05/12/2019,6815855190,10.96,B&M RETAIL
OXFORDSHIRE CC,SOCIAL AND COMMUNITY SERVICES,LEADERSHIP TEAM,PAYMENTS TO TRANSPORT OPERATORS,05/12/2019,6815855304,71.6,WWW.GWR.COM
OXFORDSHIRE CC,SOCIAL AND COMMUNITY SERVICES,LEADERSHIP TEAM,PAYMENTS TO TRANSPORT OPERATORS,05/12/2019,6815855908,73.3,WWW.GWR.COM
OXFORDSHIRE CC,"CHILDRENS, YOUNG PEOPLE AND FAMILIES","	FAMILY SUPPORT CITY3",CLOTHING AND UNIFORMS,05/12/2019,6815855490,15.95,ASDA GEORGE COM LEEDS
OXFORDSHIRE CC,"CHILDRENS, YOUNG PEOPLE AND FAMILIES",THAME E&A HOME,CATERING PROVISIONS,05/12/2019,6815855052,154.45,ASDA SUPERSTORE
OXFORDSHIRE CC,"CHILDRENS, YOUNG PEOPLE AND FAMILIES","	LOOKED AFTER CITY 2",OTHER TRANSPORT ARRANGEMENTS,05/12/2019,6815855564,6.7,APCOA CONNECT - FGW
OXFORDSHIRE CC,"CHILDRENS, YOUNG PEOPLE AND FAMILIES",STEP INTO TRAINING,"SUPPLIES, STATIONERY AND MATERIALS",05/12/2019,6815855858,23.65,AMZNMKTPLACE
OXFORDSHIRE CC,CORPORATE CORE,REGISTRAR,CATERING PROVISIONS,05/12/2019,6815855330,7.15,WAITROSE 211
OXFORDSHIRE CC,"CHILDRENS, YOUNG PEOPLE AND FAMILIES",WITNEY,MATERIALS,05/12/2019,6815855108,4.99,AMZNMKTPLACE
OXFORDSHIRE CC,CORPORATE CORE,REGISTRAR,MATERIALS,05/12/2019,6815855326,3,POUNDLAND LTD 1366
OXFORDSHIRE CC,"CHILDRENS, YOUNG PEOPLE AND FAMILIES","	HOME SUPPORT",CATERING PROVISIONS,05/12/2019,6815855884,8,ICELAND
OXFORDSHIRE CC,SOCIAL AND COMMUNITY SERVICES,CSS WALLINGFORD,MATERIALS,05/12/2019,6815855382,3,B & M RETAIL
OXFORDSHIRE CC,ENVIRONMENT AND ECONOMY,HARD FM,HARDWARE AND CROCKERY,05/12/2019,6815855154,14.13,SCREWFIX OXFORD
OXFORDSHIRE CC,"CHILDRENS, YOUNG PEOPLE AND FAMILIES",THAME E&A HOME,CATERING PROVISIONS,05/12/2019,6815855054,139.95,ASDA SUPERSTORE
OXFORDSHIRE CC,ENVIRONMENT AND ECONOMY,COUNTY LIBRARY,GENERAL MAINTENANCE,05/12/2019,6815855156,61.64,WOLSELEY UK
OXFORDSHIRE CC,SOCIAL AND COMMUNITY SERVICES,UASC 16&17,CATERING PROVISIONS,05/12/2019,6815855180,61.31,TESCO STORES 2008
OXFORDSHIRE CC,"CHILDRENS, YOUNG PEOPLE AND FAMILIES","	LOOKED AFTER SOUTH",MATERIALS,05/12/2019,6815855984,1.99,CARD FACTORY
OXFORDSHIRE CC,CORPORATE CORE,INCOME TEAM,SUBSCRIPTIONS,05/12/2019,6815855338,59.94,WWW.192.COM
OXFORDSHIRE CC,ENVIRONMENT AND ECONOMY,"	ROAD SAFETY STAFF",EDUCATIONAL AND VOCATIONAL TRAINING ,05/12/2019,6815855346,36,WWW.CSKILLS.ORG
OXFORDSHIRE CC,ENVIRONMENT AND ECONOMY,HARD FM,HARDWARE AND CROCKERY,05/12/2019,6815855148,60.13,C BREWER & SONS LT
OXFORDSHIRE CC,"CHILDRENS, YOUNG PEOPLE AND FAMILIES","	HEARING IMPAIRMENT",EDUCATIONAL AND VOCATIONAL TRAINING ,05/12/2019,6815855528,190,COMMUNICATE-ED
OXFORDSHIRE CC,ENVIRONMENT AND ECONOMY,HARD FM,HARDWARE AND CROCKERY,05/12/2019,6815855146,26,B & Q 1156
OXFORDSHIRE CC,"CHILDRENS, YOUNG PEOPLE AND FAMILIES",WITNEY,MATERIALS,05/12/2019,6815855104,11.99,AMZNMKTPLACE
OXFORDSHIRE CC,SOCIAL AND COMMUNITY SERVICES,CSS WALLINGFORD,CATERING PROVISIONS,05/12/2019,6815855386,4.6,WAITROSE 675
OXFORDSHIRE CC,"CHILDRENS, YOUNG PEOPLE AND FAMILIES",WITNEY,MATERIALS,05/12/2019,6815855106,16.73,AMZNMKTPLACE
OXFORDSHIRE CC,SOCIAL AND COMMUNITY SERVICES,CSS WALLINGFORD,PAYMENTS TO VOLUNTARY BODIES,05/12/2019,6815855378,14.99,SUE RYDER 5061
OXFORDSHIRE CC,"CHILDRENS, YOUNG PEOPLE AND FAMILIES","	PLACEMENT DUTY TEAM",PAYMENTS TO TRANSPORT OPERATORS,05/12/2019,6815855752,19.8,BANBURY STATION T/O
OXFORDSHIRE CC,"CHILDRENS, YOUNG PEOPLE AND FAMILIES",THAME E&A HOME,CATERING,05/12/2019,6815855948,6.1,ART ROOM
OXFORDSHIRE CC,SOCIAL AND COMMUNITY SERVICES,LEAVING CARE NORTH,HIRE OF ACCOMMODATION AND FACILITIES,05/12/2019,6815855658,441.6,HAMILTONGRACELIMITED
OXFORDSHIRE CC,"CHILDRENS, YOUNG PEOPLE AND FAMILIES",ATV ADOPTION WOODLEY,MATERIALS,05/12/2019,6815855094,71.6,AMAZON.CO.UK KU3VE2LC5
OXFORDSHIRE CC,ENVIRONMENT AND ECONOMY,HARD FM,HARDWARE AND CROCKERY,05/12/2019,6815855144,24.91,WICKES BICESTER
OXFORDSHIRE CC,SOCIAL AND COMMUNITY SERVICES,CSS - DIDCOT,CATERING PROVISIONS,05/12/2019,6815855828,13,WILKO RETAIL LIMITED
OXFORDSHIRE CC,SOCIAL AND COMMUNITY SERVICES,CSS - DIDCOT,CATERING PROVISIONS,05/12/2019,6815855832,9.5,WILKO RETAIL LIMITED
OXFORDSHIRE CC,SOCIAL AND COMMUNITY SERVICES,CSS - OXFORD,EQUIPMENT,05/12/2019,6815855446,4.99,HOMEBASE LTD 091
